{"text_format":"1","workbook":"xlsx","n_sheets":5,"sheets":["総括表","申請額一覧","個票1","領収証一覧","台紙"],"not_rendered":{"charts":0,"images":0,"macros":1,"external_links":0,"defined_names":6,"comments":1,"pivot_tables":0},"unopened":[],"bounds":{"document_bytes":16777216,"sheet_cells":100000,"rows_first":2000,"rows_last":500,"rows_between":2000,"halvings":0,"cell_chars":16384,"cell_head_chars":4096},"cells_cut":0,"cells_raw":0,"read":"whole","date_system":"1900"}

{"sheet":"総括表","index":0,"n_rows":64,"n_cols":28,"rows_kept":64,"cut":false,"hidden":false,"merged":[[34,21,34,22],[34,23,34,26],[31,28,31,29],[31,30,31,31],[31,32,31,35],[17,0,19,27],[50,28,50,29],[50,30,50,31],[62,32,62,35],[57,28,57,29],[57,30,57,31],[52,32,52,35],[32,28,32,29],[32,30,32,31],[32,32,32,35],[31,23,31,26],[38,0,49,0],[58,0,61,0],[20,0,20,18],[34,19,34,20],[52,28,52,29],[52,30,52,31],[53,28,53,29],[53,30,53,31],[0,21,0,27],[21,32,21,35],[44,19,44,20],[44,21,44,22],[44,23,44,26],[21,19,21,20],[21,21,21,22],[21,23,21,26],[21,28,21,29],[21,30,21,31],[33,19,33,20],[33,21,33,22],[33,23,33,26],[33,28,33,29],[33,30,33,31],[34,28,34,29],[34,30,34,31],[34,32,34,35],[25,21,25,22],[28,19,28,20],[28,21,28,22],[32,19,32,20],[32,21,32,22],[32,23,32,26],[63,21,63,22],[63,19,63,20],[63,23,63,26],[53,23,53,26],[62,23,62,26],[48,23,48,26],[49,19,49,20],[49,21,49,22],[49,23,49,26],[50,19,50,20],[50,21,50,22],[50,23,50,26],[62,21,62,22],[62,19,62,20],[55,19,55,20],[55,21,55,22],[2,0,2,27],[3,0,3,27],[50,0,50,18],[57,0,57,18],[37,0,37,18],[35,0,35,18],[62,0,62,18],[15,9,15,11],[16,9,16,11],[14,17,14,21],[15,17,15,21],[16,17,16,21],[10,1,10,3],[11,1,11,3],[35,19,35,20],[35,21,35,22],[26,21,26,22],[23,21,23,22],[16,22,16,27],[29,23,29,26],[30,19,30,20],[30,21,30,22],[30,23,30,26],[31,19,31,20],[63,0,63,18],[40,23,40,26],[58,19,58,20],[58,21,58,22],[58,23,58,26],[59,19,59,20],[59,21,59,22],[59,23,59,26],[60,19,60,20],[60,21,60,22],[60,23,60,26],[47,19,47,20],[47,21,47,22],[47,23,47,26],[48,19,48,20],[48,21,48,22],[51,0,56,0],[51,21,51,22],[52,23,52,26],[57,23,57,26],[52,19,52,20],[52,21,52,22],[57,19,57,20],[57,21,57,22],[62,28,62,29],[62,30,62,31],[56,19,56,20],[56,21,56,22],[56,28,56,29],[56,30,56,31],[51,19,51,20],[54,19,54,20],[54,21,54,22],[54,28,54,29],[54,30,54,31],[54,23,54,26],[51,23,51,26],[56,23,56,26],[51,28,51,29],[51,30,51,31],[61,19,61,20],[61,21,61,22],[61,23,61,26],[55,23,55,26],[55,28,55,29],[55,30,55,31],[53,19,53,20],[53,21,53,22],[42,28,42,29],[42,30,42,31],[42,23,42,26],[43,23,43,26],[46,23,46,26],[43,28,43,29],[43,30,43,31],[42,19,42,20],[42,21,42,22],[43,19,43,20],[43,21,43,22],[45,19,45,20],[45,21,45,22],[45,23,45,26],[46,19,46,20],[46,21,46,22],[41,30,41,31],[41,23,41,26],[37,28,37,29],[37,30,37,31],[38,19,38,20],[38,21,38,22],[38,23,38,26],[39,19,39,20],[39,21,39,22],[39,23,39,26],[40,19,40,20],[40,21,40,22],[37,19,37,20],[37,21,37,22],[37,23,37,26],[41,19,41,20],[41,21,41,22],[41,28,41,29],[22,30,22,31],[22,28,22,29],[24,19,24,20],[25,19,25,20],[26,19,26,20],[27,19,27,20],[36,19,36,20],[22,21,22,22],[24,21,24,22],[24,28,24,29],[24,30,24,31],[23,19,23,20],[24,23,24,26],[25,23,25,26],[26,23,26,26],[23,28,23,29],[25,28,25,29],[25,30,25,31],[30,28,30,29],[30,30,30,31],[31,21,31,22],[28,23,28,26],[29,19,29,20],[29,21,29,22],[10,0,16,0],[14,22,14,27],[15,22,15,27],[5,25,5,26],[5,22,5,23],[5,19,5,20],[12,1,13,3],[24,32,24,35],[25,32,25,35],[21,0,34,0],[23,30,23,31],[22,19,22,20],[20,32,20,37],[20,23,20,27],[20,19,20,22],[22,23,22,26],[23,23,23,26],[22,32,22,35],[23,32,23,35],[20,28,20,31],[26,28,26,29],[26,30,26,31],[6,0,6,6],[14,9,14,11],[54,32,54,35],[51,32,51,35],[56,32,56,35],[57,32,57,35],[50,32,50,35],[55,32,55,35],[26,32,26,35],[27,32,27,35],[36,32,36,35],[41,32,41,35],[37,32,37,35],[42,32,42,35],[35,32,35,35],[28,32,28,35],[29,32,29,35],[30,32,30,35],[33,32,33,35],[53,32,53,35],[11,4,11,27],[10,4,10,27],[12,7,12,8],[12,10,12,12],[13,4,13,27],[14,12,14,16],[15,12,15,16],[16,12,16,16],[43,32,43,35],[36,21,36,22],[36,28,36,29],[36,30,36,31],[27,21,27,22],[27,28,27,29],[27,30,27,31],[27,23,27,26],[36,23,36,26],[35,23,35,26],[35,28,35,29],[35,30,35,31],[28,28,28,29],[28,30,28,31],[29,28,29,29],[29,30,29,31]]}
["（様式１）総括表",null,null,null,null,null,null,null,null,null,null,null,null,null,null,null,null,null,null,null,null,"山梨県・障害分"]
[]
["令和３年度新型コロナウイルス感染症に係る障害福祉サービス事業所等に対するサービス継続支援事業"]
["（障害福祉サービス施設・事業所等における感染防止対策支援事業）助成金申請書"]
[]
[null,null,null,null,null,null,null,null,null,null,null,null,null,null,null,null,null,null,"　　令和",null,null,"年",null,null,"月",null,null,"日"]
["山梨県知事",null,null,null,null,null,null,null,"殿"]
[]
["　標記について、次のとおり申請します。"]
[]
["申　請　者","フリガナ"]
[null,"名　　称"]
[null,"所在地",null,null,"（郵便番号",null,null,null,null,"‐",null,null,null,"）"]
[]
[null,"連絡先",null,null,null,null,null,null,null,"電話番号",null,null,null,null,null,null,null,"E-mail"]
[null,"代表者の職・氏名",null,null,null,null,null,null,null,"職　　名",null,null,null,null,null,null,null,"氏　　名"]
[null,"申請に関する担当者",null,null,null,null,null,null,null,"職　　名",null,null,null,null,null,null,null,"氏　　名"]
["申請内容"]
[]
[]
["障害福祉サービス施設・事業所等における感染防止対策支援事業",null,null,null,null,null,null,null,null,null,null,null,null,null,null,null,null,null,null,"事業所･施設数",null,null,null,"申請額"]
["通所系",1,"療養介護（定員40人以下）",null,null,null,null,null,null,null,null,null,null,null,null,null,null,null,null,{"$f":"COUNTIFS(申請額一覧!$E$4:$E$503,C22,申請額一覧!$K$4:$K$503,\">0\")","v":0},null,"か所",null,{"$f":"SUMIF(申請額一覧!$E$4:$E$503,C22,申請額一覧!$K$4:$K$503)","v":0},null,null,null,"円"]
[null,2,"療養介護（定員41人～60人）",null,null,null,null,null,null,null,null,null,null,null,null,null,null,null,null,{"$f":"COUNTIFS(申請額一覧!$E$4:$E$503,C23,申請額一覧!$K$4:$K$503,\">0\")","v":0},null,"か所",null,{"$f":"SUMIF(申請額一覧!$E$4:$E$503,C23,申請額一覧!$K$4:$K$503)","v":0},null,null,null,"円"]
[null,3,"療養介護（定員61人以上）",null,null,null,null,null,null,null,null,null,null,null,null,null,null,null,null,{"$f":"COUNTIFS(申請額一覧!$E$4:$E$503,C24,申請額一覧!$K$4:$K$503,\">0\")","v":0},null,"か所",null,{"$f":"SUMIF(申請額一覧!$E$4:$E$503,C24,申請額一覧!$K$4:$K$503)","v":0},null,null,null,"円"]
[null,4,"生活介護",null,null,null,null,null,null,null,null,null,null,null,null,null,null,null,null,{"$f":"COUNTIFS(申請額一覧!$E$4:$E$503,C25,申請額一覧!$K$4:$K$503,\">0\")","v":0},null,"か所",null,{"$f":"SUMIF(申請額一覧!$E$4:$E$503,C25,申請額一覧!$K$4:$K$503)","v":0},null,null,null,"円"]
[null,5,"自立訓練（機能訓練）",null,null,null,null,null,null,null,null,null,null,null,null,null,null,null,null,{"$f":"COUNTIFS(申請額一覧!$E$4:$E$503,C26,申請額一覧!$K$4:$K$503,\">0\")","v":0},null,"か所",null,{"$f":"SUMIF(申請額一覧!$E$4:$E$503,C26,申請額一覧!$K$4:$K$503)","v":0},null,null,null,"円"]
[null,6,"自立訓練（生活訓練）",null,null,null,null,null,null,null,null,null,null,null,null,null,null,null,null,{"$f":"COUNTIFS(申請額一覧!$E$4:$E$503,C27,申請額一覧!$K$4:$K$503,\">0\")","v":0},null,"か所",null,{"$f":"SUMIF(申請額一覧!$E$4:$E$503,C27,申請額一覧!$K$4:$K$503)","v":0},null,null,null,"円"]
[null,7,"就労移行支援",null,null,null,null,null,null,null,null,null,null,null,null,null,null,null,null,{"$f":"COUNTIFS(申請額一覧!$E$4:$E$503,C28,申請額一覧!$K$4:$K$503,\">0\")","v":0},null,"か所",null,{"$f":"SUMIF(申請額一覧!$E$4:$E$503,C28,申請額一覧!$K$4:$K$503)","v":0},null,null,null,"円"]
[null,8,"就労継続支援Ａ型",null,null,null,null,null,null,null,null,null,null,null,null,null,null,null,null,{"$f":"COUNTIFS(申請額一覧!$E$4:$E$503,C29,申請額一覧!$K$4:$K$503,\">0\")","v":0},null,"か所",null,{"$f":"SUMIF(申請額一覧!$E$4:$E$503,C29,申請額一覧!$K$4:$K$503)","v":0},null,null,null,"円"]
[null,9,"就労継続支援Ｂ型",null,null,null,null,null,null,null,null,null,null,null,null,null,null,null,null,{"$f":"COUNTIFS(申請額一覧!$E$4:$E$503,C30,申請額一覧!$K$4:$K$503,\">0\")","v":0},null,"か所",null,{"$f":"SUMIF(申請額一覧!$E$4:$E$503,C30,申請額一覧!$K$4:$K$503)","v":0},null,null,null,"円"]
[null,10,"就労定着支援",null,null,null,null,null,null,null,null,null,null,null,null,null,null,null,null,{"$f":"COUNTIFS(申請額一覧!$E$4:$E$503,C31,申請額一覧!$K$4:$K$503,\">0\")","v":0},null,"か所",null,{"$f":"SUMIF(申請額一覧!$E$4:$E$503,C31,申請額一覧!$K$4:$K$503)","v":0},null,null,null,"円"]
[null,11,"自立生活援助",null,null,null,null,null,null,null,null,null,null,null,null,null,null,null,null,{"$f":"COUNTIFS(申請額一覧!$E$4:$E$503,C32,申請額一覧!$K$4:$K$503,\">0\")","v":0},null,"か所",null,{"$f":"SUMIF(申請額一覧!$E$4:$E$503,C32,申請額一覧!$K$4:$K$503)","v":0},null,null,null,"円"]
[null,12,"児童発達支援",null,null,null,null,null,null,null,null,null,null,null,null,null,null,null,null,{"$f":"COUNTIFS(申請額一覧!$E$4:$E$503,C33,申請額一覧!$K$4:$K$503,\">0\")","v":0},null,"か所",null,{"$f":"SUMIF(申請額一覧!$E$4:$E$503,C33,申請額一覧!$K$4:$K$503)","v":0},null,null,null,"円"]
[null,13,"医療型児童発達支援",null,null,null,null,null,null,null,null,null,null,null,null,null,null,null,null,{"$f":"COUNTIFS(申請額一覧!$E$4:$E$503,C34,申請額一覧!$K$4:$K$503,\">0\")","v":0},null,"か所",null,{"$f":"SUMIF(申請額一覧!$E$4:$E$503,C34,申請額一覧!$K$4:$K$503)","v":0},null,null,null,"円"]
[null,14,"放課後等デイサービス",null,null,null,null,null,null,null,null,null,null,null,null,null,null,null,null,{"$f":"COUNTIFS(申請額一覧!$E$4:$E$503,C35,申請額一覧!$K$4:$K$503,\">0\")","v":0},null,"か所",null,{"$f":"SUMIF(申請額一覧!$E$4:$E$503,C35,申請額一覧!$K$4:$K$503)","v":0},null,null,null,"円"]
["小　　計",null,null,null,null,null,null,null,null,null,null,null,null,null,null,null,null,null,null,{"$f":"SUM(T22:U35)","v":0},null,"か所",null,{"$f":"SUM(X22:AA35)","v":0},null,null,null,"円"]
["短期入所",15,"短期入所",null,null,null,null,null,null,null,null,null,null,null,null,null,null,null,null,{"$f":"COUNTIFS(申請額一覧!$E$4:$E$503,C37,申請額一覧!$K$4:$K$503,\">0\")","v":0},null,"か所",null,{"$f":"SUMIF(申請額一覧!$E$4:$E$503,C37,申請額一覧!$K$4:$K$503)","v":0},null,null,null,"円"]
["小　　計",null,null,null,null,null,null,null,null,null,null,null,null,null,null,null,null,null,null,{"$f":"SUM(T37)","v":0},null,"か所",null,{"$f":"SUM(X37)","v":0},null,null,null,"円"]
["入所・居住系",16,"施設入所支援（定員40人以下）",null,null,null,null,null,null,null,null,null,null,null,null,null,null,null,null,{"$f":"COUNTIFS(申請額一覧!$E$4:$E$503,C39,申請額一覧!$K$4:$K$503,\">0\")","v":0},null,"か所",null,{"$f":"SUMIF(申請額一覧!$E$4:$E$503,C39,申請額一覧!$K$4:$K$503)","v":0},null,null,null,"円"]
[null,17,"施設入所支援（定員41人～60人）",null,null,null,null,null,null,null,null,null,null,null,null,null,null,null,null,{"$f":"COUNTIFS(申請額一覧!$E$4:$E$503,C40,申請額一覧!$K$4:$K$503,\">0\")","v":0},null,"か所",null,{"$f":"SUMIF(申請額一覧!$E$4:$E$503,C40,申請額一覧!$K$4:$K$503)","v":0},null,null,null,"円"]
[null,18,"施設入所支援（定員61人以上）",null,null,null,null,null,null,null,null,null,null,null,null,null,null,null,null,{"$f":"COUNTIFS(申請額一覧!$E$4:$E$503,C41,申請額一覧!$K$4:$K$503,\">0\")","v":0},null,"か所",null,{"$f":"SUMIF(申請額一覧!$E$4:$E$503,C41,申請額一覧!$K$4:$K$503)","v":0},null,null,null,"円"]
[null,19,"共同生活援助（介護サービス包括型）",null,null,null,null,null,null,null,null,null,null,null,null,null,null,null,null,{"$f":"COUNTIFS(申請額一覧!$E$4:$E$503,C42,申請額一覧!$K$4:$K$503,\">0\")","v":0},null,"か所",null,{"$f":"SUMIF(申請額一覧!$E$4:$E$503,C42,申請額一覧!$K$4:$K$503)","v":0},null,null,null,"円"]
[null,20,"共同生活援助（日中サービス支援型）",null,null,null,null,null,null,null,null,null,null,null,null,null,null,null,null,{"$f":"COUNTIFS(申請額一覧!$E$4:$E$503,C43,申請額一覧!$K$4:$K$503,\">0\")","v":0},null,"か所",null,{"$f":"SUMIF(申請額一覧!$E$4:$E$503,C43,申請額一覧!$K$4:$K$503)","v":0},null,null,null,"円"]
[null,21,"共同生活援助（外部サービス利用型）",null,null,null,null,null,null,null,null,null,null,null,null,null,null,null,null,{"$f":"COUNTIFS(申請額一覧!$E$4:$E$503,C44,申請額一覧!$K$4:$K$503,\">0\")","v":0},null,"か所",null,{"$f":"SUMIF(申請額一覧!$E$4:$E$503,C44,申請額一覧!$K$4:$K$503)","v":0},null,null,null,"円"]
[null,22,"福祉型障害児入所施設（定員40人以下）",null,null,null,null,null,null,null,null,null,null,null,null,null,null,null,null,{"$f":"COUNTIFS(申請額一覧!$E$4:$E$503,C45,申請額一覧!$K$4:$K$503,\">0\")","v":0},null,"か所",null,{"$f":"SUMIF(申請額一覧!$E$4:$E$503,C45,申請額一覧!$K$4:$K$503)","v":0},null,null,null,"円"]
[null,23,"福祉型障害児入所施設（定員41人～60人）",null,null,null,null,null,null,null,null,null,null,null,null,null,null,null,null,{"$f":"COUNTIFS(申請額一覧!$E$4:$E$503,C46,申請額一覧!$K$4:$K$503,\">0\")","v":0},null,"か所",null,{"$f":"SUMIF(申請額一覧!$E$4:$E$503,C46,申請額一覧!$K$4:$K$503)","v":0},null,null,null,"円"]
[null,24,"福祉型障害児入所施設（定員61人以上）",null,null,null,null,null,null,null,null,null,null,null,null,null,null,null,null,{"$f":"COUNTIFS(申請額一覧!$E$4:$E$503,C47,申請額一覧!$K$4:$K$503,\">0\")","v":0},null,"か所",null,{"$f":"SUMIF(申請額一覧!$E$4:$E$503,C47,申請額一覧!$K$4:$K$503)","v":0},null,null,null,"円"]
[null,25,"医療型障害児入所施設（定員40人以下）",null,null,null,null,null,null,null,null,null,null,null,null,null,null,null,null,{"$f":"COUNTIFS(申請額一覧!$E$4:$E$503,C48,申請額一覧!$K$4:$K$503,\">0\")","v":0},null,"か所",null,{"$f":"SUMIF(申請額一覧!$E$4:$E$503,C48,申請額一覧!$K$4:$K$503)","v":0},null,null,null,"円"]
[null,26,"医療型障害児入所施設（定員41人～60人）",null,null,null,null,null,null,null,null,null,null,null,null,null,null,null,null,{"$f":"COUNTIFS(申請額一覧!$E$4:$E$503,C49,申請額一覧!$K$4:$K$503,\">0\")","v":0},null,"か所",null,{"$f":"SUMIF(申請額一覧!$E$4:$E$503,C49,申請額一覧!$K$4:$K$503)","v":0},null,null,null,"円"]
[null,27,"医療型障害児入所施設（定員61人以上）",null,null,null,null,null,null,null,null,null,null,null,null,null,null,null,null,{"$f":"COUNTIFS(申請額一覧!$E$4:$E$503,C50,申請額一覧!$K$4:$K$503,\">0\")","v":0},null,"か所",null,{"$f":"SUMIF(申請額一覧!$E$4:$E$503,C50,申請額一覧!$K$4:$K$503)","v":0},null,null,null,"円"]
["小　　計",null,null,null,null,null,null,null,null,null,null,null,null,null,null,null,null,null,null,{"$f":"SUM(T39:U50)","v":0},null,"か所",null,{"$f":"SUM(X39:AA50)","v":0},null,null,null,"円"]
["訪問系",28,"居宅介護",null,null,null,null,null,null,null,null,null,null,null,null,null,null,null,null,{"$f":"COUNTIFS(申請額一覧!$E$4:$E$503,C52,申請額一覧!$K$4:$K$503,\">0\")","v":0},null,"か所",null,{"$f":"SUMIF(申請額一覧!$E$4:$E$503,C52,申請額一覧!$K$4:$K$503)","v":0},null,null,null,"円"]
[null,29,"重度訪問介護",null,null,null,null,null,null,null,null,null,null,null,null,null,null,null,null,{"$f":"COUNTIFS(申請額一覧!$E$4:$E$503,C53,申請額一覧!$K$4:$K$503,\">0\")","v":0},null,"か所",null,{"$f":"SUMIF(申請額一覧!$E$4:$E$503,C53,申請額一覧!$K$4:$K$503)","v":0},null,null,null,"円"]
[null,30,"同行援護",null,null,null,null,null,null,null,null,null,null,null,null,null,null,null,null,{"$f":"COUNTIFS(申請額一覧!$E$4:$E$503,C54,申請額一覧!$K$4:$K$503,\">0\")","v":0},null,"か所",null,{"$f":"SUMIF(申請額一覧!$E$4:$E$503,C54,申請額一覧!$K$4:$K$503)","v":0},null,null,null,"円"]
[null,31,"行動援護",null,null,null,null,null,null,null,null,null,null,null,null,null,null,null,null,{"$f":"COUNTIFS(申請額一覧!$E$4:$E$503,C55,申請額一覧!$K$4:$K$503,\">0\")","v":0},null,"か所",null,{"$f":"SUMIF(申請額一覧!$E$4:$E$503,C55,申請額一覧!$K$4:$K$503)","v":0},null,null,null,"円"]
[null,32,"居宅訪問型児童発達支援",null,null,null,null,null,null,null,null,null,null,null,null,null,null,null,null,{"$f":"COUNTIFS(申請額一覧!$E$4:$E$503,C56,申請額一覧!$K$4:$K$503,\">0\")","v":0},null,"か所",null,{"$f":"SUMIF(申請額一覧!$E$4:$E$503,C56,申請額一覧!$K$4:$K$503)","v":0},null,null,null,"円"]
[null,33,"保育所等訪問支援",null,null,null,null,null,null,null,null,null,null,null,null,null,null,null,null,{"$f":"COUNTIFS(申請額一覧!$E$4:$E$503,C57,申請額一覧!$K$4:$K$503,\">0\")","v":0},null,"か所",null,{"$f":"SUMIF(申請額一覧!$E$4:$E$503,C57,申請額一覧!$K$4:$K$503)","v":0},null,null,null,"円"]
["小　　計",null,null,null,null,null,null,null,null,null,null,null,null,null,null,null,null,null,null,{"$f":"SUM(T52:U57)","v":0},null,"か所",null,{"$f":"SUM(X52:AA57)","v":0},null,null,null,"円"]
["相談系",34,"計画相談支援",null,null,null,null,null,null,null,null,null,null,null,null,null,null,null,null,{"$f":"COUNTIFS(申請額一覧!$E$4:$E$503,C59,申請額一覧!$K$4:$K$503,\">0\")","v":0},null,"か所",null,{"$f":"SUMIF(申請額一覧!$E$4:$E$503,C59,申請額一覧!$K$4:$K$503)","v":0},null,null,null,"円"]
[null,35,"地域移行支援",null,null,null,null,null,null,null,null,null,null,null,null,null,null,null,null,{"$f":"COUNTIFS(申請額一覧!$E$4:$E$503,C60,申請額一覧!$K$4:$K$503,\">0\")","v":0},null,"か所",null,{"$f":"SUMIF(申請額一覧!$E$4:$E$503,C60,申請額一覧!$K$4:$K$503)","v":0},null,null,null,"円"]
[null,36,"地域定着支援",null,null,null,null,null,null,null,null,null,null,null,null,null,null,null,null,{"$f":"COUNTIFS(申請額一覧!$E$4:$E$503,C61,申請額一覧!$K$4:$K$503,\">0\")","v":0},null,"か所",null,{"$f":"SUMIF(申請額一覧!$E$4:$E$503,C61,申請額一覧!$K$4:$K$503)","v":0},null,null,null,"円"]
[null,37,"障害児相談支援",null,null,null,null,null,null,null,null,null,null,null,null,null,null,null,null,{"$f":"COUNTIFS(申請額一覧!$E$4:$E$503,C62,申請額一覧!$K$4:$K$503,\">0\")","v":0},null,"か所",null,{"$f":"SUMIF(申請額一覧!$E$4:$E$503,C62,申請額一覧!$K$4:$K$503)","v":0},null,null,null,"円"]
["小　　計",null,null,null,null,null,null,null,null,null,null,null,null,null,null,null,null,null,null,{"$f":"SUM(T59:U62)","v":0},null,"か所",null,{"$f":"SUM(X59:AA62)","v":0},null,null,null,"円"]
["合　　計",null,null,null,null,null,null,null,null,null,null,null,null,null,null,null,null,null,null,{"$f":"SUM(T36,T38,T51,T58,T63)","v":0},null,"か所",null,{"$f":"SUM(X36,X38,X51,X58,X63)","v":0},null,null,null,"円"]

{"sheet":"申請額一覧","index":1,"n_rows":153,"n_cols":13,"rows_kept":153,"cut":false,"hidden":false,"merged":[]}
["（様式２）事業所・施設別申請額一覧"]
[null,null,null,null,null,null,null,null,null,null,null,"（単位:円）"]
[null,"No.","事業所・施設名","事業所番号","サービス種別","電話番号","住所","代表となる法人名","基本申請額(a)","特別申請額(b)","申請額計(c)","審査結果\n（都道府県記入）","申請可否"]
[null,{"$f":"ROW()-3","v":1},{"$f":"IF($M4=\"OK\",IFERROR(INDIRECT(\"個票\"&$B4&\"！$L$4\"),\"\"),\"\")","v":""},{"$f":"IF($M4=\"OK\",IFERROR(INDIRECT(ASC(\"個票\"&$B4&\"！$AG$4\")),\"\"),\"\")","v":""},{"$f":"IF($M4=\"OK\",IFERROR(INDIRECT(\"個票\"&$B4&\"！$L$5\"),\"\"),\"\")","v":""},{"$f":"IF($M4=\"OK\",IFERROR(INDIRECT(\"個票\"&$B4&\"！$S$8\"),\"\"),\"\")","v":""},{"$f":"IF($M4=\"OK\",IFERROR(INDIRECT(\"個票\"&$B4&\"！$L$7\"),\"\"),\"\")","v":""},{"$f":"IF($M4=\"OK\",IF(K4>0,総括表!$E$12,\"\"),\"\")","v":""},{"$f":"IF($M4=\"OK\",IFERROR(INDIRECT(\"個票\"&$B4&\"！$AH$11\"),0),0)","v":0},{"$f":"IF($M4=\"OK\",IFERROR(INDIRECT(\"個票\"&$B4&\"！$AH$12\"),0),0)","v":0},{"$f":"I4+J4","v":0},null,{"$f":"IFERROR(INDIRECT(\"個票\"&$B4&\"！$AP$34\"),\"\")","v":"申請できません"}]
[null,{"$f":"ROW()-3","v":2},"","","","","",{"$f":"IF($M5=\"OK\",IF(K5>0,総括表!$E$12,\"\"),\"\")","v":""},{"$f":"IF($M5=\"OK\",IFERROR(INDIRECT(\"個票\"&$B5&\"！$AH$11\"),0),0)","v":0},{"$f":"IF($M5=\"OK\",IFERROR(INDIRECT(\"個票\"&$B5&\"！$AH$12\"),0),0)","v":0},{"$f":"I5+J5","v":0},null,{"$f":"IFERROR(INDIRECT(\"個票\"&$B5&\"！$AP$34\"),\"\")","v":""}]
[null,3,"","","","","",{"$f":"IF($M6=\"OK\",IF(K6>0,総括表!$E$12,\"\"),\"\")","v":""},0,0,0,null,""]
[null,4,"","","","","",{"$f":"IF($M7=\"OK\",IF(K7>0,総括表!$E$12,\"\"),\"\")","v":""},0,0,0,null,""]
[null,5,"","","","","",{"$f":"IF($M8=\"OK\",IF(K8>0,総括表!$E$12,\"\"),\"\")","v":""},0,0,0,null,""]
[null,6,"","","","","",{"$f":"IF($M9=\"OK\",IF(K9>0,総括表!$E$12,\"\"),\"\")","v":""},0,0,0,null,""]
[null,7,"","","","","",{"$f":"IF($M10=\"OK\",IF(K10>0,総括表!$E$12,\"\"),\"\")","v":""},0,0,0,null,""]
[null,8,"","","","","",{"$f":"IF($M11=\"OK\",IF(K11>0,総括表!$E$12,\"\"),\"\")","v":""},0,0,0,null,""]
[null,9,"","","","","",{"$f":"IF($M12=\"OK\",IF(K12>0,総括表!$E$12,\"\"),\"\")","v":""},0,0,0,null,""]
[null,10,"","","","","",{"$f":"IF($M13=\"OK\",IF(K13>0,総括表!$E$12,\"\"),\"\")","v":""},0,0,0,null,""]
[null,11,"","","","","",{"$f":"IF($M14=\"OK\",IF(K14>0,総括表!$E$12,\"\"),\"\")","v":""},0,0,0,null,""]
[null,12,"","","","","",{"$f":"IF($M15=\"OK\",IF(K15>0,総括表!$E$12,\"\"),\"\")","v":""},0,0,0,null,""]
[null,13,"","","","","",{"$f":"IF($M16=\"OK\",IF(K16>0,総括表!$E$12,\"\"),\"\")","v":""},0,0,0,null,""]
[null,14,"","","","","",{"$f":"IF($M17=\"OK\",IF(K17>0,総括表!$E$12,\"\"),\"\")","v":""},0,0,0,null,""]
[null,15,"","","","","",{"$f":"IF($M18=\"OK\",IF(K18>0,総括表!$E$12,\"\"),\"\")","v":""},0,0,0,null,""]
[null,16,"","","","","",{"$f":"IF($M19=\"OK\",IF(K19>0,総括表!$E$12,\"\"),\"\")","v":""},0,0,0,null,""]
[null,17,"","","","","",{"$f":"IF($M20=\"OK\",IF(K20>0,総括表!$E$12,\"\"),\"\")","v":""},0,0,0,null,""]
[null,18,"","","","","",{"$f":"IF($M21=\"OK\",IF(K21>0,総括表!$E$12,\"\"),\"\")","v":""},0,0,0,null,""]
[null,19,"","","","","",{"$f":"IF($M22=\"OK\",IF(K22>0,総括表!$E$12,\"\"),\"\")","v":""},0,0,0,null,""]
[null,20,"","","","","",{"$f":"IF($M23=\"OK\",IF(K23>0,総括表!$E$12,\"\"),\"\")","v":""},0,0,0,null,""]
[null,21,"","","","","",{"$f":"IF($M24=\"OK\",IF(K24>0,総括表!$E$12,\"\"),\"\")","v":""},0,0,0,null,""]
[null,22,"","","","","",{"$f":"IF($M25=\"OK\",IF(K25>0,総括表!$E$12,\"\"),\"\")","v":""},0,0,0,null,""]
[null,23,"","","","","",{"$f":"IF($M26=\"OK\",IF(K26>0,総括表!$E$12,\"\"),\"\")","v":""},0,0,0,null,""]
[null,24,"","","","","",{"$f":"IF($M27=\"OK\",IF(K27>0,総括表!$E$12,\"\"),\"\")","v":""},0,0,0,null,""]
[null,25,"","","","","",{"$f":"IF($M28=\"OK\",IF(K28>0,総括表!$E$12,\"\"),\"\")","v":""},0,0,0,null,""]
[null,26,"","","","","",{"$f":"IF($M29=\"OK\",IF(K29>0,総括表!$E$12,\"\"),\"\")","v":""},0,0,0,null,""]
[null,27,"","","","","",{"$f":"IF($M30=\"OK\",IF(K30>0,総括表!$E$12,\"\"),\"\")","v":""},0,0,0,null,""]
[null,28,"","","","","",{"$f":"IF($M31=\"OK\",IF(K31>0,総括表!$E$12,\"\"),\"\")","v":""},0,0,0,null,""]
[null,29,"","","","","",{"$f":"IF($M32=\"OK\",IF(K32>0,総括表!$E$12,\"\"),\"\")","v":""},0,0,0,null,""]
[null,30,"","","","","",{"$f":"IF($M33=\"OK\",IF(K33>0,総括表!$E$12,\"\"),\"\")","v":""},0,0,0,null,""]
[null,31,"","","","","",{"$f":"IF($M34=\"OK\",IF(K34>0,総括表!$E$12,\"\"),\"\")","v":""},0,0,0,null,""]
[null,32,"","","","","",{"$f":"IF($M35=\"OK\",IF(K35>0,総括表!$E$12,\"\"),\"\")","v":""},0,0,0,null,""]
[null,33,"","","","","",{"$f":"IF($M36=\"OK\",IF(K36>0,総括表!$E$12,\"\"),\"\")","v":""},0,0,0,null,{"$f":"IFERROR(INDIRECT(\"個票\"&$B36&\"！$AP$34\"),\"\")","v":""}]
[null,34,"","","","","",{"$f":"IF($M37=\"OK\",IF(K37>0,総括表!$E$12,\"\"),\"\")","v":""},0,0,0,null,""]
[null,35,"","","","","",{"$f":"IF($M38=\"OK\",IF(K38>0,総括表!$E$12,\"\"),\"\")","v":""},0,0,0,null,""]
[null,36,"","","","","",{"$f":"IF($M39=\"OK\",IF(K39>0,総括表!$E$12,\"\"),\"\")","v":""},0,0,0,null,""]
[null,37,"","","","","",{"$f":"IF($M40=\"OK\",IF(K40>0,総括表!$E$12,\"\"),\"\")","v":""},0,0,0,null,""]
[null,38,"","","","","",{"$f":"IF($M41=\"OK\",IF(K41>0,総括表!$E$12,\"\"),\"\")","v":""},0,0,0,null,""]
[null,39,"","","","","",{"$f":"IF($M42=\"OK\",IF(K42>0,総括表!$E$12,\"\"),\"\")","v":""},0,0,0,null,""]
[null,40,"","","","","",{"$f":"IF($M43=\"OK\",IF(K43>0,総括表!$E$12,\"\"),\"\")","v":""},0,0,0,null,""]
[null,41,"","","","","",{"$f":"IF($M44=\"OK\",IF(K44>0,総括表!$E$12,\"\"),\"\")","v":""},0,0,0,null,""]
[null,42,"","","","","",{"$f":"IF($M45=\"OK\",IF(K45>0,総括表!$E$12,\"\"),\"\")","v":""},0,0,0,null,""]
[null,43,"","","","","",{"$f":"IF($M46=\"OK\",IF(K46>0,総括表!$E$12,\"\"),\"\")","v":""},0,0,0,null,""]
[null,44,"","","","","",{"$f":"IF($M47=\"OK\",IF(K47>0,総括表!$E$12,\"\"),\"\")","v":""},0,0,0,null,""]
[null,45,"","","","","",{"$f":"IF($M48=\"OK\",IF(K48>0,総括表!$E$12,\"\"),\"\")","v":""},0,0,0,null,""]
[null,46,"","","","","",{"$f":"IF($M49=\"OK\",IF(K49>0,総括表!$E$12,\"\"),\"\")","v":""},0,0,0,null,""]
[null,47,"","","","","",{"$f":"IF($M50=\"OK\",IF(K50>0,総括表!$E$12,\"\"),\"\")","v":""},0,0,0,null,""]
[null,48,"","","","","",{"$f":"IF($M51=\"OK\",IF(K51>0,総括表!$E$12,\"\"),\"\")","v":""},0,0,0,null,""]
[null,49,"","","","","",{"$f":"IF($M52=\"OK\",IF(K52>0,総括表!$E$12,\"\"),\"\")","v":""},0,0,0,null,""]
[null,50,"","","","","",{"$f":"IF($M53=\"OK\",IF(K53>0,総括表!$E$12,\"\"),\"\")","v":""},0,0,0,null,""]
[null,51,"","","","","",{"$f":"IF($M54=\"OK\",IF(K54>0,総括表!$E$12,\"\"),\"\")","v":""},0,0,0,null,""]
[null,52,"","","","","",{"$f":"IF($M55=\"OK\",IF(K55>0,総括表!$E$12,\"\"),\"\")","v":""},0,0,0,null,""]
[null,53,"","","","","",{"$f":"IF($M56=\"OK\",IF(K56>0,総括表!$E$12,\"\"),\"\")","v":""},0,0,0,null,""]
[null,54,"","","","","",{"$f":"IF($M57=\"OK\",IF(K57>0,総括表!$E$12,\"\"),\"\")","v":""},0,0,0,null,""]
[null,55,"","","","","",{"$f":"IF($M58=\"OK\",IF(K58>0,総括表!$E$12,\"\"),\"\")","v":""},0,0,0,null,""]
[null,56,"","","","","",{"$f":"IF($M59=\"OK\",IF(K59>0,総括表!$E$12,\"\"),\"\")","v":""},0,0,0,null,""]
[null,57,"","","","","",{"$f":"IF($M60=\"OK\",IF(K60>0,総括表!$E$12,\"\"),\"\")","v":""},0,0,0,null,""]
[null,58,"","","","","",{"$f":"IF($M61=\"OK\",IF(K61>0,総括表!$E$12,\"\"),\"\")","v":""},0,0,0,null,""]
[null,59,"","","","","",{"$f":"IF($M62=\"OK\",IF(K62>0,総括表!$E$12,\"\"),\"\")","v":""},0,0,0,null,""]
[null,60,"","","","","",{"$f":"IF($M63=\"OK\",IF(K63>0,総括表!$E$12,\"\"),\"\")","v":""},0,0,0,null,""]
[null,61,"","","","","",{"$f":"IF($M64=\"OK\",IF(K64>0,総括表!$E$12,\"\"),\"\")","v":""},0,0,0,null,""]
[null,62,"","","","","",{"$f":"IF($M65=\"OK\",IF(K65>0,総括表!$E$12,\"\"),\"\")","v":""},0,0,0,null,""]
[null,63,"","","","","",{"$f":"IF($M66=\"OK\",IF(K66>0,総括表!$E$12,\"\"),\"\")","v":""},0,0,0,null,""]
[null,64,"","","","","",{"$f":"IF($M67=\"OK\",IF(K67>0,総括表!$E$12,\"\"),\"\")","v":""},0,0,0,null,""]
[null,65,{"$f":"IF($M68=\"OK\",IFERROR(INDIRECT(\"個票\"&$B68&\"！$L$4\"),\"\"),\"\")","v":""},{"$f":"IF($M68=\"OK\",IFERROR(INDIRECT(ASC(\"個票\"&$B68&\"！$AG$4\")),\"\"),\"\")","v":""},{"$f":"IF($M68=\"OK\",IFERROR(INDIRECT(\"個票\"&$B68&\"！$L$5\"),\"\"),\"\")","v":""},{"$f":"IF($M68=\"OK\",IFERROR(INDIRECT(\"個票\"&$B68&\"！$S$8\"),\"\"),\"\")","v":""},{"$f":"IF($M68=\"OK\",IFERROR(INDIRECT(\"個票\"&$B68&\"！$L$7\"),\"\"),\"\")","v":""},{"$f":"IF($M68=\"OK\",IF(K68>0,総括表!$E$12,\"\"),\"\")","v":""},0,0,0,null,{"$f":"IFERROR(INDIRECT(\"個票\"&$B68&\"！$AP$34\"),\"\")","v":""}]
[null,{"$f":"ROW()-3","v":66},"","","","","",{"$f":"IF($M69=\"OK\",IF(K69>0,総括表!$E$12,\"\"),\"\")","v":""},{"$f":"IF($M69=\"OK\",IFERROR(INDIRECT(\"個票\"&$B69&\"！$AH$11\"),0),0)","v":0},{"$f":"IF($M69=\"OK\",IFERROR(INDIRECT(\"個票\"&$B69&\"！$AH$12\"),0),0)","v":0},{"$f":"I69+J69","v":0},null,""]
[null,67,"","","","","",{"$f":"IF($M70=\"OK\",IF(K70>0,総括表!$E$12,\"\"),\"\")","v":""},0,0,0,null,""]
[null,68,"","","","","",{"$f":"IF($M71=\"OK\",IF(K71>0,総括表!$E$12,\"\"),\"\")","v":""},0,0,0,null,""]
[null,69,"","","","","",{"$f":"IF($M72=\"OK\",IF(K72>0,総括表!$E$12,\"\"),\"\")","v":""},0,0,0,null,""]
[null,70,"","","","","",{"$f":"IF($M73=\"OK\",IF(K73>0,総括表!$E$12,\"\"),\"\")","v":""},0,0,0,null,""]
[null,71,"","","","","",{"$f":"IF($M74=\"OK\",IF(K74>0,総括表!$E$12,\"\"),\"\")","v":""},0,0,0,null,""]
[null,72,"","","","","",{"$f":"IF($M75=\"OK\",IF(K75>0,総括表!$E$12,\"\"),\"\")","v":""},0,0,0,null,""]
[null,73,"","","","","",{"$f":"IF($M76=\"OK\",IF(K76>0,総括表!$E$12,\"\"),\"\")","v":""},0,0,0,null,""]
[null,74,"","","","","",{"$f":"IF($M77=\"OK\",IF(K77>0,総括表!$E$12,\"\"),\"\")","v":""},0,0,0,null,""]
[null,75,"","","","","",{"$f":"IF($M78=\"OK\",IF(K78>0,総括表!$E$12,\"\"),\"\")","v":""},0,0,0,null,""]
[null,76,"","","","","",{"$f":"IF($M79=\"OK\",IF(K79>0,総括表!$E$12,\"\"),\"\")","v":""},0,0,0,null,""]
[null,77,"","","","","",{"$f":"IF($M80=\"OK\",IF(K80>0,総括表!$E$12,\"\"),\"\")","v":""},0,0,0,null,""]
[null,78,"","","","","",{"$f":"IF($M81=\"OK\",IF(K81>0,総括表!$E$12,\"\"),\"\")","v":""},0,0,0,null,""]
[null,79,"","","","","",{"$f":"IF($M82=\"OK\",IF(K82>0,総括表!$E$12,\"\"),\"\")","v":""},0,0,0,null,""]
[null,80,"","","","","",{"$f":"IF($M83=\"OK\",IF(K83>0,総括表!$E$12,\"\"),\"\")","v":""},0,0,0,null,""]
[null,81,"","","","","",{"$f":"IF($M84=\"OK\",IF(K84>0,総括表!$E$12,\"\"),\"\")","v":""},0,0,0,null,""]
[null,82,"","","","","",{"$f":"IF($M85=\"OK\",IF(K85>0,総括表!$E$12,\"\"),\"\")","v":""},0,0,0,null,""]
[null,83,"","","","","",{"$f":"IF($M86=\"OK\",IF(K86>0,総括表!$E$12,\"\"),\"\")","v":""},0,0,0,null,""]
[null,84,"","","","","",{"$f":"IF($M87=\"OK\",IF(K87>0,総括表!$E$12,\"\"),\"\")","v":""},0,0,0,null,""]
[null,85,"","","","","",{"$f":"IF($M88=\"OK\",IF(K88>0,総括表!$E$12,\"\"),\"\")","v":""},0,0,0,null,""]
[null,86,"","","","","",{"$f":"IF($M89=\"OK\",IF(K89>0,総括表!$E$12,\"\"),\"\")","v":""},0,0,0,null,""]
[null,87,"","","","","",{"$f":"IF($M90=\"OK\",IF(K90>0,総括表!$E$12,\"\"),\"\")","v":""},0,0,0,null,""]
[null,88,"","","","","",{"$f":"IF($M91=\"OK\",IF(K91>0,総括表!$E$12,\"\"),\"\")","v":""},0,0,0,null,{"$f":"IFERROR(INDIRECT(\"個票\"&$B91&\"！$AP$34\"),\"\")","v":""}]
[null,89,"","","","","",{"$f":"IF($M92=\"OK\",IF(K92>0,総括表!$E$12,\"\"),\"\")","v":""},0,0,0,null,""]
[null,90,"","","","","",{"$f":"IF($M93=\"OK\",IF(K93>0,総括表!$E$12,\"\"),\"\")","v":""},0,0,0,null,""]
[null,91,"","","","","",{"$f":"IF($M94=\"OK\",IF(K94>0,総括表!$E$12,\"\"),\"\")","v":""},0,0,0,null,""]
[null,92,"","","","","",{"$f":"IF($M95=\"OK\",IF(K95>0,総括表!$E$12,\"\"),\"\")","v":""},0,0,0,null,""]
[null,93,"","","","","",{"$f":"IF($M96=\"OK\",IF(K96>0,総括表!$E$12,\"\"),\"\")","v":""},0,0,0,null,""]
[null,94,"","","","","",{"$f":"IF($M97=\"OK\",IF(K97>0,総括表!$E$12,\"\"),\"\")","v":""},0,0,0,null,""]
[null,95,"","","","","",{"$f":"IF($M98=\"OK\",IF(K98>0,総括表!$E$12,\"\"),\"\")","v":""},0,0,0,null,""]
[null,96,"","","","","",{"$f":"IF($M99=\"OK\",IF(K99>0,総括表!$E$12,\"\"),\"\")","v":""},0,0,0,null,""]
[null,97,"","","","","",{"$f":"IF($M100=\"OK\",IF(K100>0,総括表!$E$12,\"\"),\"\")","v":""},0,0,0,null,""]
[null,98,"","","","","",{"$f":"IF($M101=\"OK\",IF(K101>0,総括表!$E$12,\"\"),\"\")","v":""},0,0,0,null,""]
[null,99,"","","","","",{"$f":"IF($M102=\"OK\",IF(K102>0,総括表!$E$12,\"\"),\"\")","v":""},0,0,0,null,""]
[null,100,"","","","","",{"$f":"IF($M103=\"OK\",IF(K103>0,総括表!$E$12,\"\"),\"\")","v":""},0,0,0,null,""]
[null,101,"","","","","",{"$f":"IF($M104=\"OK\",IF(K104>0,総括表!$E$12,\"\"),\"\")","v":""},0,0,0,null,""]
[null,102,"","","","","",{"$f":"IF($M105=\"OK\",IF(K105>0,総括表!$E$12,\"\"),\"\")","v":""},0,0,0,null,""]
[null,103,"","","","","",{"$f":"IF($M106=\"OK\",IF(K106>0,総括表!$E$12,\"\"),\"\")","v":""},0,0,0,null,""]
[null,104,"","","","","",{"$f":"IF($M107=\"OK\",IF(K107>0,総括表!$E$12,\"\"),\"\")","v":""},0,0,0,null,""]
[null,105,"","","","","",{"$f":"IF($M108=\"OK\",IF(K108>0,総括表!$E$12,\"\"),\"\")","v":""},0,0,0,null,""]
[null,106,"","","","","",{"$f":"IF($M109=\"OK\",IF(K109>0,総括表!$E$12,\"\"),\"\")","v":""},0,0,0,null,""]
[null,107,"","","","","",{"$f":"IF($M110=\"OK\",IF(K110>0,総括表!$E$12,\"\"),\"\")","v":""},0,0,0,null,""]
[null,108,"","","","","",{"$f":"IF($M111=\"OK\",IF(K111>0,総括表!$E$12,\"\"),\"\")","v":""},0,0,0,null,""]
[null,109,"","","","","",{"$f":"IF($M112=\"OK\",IF(K112>0,総括表!$E$12,\"\"),\"\")","v":""},0,0,0,null,""]
[null,110,"","","","","",{"$f":"IF($M113=\"OK\",IF(K113>0,総括表!$E$12,\"\"),\"\")","v":""},0,0,0,null,""]
[null,111,"","","","","",{"$f":"IF($M114=\"OK\",IF(K114>0,総括表!$E$12,\"\"),\"\")","v":""},0,0,0,null,""]
[null,112,"","","","","",{"$f":"IF($M115=\"OK\",IF(K115>0,総括表!$E$12,\"\"),\"\")","v":""},0,0,0,null,""]
[null,113,"","","","","",{"$f":"IF($M116=\"OK\",IF(K116>0,総括表!$E$12,\"\"),\"\")","v":""},0,0,0,null,""]
[null,114,"","","","","",{"$f":"IF($M117=\"OK\",IF(K117>0,総括表!$E$12,\"\"),\"\")","v":""},0,0,0,null,""]
[null,115,"","","","","",{"$f":"IF($M118=\"OK\",IF(K118>0,総括表!$E$12,\"\"),\"\")","v":""},0,0,0,null,""]
[null,116,"","","","","",{"$f":"IF($M119=\"OK\",IF(K119>0,総括表!$E$12,\"\"),\"\")","v":""},0,0,0,null,""]
[null,117,"","","","","",{"$f":"IF($M120=\"OK\",IF(K120>0,総括表!$E$12,\"\"),\"\")","v":""},0,0,0,null,""]
[null,118,"","","","","",{"$f":"IF($M121=\"OK\",IF(K121>0,総括表!$E$12,\"\"),\"\")","v":""},0,0,0,null,""]
[null,119,"","","","","",{"$f":"IF($M122=\"OK\",IF(K122>0,総括表!$E$12,\"\"),\"\")","v":""},0,0,0,null,""]
[null,120,"","","","","",{"$f":"IF($M123=\"OK\",IF(K123>0,総括表!$E$12,\"\"),\"\")","v":""},0,0,0,null,""]
[null,121,"","","","","",{"$f":"IF($M124=\"OK\",IF(K124>0,総括表!$E$12,\"\"),\"\")","v":""},0,0,0,null,""]
[null,122,"","","","","",{"$f":"IF($M125=\"OK\",IF(K125>0,総括表!$E$12,\"\"),\"\")","v":""},0,0,0,null,""]
[null,123,"","","","","",{"$f":"IF($M126=\"OK\",IF(K126>0,総括表!$E$12,\"\"),\"\")","v":""},0,0,0,null,""]
[null,124,"","","","","",{"$f":"IF($M127=\"OK\",IF(K127>0,総括表!$E$12,\"\"),\"\")","v":""},0,0,0,null,""]
[null,125,"","","","","",{"$f":"IF($M128=\"OK\",IF(K128>0,総括表!$E$12,\"\"),\"\")","v":""},0,0,0,null,""]
[null,126,"","","","","",{"$f":"IF($M129=\"OK\",IF(K129>0,総括表!$E$12,\"\"),\"\")","v":""},0,0,0,null,""]
[null,127,"","","","","",{"$f":"IF($M130=\"OK\",IF(K130>0,総括表!$E$12,\"\"),\"\")","v":""},0,0,0,null,""]
[null,128,"","","","","",{"$f":"IF($M131=\"OK\",IF(K131>0,総括表!$E$12,\"\"),\"\")","v":""},0,0,0,null,""]
[null,129,{"$f":"IF($M132=\"OK\",IFERROR(INDIRECT(\"個票\"&$B132&\"！$L$4\"),\"\"),\"\")","v":""},{"$f":"IF($M132=\"OK\",IFERROR(INDIRECT(ASC(\"個票\"&$B132&\"！$AG$4\")),\"\"),\"\")","v":""},{"$f":"IF($M132=\"OK\",IFERROR(INDIRECT(\"個票\"&$B132&\"！$L$5\"),\"\"),\"\")","v":""},{"$f":"IF($M132=\"OK\",IFERROR(INDIRECT(\"個票\"&$B132&\"！$S$8\"),\"\"),\"\")","v":""},{"$f":"IF($M132=\"OK\",IFERROR(INDIRECT(\"個票\"&$B132&\"！$L$7\"),\"\"),\"\")","v":""},{"$f":"IF($M132=\"OK\",IF(K132>0,総括表!$E$12,\"\"),\"\")","v":""},0,0,0,null,""]
[null,{"$f":"ROW()-3","v":130},"","","","","",{"$f":"IF($M133=\"OK\",IF(K133>0,総括表!$E$12,\"\"),\"\")","v":""},{"$f":"IF($M133=\"OK\",IFERROR(INDIRECT(\"個票\"&$B133&\"！$AH$11\"),0),0)","v":0},{"$f":"IF($M133=\"OK\",IFERROR(INDIRECT(\"個票\"&$B133&\"！$AH$12\"),0),0)","v":0},{"$f":"I133+J133","v":0},null,""]
[null,131,"","","","","",{"$f":"IF($M134=\"OK\",IF(K134>0,総括表!$E$12,\"\"),\"\")","v":""},0,0,0,null,""]
[null,132,"","","","","",{"$f":"IF($M135=\"OK\",IF(K135>0,総括表!$E$12,\"\"),\"\")","v":""},0,0,0,null,""]
[null,133,"","","","","",{"$f":"IF($M136=\"OK\",IF(K136>0,総括表!$E$12,\"\"),\"\")","v":""},0,0,0,null,""]
[null,134,"","","","","",{"$f":"IF($M137=\"OK\",IF(K137>0,総括表!$E$12,\"\"),\"\")","v":""},0,0,0,null,""]
[null,135,"","","","","",{"$f":"IF($M138=\"OK\",IF(K138>0,総括表!$E$12,\"\"),\"\")","v":""},0,0,0,null,""]
[null,136,"","","","","",{"$f":"IF($M139=\"OK\",IF(K139>0,総括表!$E$12,\"\"),\"\")","v":""},0,0,0,null,""]
[null,137,"","","","","",{"$f":"IF($M140=\"OK\",IF(K140>0,総括表!$E$12,\"\"),\"\")","v":""},0,0,0,null,""]
[null,138,"","","","","",{"$f":"IF($M141=\"OK\",IF(K141>0,総括表!$E$12,\"\"),\"\")","v":""},0,0,0,null,""]
[null,139,"","","","","",{"$f":"IF($M142=\"OK\",IF(K142>0,総括表!$E$12,\"\"),\"\")","v":""},0,0,0,null,""]
[null,140,"","","","","",{"$f":"IF($M143=\"OK\",IF(K143>0,総括表!$E$12,\"\"),\"\")","v":""},0,0,0,null,""]
[null,141,"","","","","",{"$f":"IF($M144=\"OK\",IF(K144>0,総括表!$E$12,\"\"),\"\")","v":""},0,0,0,null,""]
[null,142,"","","","","",{"$f":"IF($M145=\"OK\",IF(K145>0,総括表!$E$12,\"\"),\"\")","v":""},0,0,0,null,""]
[null,143,"","","","","",{"$f":"IF($M146=\"OK\",IF(K146>0,総括表!$E$12,\"\"),\"\")","v":""},0,0,0,null,""]
[null,144,"","","","","",{"$f":"IF($M147=\"OK\",IF(K147>0,総括表!$E$12,\"\"),\"\")","v":""},0,0,0,null,""]
[null,145,"","","","","",{"$f":"IF($M148=\"OK\",IF(K148>0,総括表!$E$12,\"\"),\"\")","v":""},0,0,0,null,""]
[null,146,"","","","","",{"$f":"IF($M149=\"OK\",IF(K149>0,総括表!$E$12,\"\"),\"\")","v":""},0,0,0,null,""]
[null,147,"","","","","",{"$f":"IF($M150=\"OK\",IF(K150>0,総括表!$E$12,\"\"),\"\")","v":""},0,0,0,null,""]
[null,148,"","","","","",{"$f":"IF($M151=\"OK\",IF(K151>0,総括表!$E$12,\"\"),\"\")","v":""},0,0,0,null,""]
[null,149,"","","","","",{"$f":"IF($M152=\"OK\",IF(K152>0,総括表!$E$12,\"\"),\"\")","v":""},0,0,0,null,""]
[null,150,"","","","","",{"$f":"IF($M153=\"OK\",IF(K153>0,総括表!$E$12,\"\"),\"\")","v":""},0,0,0,null,""]

{"sheet":"個票1","index":2,"n_rows":114,"n_cols":53,"rows_kept":114,"cut":false,"hidden":false,"merged":[[26,6,26,7],[27,0,27,3],[26,0,26,5],[1,0,8,0],[10,20,10,23],[11,20,11,23],[1,1,1,10],[1,11,1,13],[2,11,2,31],[5,16,5,17],[5,19,5,21],[7,18,7,24],[5,28,5,38],[7,32,7,38],[6,11,6,38],[3,11,3,31],[12,10,12,38],[10,24,10,27],[10,29,10,32],[11,29,11,32],[10,33,10,36],[11,33,11,36],[11,24,11,27],[33,41,34,48],[24,18,25,24],[24,25,25,38],[24,41,25,41],[26,8,26,15],[26,16,27,17],[26,18,27,18],[26,19,27,19],[26,20,27,20],[26,21,27,21],[26,22,27,22],[26,23,27,23],[26,24,27,24],[26,25,26,38],[27,8,27,12],[27,25,27,38],[16,0,16,38],[4,41,4,45],[3,41,3,45],[5,45,6,45],[8,11,8,38],[13,0,13,4],[13,5,13,9],[13,10,13,38],[14,0,14,4],[14,5,14,9],[14,10,14,38],[10,37,10,38],[11,37,11,38],[5,1,6,10],[12,0,12,4],[12,5,12,9],[2,32,2,38],[3,32,3,38],[4,11,4,27],[4,28,4,31],[4,37,4,38],[4,32,4,36],[17,0,18,0],[23,0,23,38],[17,1,18,38],[17,41,18,41],[24,0,25,7],[24,8,25,15],[24,16,25,17],[21,1,21,38],[20,1,20,38],[19,1,19,38],[29,0,30,8],[29,9,30,14],[29,15,32,16],[29,17,30,24],[29,25,30,38],[31,25,31,38],[32,25,32,38],[29,41,30,41],[31,0,32,8],[31,9,32,9],[31,10,32,10],[31,11,32,11],[31,12,32,12],[31,13,32,13],[31,14,32,14],[31,17,32,17],[31,18,32,18],[31,19,32,19],[31,20,32,20],[31,21,32,21],[31,22,32,22],[31,23,32,23],[31,24,32,24]]}
["(様式３）事業所・施設別個票"]
["事業所・施設の状況","個票番号",null,null,null,null,null,null,null,null,null,{"$f":"MID(RIGHT(CELL(\"filename\",A1),LEN(CELL(\"filename\",A1))-FIND(\"]\",CELL(\"filename\",A1))),3,LEN(RIGHT(CELL(\"filename\",A1),LEN(CELL(\"filename\",A1))-FIND(\"]\",CELL(\"filename\",A1))))-2)","v":"1"}]
[null,"フリガナ",null,null,null,null,null,null,null,null,null,null,null,null,null,null,null,null,null,null,null,null,null,null,null,null,null,null,null,null,null,null,"事業所番号"]
[null,"事業所・施設の名称"]
[null,"サービス種別",null,null,null,null,null,null,null,null,null,null,null,null,null,null,null,null,null,null,null,null,null,null,null,null,null,null,"定員",null,null,null,null,null,null,null,null,"人"]
[null,"事業所・施設の所在地",null,null,null,null,null,null,null,null,null,"（郵便番号",null,null,null,null,null,null,"‐",null,null,null,"）"]
[]
[null,"連絡先",null,null,null,null,null,null,null,null,null,"電話番号",null,null,null,null,null,null,null,null,null,null,null,null,null,"E-mail"]
[null,"管理者の氏名"]
[]
["＜積算内訳＞",null,null,null,null,null,null,null,null,null,null,null,null,null,null,null,null,null,null,null,"国基準単価",null,null,null,{"$f":"IF(L5=\"\",\"\",VLOOKUP(L5,$AY$34:$AZ$70,2,0))","v":""},null,null,null,"円","基本申請額",null,null,null,{"$f":"MIN(Y11,ROUNDDOWN($F$14,-3))","v":0},null,null,null,"円",null,null,null,{"$f":"IF(AH11>=1000,\"OK\",\"申請できません\")","v":"申請できません"}]
[null,null,null,null,null,null,null,null,null,null,null,null,null,null,null,null,null,null,null,null,"県基準単価",null,null,null,{"$f":"IF(L5=\"\",\"\",VLOOKUP(L5,$AY$34:$BA$70,3,0))","v":""},null,null,null,"円","特別申請額",null,null,null,{"$f":"IF(AH11=0,0,MIN(Y12,ROUNDDOWN($F$14+$F$15-AH11,-3)))","v":0},null,null,null,"円",null,null,null,{"$f":"IF(AP11=\"OK\",IF(AH12>=1000,\"OK\",\"申請できません\"),\"申請できません\")","v":"申請できません"}]
["区分",null,null,null,null,"所要額(円)",null,null,null,null,"備考"]
["基本対象経費所要額",null,null,null,null,{"$f":"SUMIF(領収証一覧!$I$4:$I$1003,L2,領収証一覧!$G$4:$G$1003)","v":0}]
["特別対象経費所要額",null,null,null,null,{"$f":"SUMIF(領収証一覧!$I$4:$I$1003,L2,領収証一覧!$H$4:$H$1003)","v":0}]
[]
["誓　約　事　項",null,null,null,null,null,null,null,null,null,null,null,null,null,null,null,null,null,null,null,null,null,null,null,null,null,null,null,null,null,null,null,null,null,null,null,null,null,null,null,null,{"$f":"IF(COUNTIF(A18:A22,\"○\")=4,\"OK\",\"NG\")","v":"NG"}]
[null,"令和３年度新型コロナウイルス感染症感染拡大防止継続支援補助金及び令和３年度新型コロナウイルス感染症流行下における介護サービス事業所等のサービス提供体制確保事業における介護サービス事業所・施設における感染防止対策支援事業の助成金交付を受けていない。"]
[]
[null,"この補助事業と対象経費を重複して、他の助成金を受けていない。"]
[null,"この補助事業に係る収入及び支出等に係る証拠書類を適切に整備保管する。"]
[null,"サービス種別・申請金額等の申請内容に相違ない。\nまた、申請に係る物品等は、令和3年10月1日から12月31日までの間に発注して購入が確定したものである。"]
[]
["受取口座情報",null,null,null,null,null,null,null,null,null,null,null,null,null,null,null,null,null,null,null,null,null,null,null,null,null,null,null,null,null,null,null,null,null,null,null,null,null,null,null,null,{"$f":"IF(COUNTIF(AP25,\"OK\")+COUNTIF(AP30,\"OK\")=1,\"OK\",\"NG\")","v":"NG"}]
["金融機関名\n（ゆうちょ銀行を除く）",null,null,null,null,null,null,null,"支店名",null,null,null,null,null,null,null,"分類",null,"口座番号\n（右詰めでお書きください）",null,null,null,null,null,null,"（フリガナ）\n口座名義",null,null,null,null,null,null,null,null,null,null,null,null,null,null,null,{"$f":"IF(COUNTIF(A27,\"*\")+COUNT(H28)+COUNTIF(I27,\"*\")+COUNT(P28,Y27)+COUNTIF(Z27,\"*\")+COUNTIF(Z28,\"*\")+COUNTIF(G27,\"*\")+COUNTIF(Q27,\"*\")=9,\"OK\",\"NG\")","v":"NG"}]
[]
[]
["金融機関コード",null,null,null,null,null,null,null,"支店コード"]
[]
["ゆうちょ銀行",null,null,null,null,null,null,null,null,"通帳記号\n（６桁目がある場合は、※欄に御記入ください。）",null,null,null,null,null,null,null,"口座番号\n（右詰めでお書きください）",null,null,null,null,null,null,null,"（フリガナ）\n口座名義",null,null,null,null,null,null,null,null,null,null,null,null,null,null,null,{"$f":"IF(COUNT(N32,Y32)+COUNTIF(Z32,\"*\")+COUNTIF(Z33,\"*\")=4,\"OK\",\"NG\")","v":"NG"}]
[]
["ゆうちょ銀行を選択された場合は、貯金通帳の見開き左上またはキャッシュカードに記載された記号・番号をお書きください。"]
[null,null,null,null,null,null,null,null,null,null,null,null,null,null,null,null,null,null,null,null,null,null,null,null,null,null,null,null,null,null,null,null,null,null,null,null,null,null,null,null,null,null,null,null,null,null,null,null,null,null,"（サービス種別）"]
[null,null,null,null,null,null,null,null,null,null,null,null,null,null,null,null,null,null,null,null,null,null,null,null,null,null,null,null,null,null,null,null,null,null,null,null,null,null,null,null,null,{"$f":"IF(COUNTIF(AP17,\"OK\")+COUNTIF(AP24,\"OK\")+COUNTIF(AP11,\"OK\")=3,\"OK\",\"申請できません\")","v":"申請できません"},null,null,null,null,null,null,null,null,"療養介護（定員40人以下）",20000,200000]
[null,null,null,null,null,null,null,null,null,null,null,null,null,null,null,null,null,null,null,null,null,null,null,null,null,null,null,null,null,null,null,null,null,null,null,null,null,null,null,null,null,null,null,null,null,null,null,null,null,null,"療養介護（定員41人～60人）",30000,300000]
[null,null,null,null,null,null,null,null,null,null,null,null,null,null,null,null,null,null,null,null,null,null,null,null,null,null,null,null,null,null,null,null,null,null,null,null,null,null,null,null,null,null,null,null,null,null,null,null,null,null,"療養介護（定員61人以上）",40000,400000]
[null,null,null,null,null,null,null,null,null,null,null,null,null,null,null,null,null,null,null,null,null,null,null,null,null,null,null,null,null,null,null,null,null,null,null,null,null,null,null,null,null,null,null,null,null,null,null,null,null,null,"生活介護",14000,140000]
[null,null,null,null,null,null,null,null,null,null,null,null,null,null,null,null,null,null,null,null,null,null,null,null,null,null,null,null,null,null,null,null,null,null,null,null,null,null,null,null,null,null,null,null,null,null,null,null,null,null,"自立訓練（機能訓練）",7000,70000]
[null,null,null,null,null,null,null,null,null,null,null,null,null,null,null,null,null,null,null,null,null,null,null,null,null,null,null,null,null,null,null,null,null,null,null,null,null,null,null,null,null,null,null,null,null,null,null,null,null,null,"自立訓練（生活訓練）",7000,70000]
[null,null,null,null,null,null,null,null,null,null,null,null,null,null,null,null,null,null,null,null,null,null,null,null,null,null,null,null,null,null,null,null,null,null,null,null,null,null,null,null,null,null,null,null,null,null,null,null,null,null,"就労移行支援",7000,70000]
[null,null,null,null,null,null,null,null,null,null,null,null,null,null,null,null,null,null,null,null,null,null,null,null,null,null,null,null,null,null,null,null,null,null,null,null,null,null,null,null,null,null,null,null,null,null,null,null,null,null,"就労継続支援Ａ型",7000,70000]
[null,null,null,null,null,null,null,null,null,null,null,null,null,null,null,null,null,null,null,null,null,null,null,null,null,null,null,null,null,null,null,null,null,null,null,null,null,null,null,null,null,null,null,null,null,null,null,null,null,null,"就労継続支援Ｂ型",7000,70000]
[null,null,null,null,null,null,null,null,null,null,null,null,null,null,null,null,null,null,null,null,null,null,null,null,null,null,null,null,null,null,null,null,null,null,null,null,null,null,null,null,null,null,null,null,null,null,null,null,null,null,"就労定着支援",3000,50000]
[null,null,null,null,null,null,null,null,null,null,null,null,null,null,null,null,null,null,null,null,null,null,null,null,null,null,null,null,null,null,null,null,null,null,null,null,null,null,null,null,null,null,null,null,null,null,null,null,null,null,"自立生活援助",3000,50000]
[null,null,null,null,null,null,null,null,null,null,null,null,null,null,null,null,null,null,null,null,null,null,null,null,null,null,null,null,null,null,null,null,null,null,null,null,null,null,null,null,null,null,null,null,null,null,null,null,null,null,"児童発達支援",7000,70000]
[null,null,null,null,null,null,null,null,null,null,null,null,null,null,null,null,null,null,null,null,null,null,null,null,null,null,null,null,null,null,null,null,null,null,null,null,null,null,null,null,null,null,null,null,null,null,null,null,null,null,"医療型児童発達支援",7000,70000]
[null,null,null,null,null,null,null,null,null,null,null,null,null,null,null,null,null,null,null,null,null,null,null,null,null,null,null,null,null,null,null,null,null,null,null,null,null,null,null,null,null,null,null,null,null,null,null,null,null,null,"放課後等デイサービス",7000,70000]
[null,null,null,null,null,null,null,null,null,null,null,null,null,null,null,null,null,null,null,null,null,null,null,null,null,null,null,null,null,null,null,null,null,null,null,null,null,null,null,null,null,null,null,null,null,null,null,null,null,null,"短期入所",7000,70000]
[null,null,null,null,null,null,null,null,null,null,null,null,null,null,null,null,null,null,null,null,null,null,null,null,null,null,null,null,null,null,null,null,null,null,null,null,null,null,null,null,null,null,null,null,null,null,null,null,null,null,"施設入所支援（定員40人以下）",20000,200000]
[null,null,null,null,null,null,null,null,null,null,null,null,null,null,null,null,null,null,null,null,null,null,null,null,null,null,null,null,null,null,null,null,null,null,null,null,null,null,null,null,null,null,null,null,null,null,null,null,null,null,"施設入所支援（定員41人～60人）",30000,300000]
[null,null,null,null,null,null,null,null,null,null,null,null,null,null,null,null,null,null,null,null,null,null,null,null,null,null,null,null,null,null,null,null,null,null,null,null,null,null,null,null,null,null,null,null,null,null,null,null,null,null,"施設入所支援（定員61人以上）",40000,400000]
[null,null,null,null,null,null,null,null,null,null,null,null,null,null,null,null,null,null,null,null,null,null,null,null,null,null,null,null,null,null,null,null,null,null,null,null,null,null,null,null,null,null,null,null,null,null,null,null,null,null,"共同生活援助（介護サービス包括型）",7000,70000]
[null,null,null,null,null,null,null,null,null,null,null,null,null,null,null,null,null,null,null,null,null,null,null,null,null,null,null,null,null,null,null,null,null,null,null,null,null,null,null,null,null,null,null,null,null,null,null,null,null,null,"共同生活援助（日中サービス支援型）",7000,70000]
[null,null,null,null,null,null,null,null,null,null,null,null,null,null,null,null,null,null,null,null,null,null,null,null,null,null,null,null,null,null,null,null,null,null,null,null,null,null,null,null,null,null,null,null,null,null,null,null,null,null,"共同生活援助（外部サービス利用型）",7000,70000]
[null,null,null,null,null,null,null,null,null,null,null,null,null,null,null,null,null,null,null,null,null,null,null,null,null,null,null,null,null,null,null,null,null,null,null,null,null,null,null,null,null,null,null,null,null,null,null,null,null,null,"福祉型障害児入所施設（定員40人以下）",20000,200000]
[null,null,null,null,null,null,null,null,null,null,null,null,null,null,null,null,null,null,null,null,null,null,null,null,null,null,null,null,null,null,null,null,null,null,null,null,null,null,null,null,null,null,null,null,null,null,null,null,null,null,"福祉型障害児入所施設（定員41人～60人）",30000,300000]
[null,null,null,null,null,null,null,null,null,null,null,null,null,null,null,null,null,null,null,null,null,null,null,null,null,null,null,null,null,null,null,null,null,null,null,null,null,null,null,null,null,null,null,null,null,null,null,null,null,null,"福祉型障害児入所施設（定員61人以上）",40000,400000]
[null,null,null,null,null,null,null,null,null,null,null,null,null,null,null,null,null,null,null,null,null,null,null,null,null,null,null,null,null,null,null,null,null,null,null,null,null,null,null,null,null,null,null,null,null,null,null,null,null,null,"医療型障害児入所施設（定員40人以下）",20000,200000]
[null,null,null,null,null,null,null,null,null,null,null,null,null,null,null,null,null,null,null,null,null,null,null,null,null,null,null,null,null,null,null,null,null,null,null,null,null,null,null,null,null,null,null,null,null,null,null,null,null,null,"医療型障害児入所施設（定員41人～60人）",30000,300000]
[null,null,null,null,null,null,null,null,null,null,null,null,null,null,null,null,null,null,null,null,null,null,null,null,null,null,null,null,null,null,null,null,null,null,null,null,null,null,null,null,null,null,null,null,null,null,null,null,null,null,"医療型障害児入所施設（定員61人以上）",40000,400000]
[null,null,null,null,null,null,null,null,null,null,null,null,null,null,null,null,null,null,null,null,null,null,null,null,null,null,null,null,null,null,null,null,null,null,null,null,null,null,null,null,null,null,null,null,null,null,null,null,null,null,"居宅介護",3000,50000]
[null,null,null,null,null,null,null,null,null,null,null,null,null,null,null,null,null,null,null,null,null,null,null,null,null,null,null,null,null,null,null,null,null,null,null,null,null,null,null,null,null,null,null,null,null,null,null,null,null,null,"重度訪問介護",3000,50000]
[null,null,null,null,null,null,null,null,null,null,null,null,null,null,null,null,null,null,null,null,null,null,null,null,null,null,null,null,null,null,null,null,null,null,null,null,null,null,null,null,null,null,null,null,null,null,null,null,null,null,"同行援護",3000,50000]
[null,null,null,null,null,null,null,null,null,null,null,null,null,null,null,null,null,null,null,null,null,null,null,null,null,null,null,null,null,null,null,null,null,null,null,null,null,null,null,null,null,null,null,null,null,null,null,null,null,null,"行動援護",3000,50000]
[null,null,null,null,null,null,null,null,null,null,null,null,null,null,null,null,null,null,null,null,null,null,null,null,null,null,null,null,null,null,null,null,null,null,null,null,null,null,null,null,null,null,null,null,null,null,null,null,null,null,"居宅訪問型児童発達支援",3000,50000]
[null,null,null,null,null,null,null,null,null,null,null,null,null,null,null,null,null,null,null,null,null,null,null,null,null,null,null,null,null,null,null,null,null,null,null,null,null,null,null,null,null,null,null,null,null,null,null,null,null,null,"保育所等訪問支援",3000,50000]
[null,null,null,null,null,null,null,null,null,null,null,null,null,null,null,null,null,null,null,null,null,null,null,null,null,null,null,null,null,null,null,null,null,null,null,null,null,null,null,null,null,null,null,null,null,null,null,null,null,null,"計画相談支援",3000,50000]
[null,null,null,null,null,null,null,null,null,null,null,null,null,null,null,null,null,null,null,null,null,null,null,null,null,null,null,null,null,null,null,null,null,null,null,null,null,null,null,null,null,null,null,null,null,null,null,null,null,null,"地域移行支援",3000,50000]
[null,null,null,null,null,null,null,null,null,null,null,null,null,null,null,null,null,null,null,null,null,null,null,null,null,null,null,null,null,null,null,null,null,null,null,null,null,null,null,null,null,null,null,null,null,null,null,null,null,null,"地域定着支援",3000,50000]
[null,null,null,null,null,null,null,null,null,null,null,null,null,null,null,null,null,null,null,null,null,null,null,null,null,null,null,null,null,null,null,null,null,null,null,null,null,null,null,null,null,null,null,null,null,null,null,null,null,null,"障害児相談支援",3000,50000]
[]
[]
[]
[]
[]
[]
[null,null,"基準単価",null,"定員ﾁｪｯｸ","MIN","MAX"]
[1,"療養介護（定員40人以下）",20000,"/事業所","〇",1,40]
[2,"療養介護（定員41人～60人）",30000,"/事業所","〇",41,60]
[3,"療養介護（定員61人以上）",40000,"/事業所","〇",61]
[4,"生活介護",14000,"/事業所"]
[5,"自立訓練（機能訓練）",7000,"/事業所"]
[6,"自立訓練（生活訓練）",7000,"/事業所"]
[7,"就労移行支援",7000,"/事業所"]
[8,"就労継続支援Ａ型",7000,"/事業所"]
[9,"就労継続支援Ｂ型",7000,"/事業所"]
[10,"就労定着支援",3000,"/事業所"]
[11,"自立生活援助",3000,"/事業所"]
[12,"児童発達支援",7000,"/事業所"]
[13,"医療型児童発達支援",7000,"/事業所"]
[14,"放課後等デイサービス",7000,"/事業所"]
[15,"短期入所",7000,"/事業所"]
[16,"施設入所支援（定員40人以下）",20000,"/事業所","〇",1,40]
[17,"施設入所支援（定員41人～60人）",30000,"/事業所","〇",41,60]
[18,"施設入所支援（定員61人以上）",40000,"/事業所","〇",61]
[19,"共同生活援助（介護サービス包括型）",7000,"/事業所"]
[20,"共同生活援助（日中サービス支援型）",7000,"/事業所"]
[21,"共同生活援助（外部サービス利用型）",7000,"/事業所"]
[22,"福祉型障害児入所施設（定員40人以下）",20000,"/事業所","〇",1,40]
[23,"福祉型障害児入所施設（定員41人～60人）",30000,"/事業所","〇",41,60]
[24,"福祉型障害児入所施設（定員61人以上）",40000,"/事業所","〇",61]
[25,"医療型障害児入所施設（定員40人以下）",20000,"/事業所","〇",1,40]
[26,"医療型障害児入所施設（定員41人～60人）",30000,"/事業所","〇",41,60]
[27,"医療型障害児入所施設（定員61人以上）",40000,"/事業所","〇",61]
[28,"居宅介護",3000,"/事業所"]
[29,"重度訪問介護",3000,"/事業所"]
[30,"同行援護",3000,"/事業所"]
[31,"行動援護",3000,"/事業所"]
[32,"居宅訪問型児童発達支援",3000,"/事業所"]
[33,"保育所等訪問支援",3000,"/事業所"]
[34,"計画相談支援",3000,"/事業所"]
[35,"地域移行支援",3000,"/事業所"]
[36,"地域定着支援",3000,"/事業所"]
[37,"障害児相談支援",3000,"/事業所"]

{"sheet":"領収証一覧","index":3,"n_rows":1003,"n_cols":27,"rows_kept":1003,"cut":false,"hidden":false,"merged":[]}
["（様式４）領収証一覧"]
[{"$f":"\"最大領収書番号：\" & MAX(A4:A1003)","v":"最大領収書番号：0"}]
["領収証番号","品目","購入目的・用途","領収証金額","按分額","計上額","基本対象経費所要額（国）","特別対象経費所要額（県）","個票番号","事業所名称","サービス種別",null,"個票\n番号","事業所名","国基準\n申請\n上限額","基本申請額","追加可能\n金額","領収証\n追加","県基準\n申請\n上限額","特別申請額","追加可能\n金額","領収証\n追加"]
[null,null,null,null,null,{"$f":"IF(E4=0,D4,E4)","v":0},null,{"$f":"F4-G4","v":0},null,{"$f":"IF($I4 <> \"\",IFERROR(ASC(INDIRECT(\"個票\"&$I4&\"！$L$4\")),\"個票が存在しません。\"),\"\")","v":""},{"$f":"IFERROR(ASC(INDIRECT(\"個票\"&$I4&\"！$L$5\")),\"\")","v":""},null,1,{"$f":"IFERROR(ASC(INDIRECT(\"個票\"&$M4&\"！$ｌ$4\")),\"\")","v":""},{"$f":"IFERROR(INDIRECT(\"個票\"&$M4&\"！$Y$11\"),\"\")","v":""},{"$f":"IFERROR(INDIRECT(\"個票\"&$M4&\"！$AH$11\"),\"\")","v":0},{"$f":"IF(AND(O4<>\"\",P4<>\"\")=TRUE,O4-P4,\"\")","v":""},{"$f":"IF(O4<>\"\",IF(Q4>0,\"可\",\"\"),\"\")","v":""},{"$f":"IFERROR(INDIRECT(\"個票\"&$M4&\"！$Y$12\"),\"\")","v":""},{"$f":"IFERROR(INDIRECT(\"個票\"&$M4&\"！$AH$12\"),\"\")","v":0},{"$f":"IF(AND(S4<>\"\",T4<>\"\")=TRUE,S4-T4,\"\")","v":""},{"$f":"IF(S4<>\"\",IF(U4>0,\"可\",\"\"),\"\")","v":""},null,null,null,null,{"$f":"OR(A4<>\"\",B4<>\"\",C4<>\"\",D4<>\"\",E4<>\"\",G4<>\"\",I4<>\"\")","v":false}]
[null,null,null,null,null,{"$f":"IF(E5=0,D5,E5)","v":0},null,{"$f":"F5-G5","v":0},null,{"$f":"IF($I5 <> \"\",IFERROR(ASC(INDIRECT(\"個票\"&$I5&\"！$L$4\")),\"個票が存在しません。\"),\"\")","v":""},{"$f":"IFERROR(ASC(INDIRECT(\"個票\"&$I5&\"！$L$5\")),\"\")","v":""},null,2,{"$f":"IFERROR(ASC(INDIRECT(\"個票\"&$M5&\"！$ｌ$4\")),\"\")","v":""},{"$f":"IFERROR(INDIRECT(\"個票\"&$M5&\"！$Y$11\"),\"\")","v":""},{"$f":"IFERROR(INDIRECT(\"個票\"&$M5&\"！$AH$11\"),\"\")","v":""},{"$f":"IF(AND(O5<>\"\",P5<>\"\")=TRUE,O5-P5,\"\")","v":""},{"$f":"IF(O5<>\"\",IF(Q5>0,\"可\",\"\"),\"\")","v":""},{"$f":"IFERROR(INDIRECT(\"個票\"&$M5&\"！$Y$12\"),\"\")","v":""},{"$f":"IFERROR(INDIRECT(\"個票\"&$M5&\"！$AH$12\"),\"\")","v":""},{"$f":"IF(AND(S5<>\"\",T5<>\"\")=TRUE,S5-T5,\"\")","v":""},{"$f":"IF(S5<>\"\",IF(U5>0,\"可\",\"\"),\"\")","v":""},null,null,null,null,{"$f":"OR(A5<>\"\",B5<>\"\",C5<>\"\",D5<>\"\",E5<>\"\",G5<>\"\",I5<>\"\")","v":false}]
[null,null,null,null,null,0,null,0,null,"","",null,3,"","","","","","","","","",null,null,null,null,false]
[null,null,null,null,null,0,null,0,null,"","",null,4,"","","","","","","","","",null,null,null,null,false]
[null,null,null,null,null,0,null,0,null,"","",null,5,"","","","","","","","","",null,null,null,null,false]
[null,null,null,null,null,0,null,0,null,"","",null,6,"","","","","","","","","",null,null,null,null,false]
[null,null,null,null,null,0,null,0,null,"","",null,7,"","","","","","","","","",null,null,null,null,false]
[null,null,null,null,null,0,null,0,null,"","",null,8,"","","","","","","","","",null,null,null,null,false]
[null,null,null,null,null,0,null,0,null,"","",null,9,"","","","","","","","","",null,null,null,null,false]
[null,null,null,null,null,0,null,0,null,"","",null,10,"","","","","","","","","",null,null,null,null,false]
[null,null,null,null,null,0,null,0,null,"","",null,11,"","","","","","","","","",null,null,null,null,false]
[null,null,null,null,null,0,null,0,null,"","",null,12,"","","","","","","","","",null,null,null,null,false]
[null,null,null,null,null,0,null,0,null,"","",null,13,"","","","","","","","","",null,null,null,null,false]
[null,null,null,null,null,0,null,0,null,"","",null,14,"","","","","","","","","",null,null,null,null,false]
[null,null,null,null,null,0,null,0,null,"","",null,15,"","","","","","","","","",null,null,null,null,false]
[null,null,null,null,null,0,null,0,null,"","",null,16,"","","","","","","","","",null,null,null,null,false]
[null,null,null,null,null,0,null,0,null,"","",null,17,"","","","","","","","","",null,null,null,null,false]
[null,null,null,null,null,0,null,0,null,"","",null,18,"","","","","","","","","",null,null,null,null,false]
[null,null,null,null,null,0,null,0,null,"","",null,19,"","","","","","","","","",null,null,null,null,false]
[null,null,null,null,null,0,null,0,null,"","",null,20,"","","","","","","","","",null,null,null,null,false]
[null,null,null,null,null,0,null,0,null,"","",null,21,"","","","","","","","","",null,null,null,null,false]
[null,null,null,null,null,0,null,0,null,"","",null,22,"","","","","","","","","",null,null,null,null,false]
[null,null,null,null,null,0,null,0,null,"","",null,23,"","","","","","","","","",null,null,null,null,false]
[null,null,null,null,null,0,null,0,null,"","",null,24,"","","","","","","","","",null,null,null,null,false]
[null,null,null,null,null,0,null,0,null,"","",null,25,"","","","","","","","","",null,null,null,null,false]
[null,null,null,null,null,0,null,0,null,"","",null,26,"","","","","","","","","",null,null,null,null,false]
[null,null,null,null,null,0,null,0,null,"","",null,27,"","","","","","","","","",null,null,null,null,false]
[null,null,null,null,null,0,null,0,null,"","",null,28,"","","","","","","","","",null,null,null,null,false]
[null,null,null,null,null,0,null,0,null,"","",null,29,"","","","","","","","","",null,null,null,null,false]
[null,null,null,null,null,0,null,0,null,"","",null,30,"","","","","","","","","",null,null,null,null,false]
[null,null,null,null,null,0,null,0,null,"","",null,31,"","","","","","","","","",null,null,null,null,false]
[null,null,null,null,null,0,null,0,null,"","",null,32,"","","","","","","","","",null,null,null,null,false]
[null,null,null,null,null,0,null,0,null,"","",null,33,"","","","","","","","","",null,null,null,null,false]
[null,null,null,null,null,0,null,0,null,"","",null,34,"","","","","","","","","",null,null,null,null,false]
[null,null,null,null,null,0,null,0,null,"","",null,35,"","","","","","","","","",null,null,null,null,false]
[null,null,null,null,null,0,null,0,null,"","",null,36,"","","","","","","","","",null,null,null,null,false]
[null,null,null,null,null,0,null,0,null,"","",null,37,"","","","","","","","","",null,null,null,null,false]
[null,null,null,null,null,0,null,0,null,"","",null,38,"","","","","","","","","",null,null,null,null,false]
[null,null,null,null,null,0,null,0,null,"","",null,39,"","","","","","","","","",null,null,null,null,false]
[null,null,null,null,null,0,null,0,null,"","",null,40,"","","","","","","","","",null,null,null,null,false]
[null,null,null,null,null,0,null,0,null,"","",null,41,"","","","","","","","","",null,null,null,null,false]
[null,null,null,null,null,0,null,0,null,"","",null,42,"","","","","","","","","",null,null,null,null,false]
[null,null,null,null,null,0,null,0,null,"","",null,43,"","","","","","","","","",null,null,null,null,false]
[null,null,null,null,null,0,null,0,null,"","",null,44,"","","","","","","","","",null,null,null,null,false]
[null,null,null,null,null,0,null,0,null,"","",null,45,"","","","","","","","","",null,null,null,null,false]
[null,null,null,null,null,0,null,0,null,"","",null,46,"","","","","","","","","",null,null,null,null,false]
[null,null,null,null,null,0,null,0,null,"","",null,47,"","","","","","","","","",null,null,null,null,false]
[null,null,null,null,null,0,null,0,null,"","",null,48,"","","","","","","","","",null,null,null,null,false]
[null,null,null,null,null,0,null,0,null,"","",null,49,"","","","","","","","","",null,null,null,null,false]
[null,null,null,null,null,0,null,0,null,"","",null,50,"","","","","","","","","",null,null,null,null,false]
[null,null,null,null,null,0,null,0,null,"","",null,null,null,null,null,null,null,null,null,null,null,null,null,null,null,false]
[null,null,null,null,null,0,null,0,null,"","",null,null,null,null,null,null,null,null,null,null,null,null,null,null,null,false]
[null,null,null,null,null,0,null,0,null,"","",null,null,null,null,null,null,null,null,null,null,null,null,null,null,null,false]
[null,null,null,null,null,0,null,0,null,"","",null,null,null,null,null,null,null,null,null,null,null,null,null,null,null,false]
[null,null,null,null,null,0,null,0,null,"","",null,null,null,null,null,null,null,null,null,null,null,null,null,null,null,false]
[null,null,null,null,null,0,null,0,null,"","",null,null,null,null,null,null,null,null,null,null,null,null,null,null,null,false]
[null,null,null,null,null,0,null,0,null,"","",null,null,null,null,null,null,null,null,null,null,null,null,null,null,null,false]
[null,null,null,null,null,0,null,0,null,"","",null,null,null,null,null,null,null,null,null,null,null,null,null,null,null,false]
[null,null,null,null,null,0,null,0,null,"","",null,null,null,null,null,null,null,null,null,null,null,null,null,null,null,false]
[null,null,null,null,null,0,null,0,null,"","",null,null,null,null,null,null,null,null,null,null,null,null,null,null,null,false]
[null,null,null,null,null,0,null,0,null,"","",null,null,null,null,null,null,null,null,null,null,null,null,null,null,null,false]
[null,null,null,null,null,0,null,0,null,"","",null,null,null,null,null,null,null,null,null,null,null,null,null,null,null,false]
[null,null,null,null,null,0,null,0,null,"","",null,null,null,null,null,null,null,null,null,null,null,null,null,null,null,false]
[null,null,null,null,null,0,null,0,null,"","",null,null,null,null,null,null,null,null,null,null,null,null,null,null,null,false]
[null,null,null,null,null,0,null,0,null,"","",null,null,null,null,null,null,null,null,null,null,null,null,null,null,null,false]
[null,null,null,null,null,{"$f":"IF(E69=0,D69,E69)","v":0},null,{"$f":"F69-G69","v":0},null,{"$f":"IF($I69 <> \"\",IFERROR(ASC(INDIRECT(\"個票\"&$I69&\"！$L$4\")),\"個票が存在しません。\"),\"\")","v":""},{"$f":"IFERROR(ASC(INDIRECT(\"個票\"&$I69&\"！$L$5\")),\"\")","v":""},null,null,null,null,null,null,null,null,null,null,null,null,null,null,null,{"$f":"OR(A69<>\"\",B69<>\"\",C69<>\"\",D69<>\"\",E69<>\"\",G69<>\"\",I69<>\"\")","v":false}]
[null,null,null,null,null,0,null,0,null,"","",null,null,null,null,null,null,null,null,null,null,null,null,null,null,null,false]
[null,null,null,null,null,0,null,0,null,"","",null,null,null,null,null,null,null,null,null,null,null,null,null,null,null,false]
[null,null,null,null,null,0,null,0,null,"","",null,null,null,null,null,null,null,null,null,null,null,null,null,null,null,false]
[null,null,null,null,null,0,null,0,null,"","",null,null,null,null,null,null,null,null,null,null,null,null,null,null,null,false]
[null,null,null,null,null,0,null,0,null,"","",null,null,null,null,null,null,null,null,null,null,null,null,null,null,null,false]
[null,null,null,null,null,0,null,0,null,"","",null,null,null,null,null,null,null,null,null,null,null,null,null,null,null,false]
[null,null,null,null,null,0,null,0,null,"","",null,null,null,null,null,null,null,null,null,null,null,null,null,null,null,false]
[null,null,null,null,null,0,null,0,null,"","",null,null,null,null,null,null,null,null,null,null,null,null,null,null,null,false]
[null,null,null,null,null,0,null,0,null,"","",null,null,null,null,null,null,null,null,null,null,null,null,null,null,null,false]
[null,null,null,null,null,0,null,0,null,"","",null,null,null,null,null,null,null,null,null,null,null,null,null,null,null,false]
[null,null,null,null,null,0,null,0,null,"","",null,null,null,null,null,null,null,null,null,null,null,null,null,null,null,false]
[null,null,null,null,null,0,null,0,null,"","",null,null,null,null,null,null,null,null,null,null,null,null,null,null,null,false]
[null,null,null,null,null,0,null,0,null,"","",null,null,null,null,null,null,null,null,null,null,null,null,null,null,null,false]
[null,null,null,null,null,0,null,0,null,"","",null,null,null,null,null,null,null,null,null,null,null,null,null,null,null,false]
[null,null,null,null,null,0,null,0,null,"","",null,null,null,null,null,null,null,null,null,null,null,null,null,null,null,false]
[null,null,null,null,null,0,null,0,null,"","",null,null,null,null,null,null,null,null,null,null,null,null,null,null,null,false]
[null,null,null,null,null,0,null,0,null,"","",null,null,null,null,null,null,null,null,null,null,null,null,null,null,null,false]
[null,null,null,null,null,0,null,0,null,"","",null,null,null,null,null,null,null,null,null,null,null,null,null,null,null,false]
[null,null,null,null,null,0,null,0,null,"","",null,null,null,null,null,null,null,null,null,null,null,null,null,null,null,false]
[null,null,null,null,null,0,null,0,null,"","",null,null,null,null,null,null,null,null,null,null,null,null,null,null,null,false]
[null,null,null,null,null,0,null,0,null,"","",null,null,null,null,null,null,null,null,null,null,null,null,null,null,null,false]
[null,null,null,null,null,0,null,0,null,"","",null,null,null,null,null,null,null,null,null,null,null,null,null,null,null,false]
[null,null,null,null,null,0,null,0,null,"","",null,null,null,null,null,null,null,null,null,null,null,null,null,null,null,false]
[null,null,null,null,null,0,null,0,null,"","",null,null,null,null,null,null,null,null,null,null,null,null,null,null,null,false]
[null,null,null,null,null,0,null,0,null,"","",null,null,null,null,null,null,null,null,null,null,null,null,null,null,null,false]
[null,null,null,null,null,0,null,0,null,"","",null,null,null,null,null,null,null,null,null,null,null,null,null,null,null,false]
[null,null,null,null,null,0,null,0,null,"","",null,null,null,null,null,null,null,null,null,null,null,null,null,null,null,false]
[null,null,null,null,null,0,null,0,null,"","",null,null,null,null,null,null,null,null,null,null,null,null,null,null,null,false]
[null,null,null,null,null,0,null,0,null,"","",null,null,null,null,null,null,null,null,null,null,null,null,null,null,null,false]
[null,null,null,null,null,0,null,0,null,"","",null,null,null,null,null,null,null,null,null,null,null,null,null,null,null,false]
[null,null,null,null,null,0,null,0,null,"","",null,null,null,null,null,null,null,null,null,null,null,null,null,null,null,false]
[null,null,null,null,null,0,null,0,null,"","",null,null,null,null,null,null,null,null,null,null,null,null,null,null,null,false]
[null,null,null,null,null,0,null,0,null,"","",null,null,null,null,null,null,null,null,null,null,null,null,null,null,null,false]
[null,null,null,null,null,0,null,0,null,"","",null,null,null,null,null,null,null,null,null,null,null,null,null,null,null,false]
[null,null,null,null,null,0,null,0,null,"","",null,null,null,null,null,null,null,null,null,null,null,null,null,null,null,false]
[null,null,null,null,null,0,null,0,null,"","",null,null,null,null,null,null,null,null,null,null,null,null,null,null,null,false]
[null,null,null,null,null,0,null,0,null,"","",null,null,null,null,null,null,null,null,null,null,null,null,null,null,null,false]
[null,null,null,null,null,0,null,0,null,"","",null,null,null,null,null,null,null,null,null,null,null,null,null,null,null,false]
[null,null,null,null,null,0,null,0,null,"","",null,null,null,null,null,null,null,null,null,null,null,null,null,null,null,false]
[null,null,null,null,null,0,null,0,null,"","",null,null,null,null,null,null,null,null,null,null,null,null,null,null,null,false]
[null,null,null,null,null,0,null,0,null,"","",null,null,null,null,null,null,null,null,null,null,null,null,null,null,null,false]
[null,null,null,null,null,0,null,0,null,"","",null,null,null,null,null,null,null,null,null,null,null,null,null,null,null,false]
[null,null,null,null,null,0,null,0,null,"","",null,null,null,null,null,null,null,null,null,null,null,null,null,null,null,false]
[null,null,null,null,null,0,null,0,null,"","",null,null,null,null,null,null,null,null,null,null,null,null,null,null,null,false]
[null,null,null,null,null,0,null,0,null,"","",null,null,null,null,null,null,null,null,null,null,null,null,null,null,null,false]
[null,null,null,null,null,0,null,0,null,"","",null,null,null,null,null,null,null,null,null,null,null,null,null,null,null,false]
[null,null,null,null,null,0,null,0,null,"","",null,null,null,null,null,null,null,null,null,null,null,null,null,null,null,false]
[null,null,null,null,null,0,null,0,null,"","",null,null,null,null,null,null,null,null,null,null,null,null,null,null,null,false]
[null,null,null,null,null,0,null,0,null,"","",null,null,null,null,null,null,null,null,null,null,null,null,null,null,null,false]
[null,null,null,null,null,0,null,0,null,"","",null,null,null,null,null,null,null,null,null,null,null,null,null,null,null,false]
[null,null,null,null,null,0,null,0,null,"","",null,null,null,null,null,null,null,null,null,null,null,null,null,null,null,false]
[null,null,null,null,null,0,null,0,null,"","",null,null,null,null,null,null,null,null,null,null,null,null,null,null,null,false]
[null,null,null,null,null,0,null,0,null,"","",null,null,null,null,null,null,null,null,null,null,null,null,null,null,null,false]
[null,null,null,null,null,0,null,0,null,"","",null,null,null,null,null,null,null,null,null,null,null,null,null,null,null,false]
[null,null,null,null,null,0,null,0,null,"","",null,null,null,null,null,null,null,null,null,null,null,null,null,null,null,false]
[null,null,null,null,null,0,null,0,null,"","",null,null,null,null,null,null,null,null,null,null,null,null,null,null,null,false]
[null,null,null,null,null,0,null,0,null,"","",null,null,null,null,null,null,null,null,null,null,null,null,null,null,null,false]
[null,null,null,null,null,0,null,0,null,"","",null,null,null,null,null,null,null,null,null,null,null,null,null,null,null,false]
[null,null,null,null,null,0,null,0,null,"","",null,null,null,null,null,null,null,null,null,null,null,null,null,null,null,false]
[null,null,null,null,null,0,null,0,null,"","",null,null,null,null,null,null,null,null,null,null,null,null,null,null,null,false]
[null,null,null,null,null,0,null,0,null,"","",null,null,null,null,null,null,null,null,null,null,null,null,null,null,null,false]
[null,null,null,null,null,0,null,0,null,"","",null,null,null,null,null,null,null,null,null,null,null,null,null,null,null,false]
[null,null,null,null,null,0,null,0,null,"","",null,null,null,null,null,null,null,null,null,null,null,null,null,null,null,false]
[null,null,null,null,null,{"$f":"IF(E133=0,D133,E133)","v":0},null,{"$f":"F133-G133","v":0},null,{"$f":"IF($I133 <> \"\",IFERROR(ASC(INDIRECT(\"個票\"&$I133&\"！$L$4\")),\"個票が存在しません。\"),\"\")","v":""},{"$f":"IFERROR(ASC(INDIRECT(\"個票\"&$I133&\"！$L$5\")),\"\")","v":""},null,null,null,null,null,null,null,null,null,null,null,null,null,null,null,{"$f":"OR(A133<>\"\",B133<>\"\",C133<>\"\",D133<>\"\",E133<>\"\",G133<>\"\",I133<>\"\")","v":false}]
[null,null,null,null,null,0,null,0,null,"","",null,null,null,null,null,null,null,null,null,null,null,null,null,null,null,false]
[null,null,null,null,null,0,null,0,null,"","",null,null,null,null,null,null,null,null,null,null,null,null,null,null,null,false]
[null,null,null,null,null,0,null,0,null,"","",null,null,null,null,null,null,null,null,null,null,null,null,null,null,null,false]
[null,null,null,null,null,0,null,0,null,"","",null,null,null,null,null,null,null,null,null,null,null,null,null,null,null,false]
[null,null,null,null,null,0,null,0,null,"","",null,null,null,null,null,null,null,null,null,null,null,null,null,null,null,false]
[null,null,null,null,null,0,null,0,null,"","",null,null,null,null,null,null,null,null,null,null,null,null,null,null,null,false]
[null,null,null,null,null,0,null,0,null,"","",null,null,null,null,null,null,null,null,null,null,null,null,null,null,null,false]
[null,null,null,null,null,0,null,0,null,"","",null,null,null,null,null,null,null,null,null,null,null,null,null,null,null,false]
[null,null,null,null,null,0,null,0,null,"","",null,null,null,null,null,null,null,null,null,null,null,null,null,null,null,false]
[null,null,null,null,null,0,null,0,null,"","",null,null,null,null,null,null,null,null,null,null,null,null,null,null,null,false]
[null,null,null,null,null,0,null,0,null,"","",null,null,null,null,null,null,null,null,null,null,null,null,null,null,null,false]
[null,null,null,null,null,0,null,0,null,"","",null,null,null,null,null,null,null,null,null,null,null,null,null,null,null,false]
[null,null,null,null,null,0,null,0,null,"","",null,null,null,null,null,null,null,null,null,null,null,null,null,null,null,false]
[null,null,null,null,null,0,null,0,null,"","",null,null,null,null,null,null,null,null,null,null,null,null,null,null,null,false]
[null,null,null,null,null,0,null,0,null,"","",null,null,null,null,null,null,null,null,null,null,null,null,null,null,null,false]
[null,null,null,null,null,0,null,0,null,"","",null,null,null,null,null,null,null,null,null,null,null,null,null,null,null,false]
[null,null,null,null,null,0,null,0,null,"","",null,null,null,null,null,null,null,null,null,null,null,null,null,null,null,false]
[null,null,null,null,null,0,null,0,null,"","",null,null,null,null,null,null,null,null,null,null,null,null,null,null,null,false]
[null,null,null,null,null,0,null,0,null,"","",null,null,null,null,null,null,null,null,null,null,null,null,null,null,null,false]
[null,null,null,null,null,0,null,0,null,"","",null,null,null,null,null,null,null,null,null,null,null,null,null,null,null,false]
[null,null,null,null,null,0,null,0,null,"","",null,null,null,null,null,null,null,null,null,null,null,null,null,null,null,false]
[null,null,null,null,null,0,null,0,null,"","",null,null,null,null,null,null,null,null,null,null,null,null,null,null,null,false]
[null,null,null,null,null,0,null,0,null,"","",null,null,null,null,null,null,null,null,null,null,null,null,null,null,null,false]
[null,null,null,null,null,0,null,0,null,"","",null,null,null,null,null,null,null,null,null,null,null,null,null,null,null,false]
[null,null,null,null,null,0,null,0,null,"","",null,null,null,null,null,null,null,null,null,null,null,null,null,null,null,false]
[null,null,null,null,null,0,null,0,null,"","",null,null,null,null,null,null,null,null,null,null,null,null,null,null,null,false]
[null,null,null,null,null,0,null,0,null,"","",null,null,null,null,null,null,null,null,null,null,null,null,null,null,null,false]
[null,null,null,null,null,0,null,0,null,"","",null,null,null,null,null,null,null,null,null,null,null,null,null,null,null,false]
[null,null,null,null,null,0,null,0,null,"","",null,null,null,null,null,null,null,null,null,null,null,null,null,null,null,false]
[null,null,null,null,null,0,null,0,null,"","",null,null,null,null,null,null,null,null,null,null,null,null,null,null,null,false]
[null,null,null,null,null,0,null,0,null,"","",null,null,null,null,null,null,null,null,null,null,null,null,null,null,null,false]
[null,null,null,null,null,0,null,0,null,"","",null,null,null,null,null,null,null,null,null,null,null,null,null,null,null,false]
[null,null,null,null,null,0,null,0,null,"","",null,null,null,null,null,null,null,null,null,null,null,null,null,null,null,false]
[null,null,null,null,null,0,null,0,null,"","",null,null,null,null,null,null,null,null,null,null,null,null,null,null,null,false]
[null,null,null,null,null,0,null,0,null,"","",null,null,null,null,null,null,null,null,null,null,null,null,null,null,null,false]
[null,null,null,null,null,0,null,0,null,"","",null,null,null,null,null,null,null,null,null,null,null,null,null,null,null,false]
[null,null,null,null,null,0,null,0,null,"","",null,null,null,null,null,null,null,null,null,null,null,null,null,null,null,false]
[null,null,null,null,null,0,null,0,null,"","",null,null,null,null,null,null,null,null,null,null,null,null,null,null,null,false]
[null,null,null,null,null,0,null,0,null,"","",null,null,null,null,null,null,null,null,null,null,null,null,null,null,null,false]
[null,null,null,null,null,0,null,0,null,"","",null,null,null,null,null,null,null,null,null,null,null,null,null,null,null,false]
[null,null,null,null,null,0,null,0,null,"","",null,null,null,null,null,null,null,null,null,null,null,null,null,null,null,false]
[null,null,null,null,null,0,null,0,null,"","",null,null,null,null,null,null,null,null,null,null,null,null,null,null,null,false]
[null,null,null,null,null,0,null,0,null,"","",null,null,null,null,null,null,null,null,null,null,null,null,null,null,null,false]
[null,null,null,null,null,0,null,0,null,"","",null,null,null,null,null,null,null,null,null,null,null,null,null,null,null,false]
[null,null,null,null,null,0,null,0,null,"","",null,null,null,null,null,null,null,null,null,null,null,null,null,null,null,false]
[null,null,null,null,null,0,null,0,null,"","",null,null,null,null,null,null,null,null,null,null,null,null,null,null,null,false]
[null,null,null,null,null,0,null,0,null,"","",null,null,null,null,null,null,null,null,null,null,null,null,null,null,null,false]
[null,null,null,null,null,0,null,0,null,"","",null,null,null,null,null,null,null,null,null,null,null,null,null,null,null,false]
[null,null,null,null,null,0,null,0,null,"","",null,null,null,null,null,null,null,null,null,null,null,null,null,null,null,false]
[null,null,null,null,null,0,null,0,null,"","",null,null,null,null,null,null,null,null,null,null,null,null,null,null,null,false]
[null,null,null,null,null,0,null,0,null,"","",null,null,null,null,null,null,null,null,null,null,null,null,null,null,null,false]
[null,null,null,null,null,0,null,0,null,"","",null,null,null,null,null,null,null,null,null,null,null,null,null,null,null,false]
[null,null,null,null,null,0,null,0,null,"","",null,null,null,null,null,null,null,null,null,null,null,null,null,null,null,false]
[null,null,null,null,null,0,null,0,null,"","",null,null,null,null,null,null,null,null,null,null,null,null,null,null,null,false]
[null,null,null,null,null,0,null,0,null,"","",null,null,null,null,null,null,null,null,null,null,null,null,null,null,null,false]
[null,null,null,null,null,0,null,0,null,"","",null,null,null,null,null,null,null,null,null,null,null,null,null,null,null,false]
[null,null,null,null,null,0,null,0,null,"","",null,null,null,null,null,null,null,null,null,null,null,null,null,null,null,false]
[null,null,null,null,null,0,null,0,null,"","",null,null,null,null,null,null,null,null,null,null,null,null,null,null,null,false]
[null,null,null,null,null,0,null,0,null,"","",null,null,null,null,null,null,null,null,null,null,null,null,null,null,null,false]
[null,null,null,null,null,0,null,0,null,"","",null,null,null,null,null,null,null,null,null,null,null,null,null,null,null,false]
[null,null,null,null,null,0,null,0,null,"","",null,null,null,null,null,null,null,null,null,null,null,null,null,null,null,false]
[null,null,null,null,null,0,null,0,null,"","",null,null,null,null,null,null,null,null,null,null,null,null,null,null,null,false]
[null,null,null,null,null,0,null,0,null,"","",null,null,null,null,null,null,null,null,null,null,null,null,null,null,null,false]
[null,null,null,null,null,{"$f":"IF(E197=0,D197,E197)","v":0},null,{"$f":"F197-G197","v":0},null,{"$f":"IF($I197 <> \"\",IFERROR(ASC(INDIRECT(\"個票\"&$I197&\"！$L$4\")),\"個票が存在しません。\"),\"\")","v":""},{"$f":"IFERROR(ASC(INDIRECT(\"個票\"&$I197&\"！$L$5\")),\"\")","v":""},null,null,null,null,null,null,null,null,null,null,null,null,null,null,null,{"$f":"OR(A197<>\"\",B197<>\"\",C197<>\"\",D197<>\"\",E197<>\"\",G197<>\"\",I197<>\"\")","v":false}]
[null,null,null,null,null,0,null,0,null,"","",null,null,null,null,null,null,null,null,null,null,null,null,null,null,null,false]
[null,null,null,null,null,0,null,0,null,"","",null,null,null,null,null,null,null,null,null,null,null,null,null,null,null,false]
[null,null,null,null,null,0,null,0,null,"","",null,null,null,null,null,null,null,null,null,null,null,null,null,null,null,false]
[null,null,null,null,null,0,null,0,null,"","",null,null,null,null,null,null,null,null,null,null,null,null,null,null,null,false]
[null,null,null,null,null,0,null,0,null,"","",null,null,null,null,null,null,null,null,null,null,null,null,null,null,null,false]
[null,null,null,null,null,0,null,0,null,"","",null,null,null,null,null,null,null,null,null,null,null,null,null,null,null,false]
[null,null,null,null,null,0,null,0,null,"","",null,null,null,null,null,null,null,null,null,null,null,null,null,null,null,false]
[null,null,null,null,null,0,null,0,null,"","",null,null,null,null,null,null,null,null,null,null,null,null,null,null,null,false]
[null,null,null,null,null,0,null,0,null,"","",null,null,null,null,null,null,null,null,null,null,null,null,null,null,null,false]
[null,null,null,null,null,0,null,0,null,"","",null,null,null,null,null,null,null,null,null,null,null,null,null,null,null,false]
[null,null,null,null,null,0,null,0,null,"","",null,null,null,null,null,null,null,null,null,null,null,null,null,null,null,false]
[null,null,null,null,null,0,null,0,null,"","",null,null,null,null,null,null,null,null,null,null,null,null,null,null,null,false]
[null,null,null,null,null,0,null,0,null,"","",null,null,null,null,null,null,null,null,null,null,null,null,null,null,null,false]
[null,null,null,null,null,0,null,0,null,"","",null,null,null,null,null,null,null,null,null,null,null,null,null,null,null,false]
[null,null,null,null,null,0,null,0,null,"","",null,null,null,null,null,null,null,null,null,null,null,null,null,null,null,false]
[null,null,null,null,null,0,null,0,null,"","",null,null,null,null,null,null,null,null,null,null,null,null,null,null,null,false]
[null,null,null,null,null,0,null,0,null,"","",null,null,null,null,null,null,null,null,null,null,null,null,null,null,null,false]
[null,null,null,null,null,0,null,0,null,"","",null,null,null,null,null,null,null,null,null,null,null,null,null,null,null,false]
[null,null,null,null,null,0,null,0,null,"","",null,null,null,null,null,null,null,null,null,null,null,null,null,null,null,false]
[null,null,null,null,null,0,null,0,null,"","",null,null,null,null,null,null,null,null,null,null,null,null,null,null,null,false]
[null,null,null,null,null,0,null,0,null,"","",null,null,null,null,null,null,null,null,null,null,null,null,null,null,null,false]
[null,null,null,null,null,0,null,0,null,"","",null,null,null,null,null,null,null,null,null,null,null,null,null,null,null,false]
[null,null,null,null,null,0,null,0,null,"","",null,null,null,null,null,null,null,null,null,null,null,null,null,null,null,false]
[null,null,null,null,null,0,null,0,null,"","",null,null,null,null,null,null,null,null,null,null,null,null,null,null,null,false]
[null,null,null,null,null,0,null,0,null,"","",null,null,null,null,null,null,null,null,null,null,null,null,null,null,null,false]
[null,null,null,null,null,0,null,0,null,"","",null,null,null,null,null,null,null,null,null,null,null,null,null,null,null,false]
[null,null,null,null,null,0,null,0,null,"","",null,null,null,null,null,null,null,null,null,null,null,null,null,null,null,false]
[null,null,null,null,null,0,null,0,null,"","",null,null,null,null,null,null,null,null,null,null,null,null,null,null,null,false]
[null,null,null,null,null,0,null,0,null,"","",null,null,null,null,null,null,null,null,null,null,null,null,null,null,null,false]
[null,null,null,null,null,0,null,0,null,"","",null,null,null,null,null,null,null,null,null,null,null,null,null,null,null,false]
[null,null,null,null,null,0,null,0,null,"","",null,null,null,null,null,null,null,null,null,null,null,null,null,null,null,false]
[null,null,null,null,null,0,null,0,null,"","",null,null,null,null,null,null,null,null,null,null,null,null,null,null,null,false]
[null,null,null,null,null,0,null,0,null,"","",null,null,null,null,null,null,null,null,null,null,null,null,null,null,null,false]
[null,null,null,null,null,0,null,0,null,"","",null,null,null,null,null,null,null,null,null,null,null,null,null,null,null,false]
[null,null,null,null,null,0,null,0,null,"","",null,null,null,null,null,null,null,null,null,null,null,null,null,null,null,false]
[null,null,null,null,null,0,null,0,null,"","",null,null,null,null,null,null,null,null,null,null,null,null,null,null,null,false]
[null,null,null,null,null,0,null,0,null,"","",null,null,null,null,null,null,null,null,null,null,null,null,null,null,null,false]
[null,null,null,null,null,0,null,0,null,"","",null,null,null,null,null,null,null,null,null,null,null,null,null,null,null,false]
[null,null,null,null,null,0,null,0,null,"","",null,null,null,null,null,null,null,null,null,null,null,null,null,null,null,false]
[null,null,null,null,null,0,null,0,null,"","",null,null,null,null,null,null,null,null,null,null,null,null,null,null,null,false]
[null,null,null,null,null,0,null,0,null,"","",null,null,null,null,null,null,null,null,null,null,null,null,null,null,null,false]
[null,null,null,null,null,0,null,0,null,"","",null,null,null,null,null,null,null,null,null,null,null,null,null,null,null,false]
[null,null,null,null,null,0,null,0,null,"","",null,null,null,null,null,null,null,null,null,null,null,null,null,null,null,false]
[null,null,null,null,null,0,null,0,null,"","",null,null,null,null,null,null,null,null,null,null,null,null,null,null,null,false]
[null,null,null,null,null,0,null,0,null,"","",null,null,null,null,null,null,null,null,null,null,null,null,null,null,null,false]
[null,null,null,null,null,0,null,0,null,"","",null,null,null,null,null,null,null,null,null,null,null,null,null,null,null,false]
[null,null,null,null,null,0,null,0,null,"","",null,null,null,null,null,null,null,null,null,null,null,null,null,null,null,false]
[null,null,null,null,null,0,null,0,null,"","",null,null,null,null,null,null,null,null,null,null,null,null,null,null,null,false]
[null,null,null,null,null,0,null,0,null,"","",null,null,null,null,null,null,null,null,null,null,null,null,null,null,null,false]
[null,null,null,null,null,0,null,0,null,"","",null,null,null,null,null,null,null,null,null,null,null,null,null,null,null,false]
[null,null,null,null,null,0,null,0,null,"","",null,null,null,null,null,null,null,null,null,null,null,null,null,null,null,false]
[null,null,null,null,null,0,null,0,null,"","",null,null,null,null,null,null,null,null,null,null,null,null,null,null,null,false]
[null,null,null,null,null,0,null,0,null,"","",null,null,null,null,null,null,null,null,null,null,null,null,null,null,null,false]
[null,null,null,null,null,0,null,0,null,"","",null,null,null,null,null,null,null,null,null,null,null,null,null,null,null,false]
[null,null,null,null,null,0,null,0,null,"","",null,null,null,null,null,null,null,null,null,null,null,null,null,null,null,false]
[null,null,null,null,null,0,null,0,null,"","",null,null,null,null,null,null,null,null,null,null,null,null,null,null,null,false]
[null,null,null,null,null,0,null,0,null,"","",null,null,null,null,null,null,null,null,null,null,null,null,null,null,null,false]
[null,null,null,null,null,0,null,0,null,"","",null,null,null,null,null,null,null,null,null,null,null,null,null,null,null,false]
[null,null,null,null,null,0,null,0,null,"","",null,null,null,null,null,null,null,null,null,null,null,null,null,null,null,false]
[null,null,null,null,null,0,null,0,null,"","",null,null,null,null,null,null,null,null,null,null,null,null,null,null,null,false]
[null,null,null,null,null,0,null,0,null,"","",null,null,null,null,null,null,null,null,null,null,null,null,null,null,null,false]
[null,null,null,null,null,0,null,0,null,"","",null,null,null,null,null,null,null,null,null,null,null,null,null,null,null,false]
[null,null,null,null,null,0,null,0,null,"","",null,null,null,null,null,null,null,null,null,null,null,null,null,null,null,false]
[null,null,null,null,null,{"$f":"IF(E261=0,D261,E261)","v":0},null,{"$f":"F261-G261","v":0},null,{"$f":"IF($I261 <> \"\",IFERROR(ASC(INDIRECT(\"個票\"&$I261&\"！$L$4\")),\"個票が存在しません。\"),\"\")","v":""},{"$f":"IFERROR(ASC(INDIRECT(\"個票\"&$I261&\"！$L$5\")),\"\")","v":""},null,null,null,null,null,null,null,null,null,null,null,null,null,null,null,{"$f":"OR(A261<>\"\",B261<>\"\",C261<>\"\",D261<>\"\",E261<>\"\",G261<>\"\",I261<>\"\")","v":false}]
[null,null,null,null,null,0,null,0,null,"","",null,null,null,null,null,null,null,null,null,null,null,null,null,null,null,false]
[null,null,null,null,null,0,null,0,null,"","",null,null,null,null,null,null,null,null,null,null,null,null,null,null,null,false]
[null,null,null,null,null,0,null,0,null,"","",null,null,null,null,null,null,null,null,null,null,null,null,null,null,null,false]
[null,null,null,null,null,0,null,0,null,"","",null,null,null,null,null,null,null,null,null,null,null,null,null,null,null,false]
[null,null,null,null,null,0,null,0,null,"","",null,null,null,null,null,null,null,null,null,null,null,null,null,null,null,false]
[null,null,null,null,null,0,null,0,null,"","",null,null,null,null,null,null,null,null,null,null,null,null,null,null,null,false]
[null,null,null,null,null,0,null,0,null,"","",null,null,null,null,null,null,null,null,null,null,null,null,null,null,null,false]
[null,null,null,null,null,0,null,0,null,"","",null,null,null,null,null,null,null,null,null,null,null,null,null,null,null,false]
[null,null,null,null,null,0,null,0,null,"","",null,null,null,null,null,null,null,null,null,null,null,null,null,null,null,false]
[null,null,null,null,null,0,null,0,null,"","",null,null,null,null,null,null,null,null,null,null,null,null,null,null,null,false]
[null,null,null,null,null,0,null,0,null,"","",null,null,null,null,null,null,null,null,null,null,null,null,null,null,null,false]
[null,null,null,null,null,0,null,0,null,"","",null,null,null,null,null,null,null,null,null,null,null,null,null,null,null,false]
[null,null,null,null,null,0,null,0,null,"","",null,null,null,null,null,null,null,null,null,null,null,null,null,null,null,false]
[null,null,null,null,null,0,null,0,null,"","",null,null,null,null,null,null,null,null,null,null,null,null,null,null,null,false]
[null,null,null,null,null,0,null,0,null,"","",null,null,null,null,null,null,null,null,null,null,null,null,null,null,null,false]
[null,null,null,null,null,0,null,0,null,"","",null,null,null,null,null,null,null,null,null,null,null,null,null,null,null,false]
[null,null,null,null,null,0,null,0,null,"","",null,null,null,null,null,null,null,null,null,null,null,null,null,null,null,false]
[null,null,null,null,null,0,null,0,null,"","",null,null,null,null,null,null,null,null,null,null,null,null,null,null,null,false]
[null,null,null,null,null,0,null,0,null,"","",null,null,null,null,null,null,null,null,null,null,null,null,null,null,null,false]
[null,null,null,null,null,0,null,0,null,"","",null,null,null,null,null,null,null,null,null,null,null,null,null,null,null,false]
[null,null,null,null,null,0,null,0,null,"","",null,null,null,null,null,null,null,null,null,null,null,null,null,null,null,false]
[null,null,null,null,null,0,null,0,null,"","",null,null,null,null,null,null,null,null,null,null,null,null,null,null,null,false]
[null,null,null,null,null,0,null,0,null,"","",null,null,null,null,null,null,null,null,null,null,null,null,null,null,null,false]
[null,null,null,null,null,0,null,0,null,"","",null,null,null,null,null,null,null,null,null,null,null,null,null,null,null,false]
[null,null,null,null,null,0,null,0,null,"","",null,null,null,null,null,null,null,null,null,null,null,null,null,null,null,false]
[null,null,null,null,null,0,null,0,null,"","",null,null,null,null,null,null,null,null,null,null,null,null,null,null,null,false]
[null,null,null,null,null,0,null,0,null,"","",null,null,null,null,null,null,null,null,null,null,null,null,null,null,null,false]
[null,null,null,null,null,0,null,0,null,"","",null,null,null,null,null,null,null,null,null,null,null,null,null,null,null,false]
[null,null,null,null,null,0,null,0,null,"","",null,null,null,null,null,null,null,null,null,null,null,null,null,null,null,false]
[null,null,null,null,null,0,null,0,null,"","",null,null,null,null,null,null,null,null,null,null,null,null,null,null,null,false]
[null,null,null,null,null,0,null,0,null,"","",null,null,null,null,null,null,null,null,null,null,null,null,null,null,null,false]
[null,null,null,null,null,0,null,0,null,"","",null,null,null,null,null,null,null,null,null,null,null,null,null,null,null,false]
[null,null,null,null,null,0,null,0,null,"","",null,null,null,null,null,null,null,null,null,null,null,null,null,null,null,false]
[null,null,null,null,null,0,null,0,null,"","",null,null,null,null,null,null,null,null,null,null,null,null,null,null,null,false]
[null,null,null,null,null,0,null,0,null,"","",null,null,null,null,null,null,null,null,null,null,null,null,null,null,null,false]
[null,null,null,null,null,0,null,0,null,"","",null,null,null,null,null,null,null,null,null,null,null,null,null,null,null,false]
[null,null,null,null,null,0,null,0,null,"","",null,null,null,null,null,null,null,null,null,null,null,null,null,null,null,false]
[null,null,null,null,null,0,null,0,null,"","",null,null,null,null,null,null,null,null,null,null,null,null,null,null,null,false]
[null,null,null,null,null,0,null,0,null,"","",null,null,null,null,null,null,null,null,null,null,null,null,null,null,null,false]
[null,null,null,null,null,0,null,0,null,"","",null,null,null,null,null,null,null,null,null,null,null,null,null,null,null,false]
[null,null,null,null,null,0,null,0,null,"","",null,null,null,null,null,null,null,null,null,null,null,null,null,null,null,false]
[null,null,null,null,null,0,null,0,null,"","",null,null,null,null,null,null,null,null,null,null,null,null,null,null,null,false]
[null,null,null,null,null,0,null,0,null,"","",null,null,null,null,null,null,null,null,null,null,null,null,null,null,null,false]
[null,null,null,null,null,0,null,0,null,"","",null,null,null,null,null,null,null,null,null,null,null,null,null,null,null,false]
[null,null,null,null,null,0,null,0,null,"","",null,null,null,null,null,null,null,null,null,null,null,null,null,null,null,false]
[null,null,null,null,null,0,null,0,null,"","",null,null,null,null,null,null,null,null,null,null,null,null,null,null,null,false]
[null,null,null,null,null,0,null,0,null,"","",null,null,null,null,null,null,null,null,null,null,null,null,null,null,null,false]
[null,null,null,null,null,0,null,0,null,"","",null,null,null,null,null,null,null,null,null,null,null,null,null,null,null,false]
[null,null,null,null,null,0,null,0,null,"","",null,null,null,null,null,null,null,null,null,null,null,null,null,null,null,false]
[null,null,null,null,null,0,null,0,null,"","",null,null,null,null,null,null,null,null,null,null,null,null,null,null,null,false]
[null,null,null,null,null,0,null,0,null,"","",null,null,null,null,null,null,null,null,null,null,null,null,null,null,null,false]
[null,null,null,null,null,0,null,0,null,"","",null,null,null,null,null,null,null,null,null,null,null,null,null,null,null,false]
[null,null,null,null,null,0,null,0,null,"","",null,null,null,null,null,null,null,null,null,null,null,null,null,null,null,false]
[null,null,null,null,null,0,null,0,null,"","",null,null,null,null,null,null,null,null,null,null,null,null,null,null,null,false]
[null,null,null,null,null,0,null,0,null,"","",null,null,null,null,null,null,null,null,null,null,null,null,null,null,null,false]
[null,null,null,null,null,0,null,0,null,"","",null,null,null,null,null,null,null,null,null,null,null,null,null,null,null,false]
[null,null,null,null,null,0,null,0,null,"","",null,null,null,null,null,null,null,null,null,null,null,null,null,null,null,false]
[null,null,null,null,null,0,null,0,null,"","",null,null,null,null,null,null,null,null,null,null,null,null,null,null,null,false]
[null,null,null,null,null,0,null,0,null,"","",null,null,null,null,null,null,null,null,null,null,null,null,null,null,null,false]
[null,null,null,null,null,0,null,0,null,"","",null,null,null,null,null,null,null,null,null,null,null,null,null,null,null,false]
[null,null,null,null,null,0,null,0,null,"","",null,null,null,null,null,null,null,null,null,null,null,null,null,null,null,false]
[null,null,null,null,null,0,null,0,null,"","",null,null,null,null,null,null,null,null,null,null,null,null,null,null,null,false]
[null,null,null,null,null,0,null,0,null,"","",null,null,null,null,null,null,null,null,null,null,null,null,null,null,null,false]
[null,null,null,null,null,{"$f":"IF(E325=0,D325,E325)","v":0},null,{"$f":"F325-G325","v":0},null,{"$f":"IF($I325 <> \"\",IFERROR(ASC(INDIRECT(\"個票\"&$I325&\"！$L$4\")),\"個票が存在しません。\"),\"\")","v":""},{"$f":"IFERROR(ASC(INDIRECT(\"個票\"&$I325&\"！$L$5\")),\"\")","v":""},null,null,null,null,null,null,null,null,null,null,null,null,null,null,null,{"$f":"OR(A325<>\"\",B325<>\"\",C325<>\"\",D325<>\"\",E325<>\"\",G325<>\"\",I325<>\"\")","v":false}]
[null,null,null,null,null,0,null,0,null,"","",null,null,null,null,null,null,null,null,null,null,null,null,null,null,null,false]
[null,null,null,null,null,0,null,0,null,"","",null,null,null,null,null,null,null,null,null,null,null,null,null,null,null,false]
[null,null,null,null,null,0,null,0,null,"","",null,null,null,null,null,null,null,null,null,null,null,null,null,null,null,false]
[null,null,null,null,null,0,null,0,null,"","",null,null,null,null,null,null,null,null,null,null,null,null,null,null,null,false]
[null,null,null,null,null,0,null,0,null,"","",null,null,null,null,null,null,null,null,null,null,null,null,null,null,null,false]
[null,null,null,null,null,0,null,0,null,"","",null,null,null,null,null,null,null,null,null,null,null,null,null,null,null,false]
[null,null,null,null,null,0,null,0,null,"","",null,null,null,null,null,null,null,null,null,null,null,null,null,null,null,false]
[null,null,null,null,null,0,null,0,null,"","",null,null,null,null,null,null,null,null,null,null,null,null,null,null,null,false]
[null,null,null,null,null,0,null,0,null,"","",null,null,null,null,null,null,null,null,null,null,null,null,null,null,null,false]
[null,null,null,null,null,0,null,0,null,"","",null,null,null,null,null,null,null,null,null,null,null,null,null,null,null,false]
[null,null,null,null,null,0,null,0,null,"","",null,null,null,null,null,null,null,null,null,null,null,null,null,null,null,false]
[null,null,null,null,null,0,null,0,null,"","",null,null,null,null,null,null,null,null,null,null,null,null,null,null,null,false]
[null,null,null,null,null,0,null,0,null,"","",null,null,null,null,null,null,null,null,null,null,null,null,null,null,null,false]
[null,null,null,null,null,0,null,0,null,"","",null,null,null,null,null,null,null,null,null,null,null,null,null,null,null,false]
[null,null,null,null,null,0,null,0,null,"","",null,null,null,null,null,null,null,null,null,null,null,null,null,null,null,false]
[null,null,null,null,null,0,null,0,null,"","",null,null,null,null,null,null,null,null,null,null,null,null,null,null,null,false]
[null,null,null,null,null,0,null,0,null,"","",null,null,null,null,null,null,null,null,null,null,null,null,null,null,null,false]
[null,null,null,null,null,0,null,0,null,"","",null,null,null,null,null,null,null,null,null,null,null,null,null,null,null,false]
[null,null,null,null,null,0,null,0,null,"","",null,null,null,null,null,null,null,null,null,null,null,null,null,null,null,false]
[null,null,null,null,null,0,null,0,null,"","",null,null,null,null,null,null,null,null,null,null,null,null,null,null,null,false]
[null,null,null,null,null,0,null,0,null,"","",null,null,null,null,null,null,null,null,null,null,null,null,null,null,null,false]
[null,null,null,null,null,0,null,0,null,"","",null,null,null,null,null,null,null,null,null,null,null,null,null,null,null,false]
[null,null,null,null,null,0,null,0,null,"","",null,null,null,null,null,null,null,null,null,null,null,null,null,null,null,false]
[null,null,null,null,null,0,null,0,null,"","",null,null,null,null,null,null,null,null,null,null,null,null,null,null,null,false]
[null,null,null,null,null,0,null,0,null,"","",null,null,null,null,null,null,null,null,null,null,null,null,null,null,null,false]
[null,null,null,null,null,0,null,0,null,"","",null,null,null,null,null,null,null,null,null,null,null,null,null,null,null,false]
[null,null,null,null,null,0,null,0,null,"","",null,null,null,null,null,null,null,null,null,null,null,null,null,null,null,false]
[null,null,null,null,null,0,null,0,null,"","",null,null,null,null,null,null,null,null,null,null,null,null,null,null,null,false]
[null,null,null,null,null,0,null,0,null,"","",null,null,null,null,null,null,null,null,null,null,null,null,null,null,null,false]
[null,null,null,null,null,0,null,0,null,"","",null,null,null,null,null,null,null,null,null,null,null,null,null,null,null,false]
[null,null,null,null,null,0,null,0,null,"","",null,null,null,null,null,null,null,null,null,null,null,null,null,null,null,false]
[null,null,null,null,null,0,null,0,null,"","",null,null,null,null,null,null,null,null,null,null,null,null,null,null,null,false]
[null,null,null,null,null,0,null,0,null,"","",null,null,null,null,null,null,null,null,null,null,null,null,null,null,null,false]
[null,null,null,null,null,0,null,0,null,"","",null,null,null,null,null,null,null,null,null,null,null,null,null,null,null,false]
[null,null,null,null,null,0,null,0,null,"","",null,null,null,null,null,null,null,null,null,null,null,null,null,null,null,false]
[null,null,null,null,null,0,null,0,null,"","",null,null,null,null,null,null,null,null,null,null,null,null,null,null,null,false]
[null,null,null,null,null,0,null,0,null,"","",null,null,null,null,null,null,null,null,null,null,null,null,null,null,null,false]
[null,null,null,null,null,0,null,0,null,"","",null,null,null,null,null,null,null,null,null,null,null,null,null,null,null,false]
[null,null,null,null,null,0,null,0,null,"","",null,null,null,null,null,null,null,null,null,null,null,null,null,null,null,false]
[null,null,null,null,null,0,null,0,null,"","",null,null,null,null,null,null,null,null,null,null,null,null,null,null,null,false]
[null,null,null,null,null,0,null,0,null,"","",null,null,null,null,null,null,null,null,null,null,null,null,null,null,null,false]
[null,null,null,null,null,0,null,0,null,"","",null,null,null,null,null,null,null,null,null,null,null,null,null,null,null,false]
[null,null,null,null,null,0,null,0,null,"","",null,null,null,null,null,null,null,null,null,null,null,null,null,null,null,false]
[null,null,null,null,null,0,null,0,null,"","",null,null,null,null,null,null,null,null,null,null,null,null,null,null,null,false]
[null,null,null,null,null,0,null,0,null,"","",null,null,null,null,null,null,null,null,null,null,null,null,null,null,null,false]
[null,null,null,null,null,0,null,0,null,"","",null,null,null,null,null,null,null,null,null,null,null,null,null,null,null,false]
[null,null,null,null,null,0,null,0,null,"","",null,null,null,null,null,null,null,null,null,null,null,null,null,null,null,false]
[null,null,null,null,null,0,null,0,null,"","",null,null,null,null,null,null,null,null,null,null,null,null,null,null,null,false]
[null,null,null,null,null,0,null,0,null,"","",null,null,null,null,null,null,null,null,null,null,null,null,null,null,null,false]
[null,null,null,null,null,0,null,0,null,"","",null,null,null,null,null,null,null,null,null,null,null,null,null,null,null,false]
[null,null,null,null,null,0,null,0,null,"","",null,null,null,null,null,null,null,null,null,null,null,null,null,null,null,false]
[null,null,null,null,null,0,null,0,null,"","",null,null,null,null,null,null,null,null,null,null,null,null,null,null,null,false]
[null,null,null,null,null,0,null,0,null,"","",null,null,null,null,null,null,null,null,null,null,null,null,null,null,null,false]
[null,null,null,null,null,0,null,0,null,"","",null,null,null,null,null,null,null,null,null,null,null,null,null,null,null,false]
[null,null,null,null,null,0,null,0,null,"","",null,null,null,null,null,null,null,null,null,null,null,null,null,null,null,false]
[null,null,null,null,null,0,null,0,null,"","",null,null,null,null,null,null,null,null,null,null,null,null,null,null,null,false]
[null,null,null,null,null,0,null,0,null,"","",null,null,null,null,null,null,null,null,null,null,null,null,null,null,null,false]
[null,null,null,null,null,0,null,0,null,"","",null,null,null,null,null,null,null,null,null,null,null,null,null,null,null,false]
[null,null,null,null,null,0,null,0,null,"","",null,null,null,null,null,null,null,null,null,null,null,null,null,null,null,false]
[null,null,null,null,null,0,null,0,null,"","",null,null,null,null,null,null,null,null,null,null,null,null,null,null,null,false]
[null,null,null,null,null,0,null,0,null,"","",null,null,null,null,null,null,null,null,null,null,null,null,null,null,null,false]
[null,null,null,null,null,0,null,0,null,"","",null,null,null,null,null,null,null,null,null,null,null,null,null,null,null,false]
[null,null,null,null,null,0,null,0,null,"","",null,null,null,null,null,null,null,null,null,null,null,null,null,null,null,false]
[null,null,null,null,null,{"$f":"IF(E389=0,D389,E389)","v":0},null,{"$f":"F389-G389","v":0},null,{"$f":"IF($I389 <> \"\",IFERROR(ASC(INDIRECT(\"個票\"&$I389&\"！$L$4\")),\"個票が存在しません。\"),\"\")","v":""},{"$f":"IFERROR(ASC(INDIRECT(\"個票\"&$I389&\"！$L$5\")),\"\")","v":""},null,null,null,null,null,null,null,null,null,null,null,null,null,null,null,{"$f":"OR(A389<>\"\",B389<>\"\",C389<>\"\",D389<>\"\",E389<>\"\",G389<>\"\",I389<>\"\")","v":false}]
[null,null,null,null,null,0,null,0,null,"","",null,null,null,null,null,null,null,null,null,null,null,null,null,null,null,false]
[null,null,null,null,null,0,null,0,null,"","",null,null,null,null,null,null,null,null,null,null,null,null,null,null,null,false]
[null,null,null,null,null,0,null,0,null,"","",null,null,null,null,null,null,null,null,null,null,null,null,null,null,null,false]
[null,null,null,null,null,0,null,0,null,"","",null,null,null,null,null,null,null,null,null,null,null,null,null,null,null,false]
[null,null,null,null,null,0,null,0,null,"","",null,null,null,null,null,null,null,null,null,null,null,null,null,null,null,false]
[null,null,null,null,null,0,null,0,null,"","",null,null,null,null,null,null,null,null,null,null,null,null,null,null,null,false]
[null,null,null,null,null,0,null,0,null,"","",null,null,null,null,null,null,null,null,null,null,null,null,null,null,null,false]
[null,null,null,null,null,0,null,0,null,"","",null,null,null,null,null,null,null,null,null,null,null,null,null,null,null,false]
[null,null,null,null,null,0,null,0,null,"","",null,null,null,null,null,null,null,null,null,null,null,null,null,null,null,false]
[null,null,null,null,null,0,null,0,null,"","",null,null,null,null,null,null,null,null,null,null,null,null,null,null,null,false]
[null,null,null,null,null,0,null,0,null,"","",null,null,null,null,null,null,null,null,null,null,null,null,null,null,null,false]
[null,null,null,null,null,0,null,0,null,"","",null,null,null,null,null,null,null,null,null,null,null,null,null,null,null,false]
[null,null,null,null,null,0,null,0,null,"","",null,null,null,null,null,null,null,null,null,null,null,null,null,null,null,false]
[null,null,null,null,null,0,null,0,null,"","",null,null,null,null,null,null,null,null,null,null,null,null,null,null,null,false]
[null,null,null,null,null,0,null,0,null,"","",null,null,null,null,null,null,null,null,null,null,null,null,null,null,null,false]
[null,null,null,null,null,0,null,0,null,"","",null,null,null,null,null,null,null,null,null,null,null,null,null,null,null,false]
[null,null,null,null,null,0,null,0,null,"","",null,null,null,null,null,null,null,null,null,null,null,null,null,null,null,false]
[null,null,null,null,null,0,null,0,null,"","",null,null,null,null,null,null,null,null,null,null,null,null,null,null,null,false]
[null,null,null,null,null,0,null,0,null,"","",null,null,null,null,null,null,null,null,null,null,null,null,null,null,null,false]
[null,null,null,null,null,0,null,0,null,"","",null,null,null,null,null,null,null,null,null,null,null,null,null,null,null,false]
[null,null,null,null,null,0,null,0,null,"","",null,null,null,null,null,null,null,null,null,null,null,null,null,null,null,false]
[null,null,null,null,null,0,null,0,null,"","",null,null,null,null,null,null,null,null,null,null,null,null,null,null,null,false]
[null,null,null,null,null,0,null,0,null,"","",null,null,null,null,null,null,null,null,null,null,null,null,null,null,null,false]
[null,null,null,null,null,0,null,0,null,"","",null,null,null,null,null,null,null,null,null,null,null,null,null,null,null,false]
[null,null,null,null,null,0,null,0,null,"","",null,null,null,null,null,null,null,null,null,null,null,null,null,null,null,false]
[null,null,null,null,null,0,null,0,null,"","",null,null,null,null,null,null,null,null,null,null,null,null,null,null,null,false]
[null,null,null,null,null,0,null,0,null,"","",null,null,null,null,null,null,null,null,null,null,null,null,null,null,null,false]
[null,null,null,null,null,0,null,0,null,"","",null,null,null,null,null,null,null,null,null,null,null,null,null,null,null,false]
[null,null,null,null,null,0,null,0,null,"","",null,null,null,null,null,null,null,null,null,null,null,null,null,null,null,false]
[null,null,null,null,null,0,null,0,null,"","",null,null,null,null,null,null,null,null,null,null,null,null,null,null,null,false]
[null,null,null,null,null,0,null,0,null,"","",null,null,null,null,null,null,null,null,null,null,null,null,null,null,null,false]
[null,null,null,null,null,0,null,0,null,"","",null,null,null,null,null,null,null,null,null,null,null,null,null,null,null,false]
[null,null,null,null,null,0,null,0,null,"","",null,null,null,null,null,null,null,null,null,null,null,null,null,null,null,false]
[null,null,null,null,null,0,null,0,null,"","",null,null,null,null,null,null,null,null,null,null,null,null,null,null,null,false]
[null,null,null,null,null,0,null,0,null,"","",null,null,null,null,null,null,null,null,null,null,null,null,null,null,null,false]
[null,null,null,null,null,0,null,0,null,"","",null,null,null,null,null,null,null,null,null,null,null,null,null,null,null,false]
[null,null,null,null,null,0,null,0,null,"","",null,null,null,null,null,null,null,null,null,null,null,null,null,null,null,false]
[null,null,null,null,null,0,null,0,null,"","",null,null,null,null,null,null,null,null,null,null,null,null,null,null,null,false]
[null,null,null,null,null,0,null,0,null,"","",null,null,null,null,null,null,null,null,null,null,null,null,null,null,null,false]
[null,null,null,null,null,0,null,0,null,"","",null,null,null,null,null,null,null,null,null,null,null,null,null,null,null,false]
[null,null,null,null,null,0,null,0,null,"","",null,null,null,null,null,null,null,null,null,null,null,null,null,null,null,false]
[null,null,null,null,null,0,null,0,null,"","",null,null,null,null,null,null,null,null,null,null,null,null,null,null,null,false]
[null,null,null,null,null,0,null,0,null,"","",null,null,null,null,null,null,null,null,null,null,null,null,null,null,null,false]
[null,null,null,null,null,0,null,0,null,"","",null,null,null,null,null,null,null,null,null,null,null,null,null,null,null,false]
[null,null,null,null,null,0,null,0,null,"","",null,null,null,null,null,null,null,null,null,null,null,null,null,null,null,false]
[null,null,null,null,null,0,null,0,null,"","",null,null,null,null,null,null,null,null,null,null,null,null,null,null,null,false]
[null,null,null,null,null,0,null,0,null,"","",null,null,null,null,null,null,null,null,null,null,null,null,null,null,null,false]
[null,null,null,null,null,0,null,0,null,"","",null,null,null,null,null,null,null,null,null,null,null,null,null,null,null,false]
[null,null,null,null,null,0,null,0,null,"","",null,null,null,null,null,null,null,null,null,null,null,null,null,null,null,false]
[null,null,null,null,null,0,null,0,null,"","",null,null,null,null,null,null,null,null,null,null,null,null,null,null,null,false]
[null,null,null,null,null,0,null,0,null,"","",null,null,null,null,null,null,null,null,null,null,null,null,null,null,null,false]
[null,null,null,null,null,0,null,0,null,"","",null,null,null,null,null,null,null,null,null,null,null,null,null,null,null,false]
[null,null,null,null,null,0,null,0,null,"","",null,null,null,null,null,null,null,null,null,null,null,null,null,null,null,false]
[null,null,null,null,null,0,null,0,null,"","",null,null,null,null,null,null,null,null,null,null,null,null,null,null,null,false]
[null,null,null,null,null,0,null,0,null,"","",null,null,null,null,null,null,null,null,null,null,null,null,null,null,null,false]
[null,null,null,null,null,0,null,0,null,"","",null,null,null,null,null,null,null,null,null,null,null,null,null,null,null,false]
[null,null,null,null,null,0,null,0,null,"","",null,null,null,null,null,null,null,null,null,null,null,null,null,null,null,false]
[null,null,null,null,null,0,null,0,null,"","",null,null,null,null,null,null,null,null,null,null,null,null,null,null,null,false]
[null,null,null,null,null,0,null,0,null,"","",null,null,null,null,null,null,null,null,null,null,null,null,null,null,null,false]
[null,null,null,null,null,0,null,0,null,"","",null,null,null,null,null,null,null,null,null,null,null,null,null,null,null,false]
[null,null,null,null,null,0,null,0,null,"","",null,null,null,null,null,null,null,null,null,null,null,null,null,null,null,false]
[null,null,null,null,null,0,null,0,null,"","",null,null,null,null,null,null,null,null,null,null,null,null,null,null,null,false]
[null,null,null,null,null,0,null,0,null,"","",null,null,null,null,null,null,null,null,null,null,null,null,null,null,null,false]
[null,null,null,null,null,{"$f":"IF(E453=0,D453,E453)","v":0},null,{"$f":"F453-G453","v":0},null,{"$f":"IF($I453 <> \"\",IFERROR(ASC(INDIRECT(\"個票\"&$I453&\"！$L$4\")),\"個票が存在しません。\"),\"\")","v":""},{"$f":"IFERROR(ASC(INDIRECT(\"個票\"&$I453&\"！$L$5\")),\"\")","v":""},null,null,null,null,null,null,null,null,null,null,null,null,null,null,null,{"$f":"OR(A453<>\"\",B453<>\"\",C453<>\"\",D453<>\"\",E453<>\"\",G453<>\"\",I453<>\"\")","v":false}]
[null,null,null,null,null,0,null,0,null,"","",null,null,null,null,null,null,null,null,null,null,null,null,null,null,null,false]
[null,null,null,null,null,0,null,0,null,"","",null,null,null,null,null,null,null,null,null,null,null,null,null,null,null,false]
[null,null,null,null,null,0,null,0,null,"","",null,null,null,null,null,null,null,null,null,null,null,null,null,null,null,false]
[null,null,null,null,null,0,null,0,null,"","",null,null,null,null,null,null,null,null,null,null,null,null,null,null,null,false]
[null,null,null,null,null,0,null,0,null,"","",null,null,null,null,null,null,null,null,null,null,null,null,null,null,null,false]
[null,null,null,null,null,0,null,0,null,"","",null,null,null,null,null,null,null,null,null,null,null,null,null,null,null,false]
[null,null,null,null,null,0,null,0,null,"","",null,null,null,null,null,null,null,null,null,null,null,null,null,null,null,false]
[null,null,null,null,null,0,null,0,null,"","",null,null,null,null,null,null,null,null,null,null,null,null,null,null,null,false]
[null,null,null,null,null,0,null,0,null,"","",null,null,null,null,null,null,null,null,null,null,null,null,null,null,null,false]
[null,null,null,null,null,0,null,0,null,"","",null,null,null,null,null,null,null,null,null,null,null,null,null,null,null,false]
[null,null,null,null,null,0,null,0,null,"","",null,null,null,null,null,null,null,null,null,null,null,null,null,null,null,false]
[null,null,null,null,null,0,null,0,null,"","",null,null,null,null,null,null,null,null,null,null,null,null,null,null,null,false]
[null,null,null,null,null,0,null,0,null,"","",null,null,null,null,null,null,null,null,null,null,null,null,null,null,null,false]
[null,null,null,null,null,0,null,0,null,"","",null,null,null,null,null,null,null,null,null,null,null,null,null,null,null,false]
[null,null,null,null,null,0,null,0,null,"","",null,null,null,null,null,null,null,null,null,null,null,null,null,null,null,false]
[null,null,null,null,null,0,null,0,null,"","",null,null,null,null,null,null,null,null,null,null,null,null,null,null,null,false]
[null,null,null,null,null,0,null,0,null,"","",null,null,null,null,null,null,null,null,null,null,null,null,null,null,null,false]
[null,null,null,null,null,0,null,0,null,"","",null,null,null,null,null,null,null,null,null,null,null,null,null,null,null,false]
[null,null,null,null,null,0,null,0,null,"","",null,null,null,null,null,null,null,null,null,null,null,null,null,null,null,false]
[null,null,null,null,null,0,null,0,null,"","",null,null,null,null,null,null,null,null,null,null,null,null,null,null,null,false]
[null,null,null,null,null,0,null,0,null,"","",null,null,null,null,null,null,null,null,null,null,null,null,null,null,null,false]
[null,null,null,null,null,0,null,0,null,"","",null,null,null,null,null,null,null,null,null,null,null,null,null,null,null,false]
[null,null,null,null,null,0,null,0,null,"","",null,null,null,null,null,null,null,null,null,null,null,null,null,null,null,false]
[null,null,null,null,null,0,null,0,null,"","",null,null,null,null,null,null,null,null,null,null,null,null,null,null,null,false]
[null,null,null,null,null,0,null,0,null,"","",null,null,null,null,null,null,null,null,null,null,null,null,null,null,null,false]
[null,null,null,null,null,0,null,0,null,"","",null,null,null,null,null,null,null,null,null,null,null,null,null,null,null,false]
[null,null,null,null,null,0,null,0,null,"","",null,null,null,null,null,null,null,null,null,null,null,null,null,null,null,false]
[null,null,null,null,null,0,null,0,null,"","",null,null,null,null,null,null,null,null,null,null,null,null,null,null,null,false]
[null,null,null,null,null,0,null,0,null,"","",null,null,null,null,null,null,null,null,null,null,null,null,null,null,null,false]
[null,null,null,null,null,0,null,0,null,"","",null,null,null,null,null,null,null,null,null,null,null,null,null,null,null,false]
[null,null,null,null,null,0,null,0,null,"","",null,null,null,null,null,null,null,null,null,null,null,null,null,null,null,false]
[null,null,null,null,null,0,null,0,null,"","",null,null,null,null,null,null,null,null,null,null,null,null,null,null,null,false]
[null,null,null,null,null,0,null,0,null,"","",null,null,null,null,null,null,null,null,null,null,null,null,null,null,null,false]
[null,null,null,null,null,0,null,0,null,"","",null,null,null,null,null,null,null,null,null,null,null,null,null,null,null,false]
[null,null,null,null,null,0,null,0,null,"","",null,null,null,null,null,null,null,null,null,null,null,null,null,null,null,false]
[null,null,null,null,null,0,null,0,null,"","",null,null,null,null,null,null,null,null,null,null,null,null,null,null,null,false]
[null,null,null,null,null,0,null,0,null,"","",null,null,null,null,null,null,null,null,null,null,null,null,null,null,null,false]
[null,null,null,null,null,0,null,0,null,"","",null,null,null,null,null,null,null,null,null,null,null,null,null,null,null,false]
[null,null,null,null,null,0,null,0,null,"","",null,null,null,null,null,null,null,null,null,null,null,null,null,null,null,false]
[null,null,null,null,null,0,null,0,null,"","",null,null,null,null,null,null,null,null,null,null,null,null,null,null,null,false]
[null,null,null,null,null,0,null,0,null,"","",null,null,null,null,null,null,null,null,null,null,null,null,null,null,null,false]
[null,null,null,null,null,0,null,0,null,"","",null,null,null,null,null,null,null,null,null,null,null,null,null,null,null,false]
[null,null,null,null,null,0,null,0,null,"","",null,null,null,null,null,null,null,null,null,null,null,null,null,null,null,false]
[null,null,null,null,null,0,null,0,null,"","",null,null,null,null,null,null,null,null,null,null,null,null,null,null,null,false]
[null,null,null,null,null,0,null,0,null,"","",null,null,null,null,null,null,null,null,null,null,null,null,null,null,null,false]
[null,null,null,null,null,0,null,0,null,"","",null,null,null,null,null,null,null,null,null,null,null,null,null,null,null,false]
[null,null,null,null,null,0,null,0,null,"","",null,null,null,null,null,null,null,null,null,null,null,null,null,null,null,false]
[null,null,null,null,null,0,null,0,null,"","",null,null,null,null,null,null,null,null,null,null,null,null,null,null,null,false]
[null,null,null,null,null,0,null,0,null,"","",null,null,null,null,null,null,null,null,null,null,null,null,null,null,null,false]
[null,null,null,null,null,0,null,0,null,"","",null,null,null,null,null,null,null,null,null,null,null,null,null,null,null,false]
[null,null,null,null,null,0,null,0,null,"","",null,null,null,null,null,null,null,null,null,null,null,null,null,null,null,false]
[null,null,null,null,null,0,null,0,null,"","",null,null,null,null,null,null,null,null,null,null,null,null,null,null,null,false]
[null,null,null,null,null,0,null,0,null,"","",null,null,null,null,null,null,null,null,null,null,null,null,null,null,null,false]
[null,null,null,null,null,0,null,0,null,"","",null,null,null,null,null,null,null,null,null,null,null,null,null,null,null,false]
[null,null,null,null,null,0,null,0,null,"","",null,null,null,null,null,null,null,null,null,null,null,null,null,null,null,false]
[null,null,null,null,null,0,null,0,null,"","",null,null,null,null,null,null,null,null,null,null,null,null,null,null,null,false]
[null,null,null,null,null,0,null,0,null,"","",null,null,null,null,null,null,null,null,null,null,null,null,null,null,null,false]
[null,null,null,null,null,0,null,0,null,"","",null,null,null,null,null,null,null,null,null,null,null,null,null,null,null,false]
[null,null,null,null,null,0,null,0,null,"","",null,null,null,null,null,null,null,null,null,null,null,null,null,null,null,false]
[null,null,null,null,null,0,null,0,null,"","",null,null,null,null,null,null,null,null,null,null,null,null,null,null,null,false]
[null,null,null,null,null,0,null,0,null,"","",null,null,null,null,null,null,null,null,null,null,null,null,null,null,null,false]
[null,null,null,null,null,0,null,0,null,"","",null,null,null,null,null,null,null,null,null,null,null,null,null,null,null,false]
[null,null,null,null,null,0,null,0,null,"","",null,null,null,null,null,null,null,null,null,null,null,null,null,null,null,false]
[null,null,null,null,null,{"$f":"IF(E517=0,D517,E517)","v":0},null,{"$f":"F517-G517","v":0},null,{"$f":"IF($I517 <> \"\",IFERROR(ASC(INDIRECT(\"個票\"&$I517&\"！$L$4\")),\"個票が存在しません。\"),\"\")","v":""},{"$f":"IFERROR(ASC(INDIRECT(\"個票\"&$I517&\"！$L$5\")),\"\")","v":""},null,null,null,null,null,null,null,null,null,null,null,null,null,null,null,{"$f":"OR(A517<>\"\",B517<>\"\",C517<>\"\",D517<>\"\",E517<>\"\",G517<>\"\",I517<>\"\")","v":false}]
[null,null,null,null,null,0,null,0,null,"","",null,null,null,null,null,null,null,null,null,null,null,null,null,null,null,false]
[null,null,null,null,null,0,null,0,null,"","",null,null,null,null,null,null,null,null,null,null,null,null,null,null,null,false]
[null,null,null,null,null,0,null,0,null,"","",null,null,null,null,null,null,null,null,null,null,null,null,null,null,null,false]
[null,null,null,null,null,0,null,0,null,"","",null,null,null,null,null,null,null,null,null,null,null,null,null,null,null,false]
[null,null,null,null,null,0,null,0,null,"","",null,null,null,null,null,null,null,null,null,null,null,null,null,null,null,false]
[null,null,null,null,null,0,null,0,null,"","",null,null,null,null,null,null,null,null,null,null,null,null,null,null,null,false]
[null,null,null,null,null,0,null,0,null,"","",null,null,null,null,null,null,null,null,null,null,null,null,null,null,null,false]
[null,null,null,null,null,0,null,0,null,"","",null,null,null,null,null,null,null,null,null,null,null,null,null,null,null,false]
[null,null,null,null,null,0,null,0,null,"","",null,null,null,null,null,null,null,null,null,null,null,null,null,null,null,false]
[null,null,null,null,null,0,null,0,null,"","",null,null,null,null,null,null,null,null,null,null,null,null,null,null,null,false]
[null,null,null,null,null,0,null,0,null,"","",null,null,null,null,null,null,null,null,null,null,null,null,null,null,null,false]
[null,null,null,null,null,0,null,0,null,"","",null,null,null,null,null,null,null,null,null,null,null,null,null,null,null,false]
[null,null,null,null,null,0,null,0,null,"","",null,null,null,null,null,null,null,null,null,null,null,null,null,null,null,false]
[null,null,null,null,null,0,null,0,null,"","",null,null,null,null,null,null,null,null,null,null,null,null,null,null,null,false]
[null,null,null,null,null,0,null,0,null,"","",null,null,null,null,null,null,null,null,null,null,null,null,null,null,null,false]
[null,null,null,null,null,0,null,0,null,"","",null,null,null,null,null,null,null,null,null,null,null,null,null,null,null,false]
[null,null,null,null,null,0,null,0,null,"","",null,null,null,null,null,null,null,null,null,null,null,null,null,null,null,false]
[null,null,null,null,null,0,null,0,null,"","",null,null,null,null,null,null,null,null,null,null,null,null,null,null,null,false]
[null,null,null,null,null,0,null,0,null,"","",null,null,null,null,null,null,null,null,null,null,null,null,null,null,null,false]
[null,null,null,null,null,0,null,0,null,"","",null,null,null,null,null,null,null,null,null,null,null,null,null,null,null,false]
[null,null,null,null,null,0,null,0,null,"","",null,null,null,null,null,null,null,null,null,null,null,null,null,null,null,false]
[null,null,null,null,null,0,null,0,null,"","",null,null,null,null,null,null,null,null,null,null,null,null,null,null,null,false]
[null,null,null,null,null,0,null,0,null,"","",null,null,null,null,null,null,null,null,null,null,null,null,null,null,null,false]
[null,null,null,null,null,0,null,0,null,"","",null,null,null,null,null,null,null,null,null,null,null,null,null,null,null,false]
[null,null,null,null,null,0,null,0,null,"","",null,null,null,null,null,null,null,null,null,null,null,null,null,null,null,false]
[null,null,null,null,null,0,null,0,null,"","",null,null,null,null,null,null,null,null,null,null,null,null,null,null,null,false]
[null,null,null,null,null,0,null,0,null,"","",null,null,null,null,null,null,null,null,null,null,null,null,null,null,null,false]
[null,null,null,null,null,0,null,0,null,"","",null,null,null,null,null,null,null,null,null,null,null,null,null,null,null,false]
[null,null,null,null,null,0,null,0,null,"","",null,null,null,null,null,null,null,null,null,null,null,null,null,null,null,false]
[null,null,null,null,null,0,null,0,null,"","",null,null,null,null,null,null,null,null,null,null,null,null,null,null,null,false]
[null,null,null,null,null,0,null,0,null,"","",null,null,null,null,null,null,null,null,null,null,null,null,null,null,null,false]
[null,null,null,null,null,0,null,0,null,"","",null,null,null,null,null,null,null,null,null,null,null,null,null,null,null,false]
[null,null,null,null,null,0,null,0,null,"","",null,null,null,null,null,null,null,null,null,null,null,null,null,null,null,false]
[null,null,null,null,null,0,null,0,null,"","",null,null,null,null,null,null,null,null,null,null,null,null,null,null,null,false]
[null,null,null,null,null,0,null,0,null,"","",null,null,null,null,null,null,null,null,null,null,null,null,null,null,null,false]
[null,null,null,null,null,0,null,0,null,"","",null,null,null,null,null,null,null,null,null,null,null,null,null,null,null,false]
[null,null,null,null,null,0,null,0,null,"","",null,null,null,null,null,null,null,null,null,null,null,null,null,null,null,false]
[null,null,null,null,null,0,null,0,null,"","",null,null,null,null,null,null,null,null,null,null,null,null,null,null,null,false]
[null,null,null,null,null,0,null,0,null,"","",null,null,null,null,null,null,null,null,null,null,null,null,null,null,null,false]
[null,null,null,null,null,0,null,0,null,"","",null,null,null,null,null,null,null,null,null,null,null,null,null,null,null,false]
[null,null,null,null,null,0,null,0,null,"","",null,null,null,null,null,null,null,null,null,null,null,null,null,null,null,false]
[null,null,null,null,null,0,null,0,null,"","",null,null,null,null,null,null,null,null,null,null,null,null,null,null,null,false]
[null,null,null,null,null,0,null,0,null,"","",null,null,null,null,null,null,null,null,null,null,null,null,null,null,null,false]
[null,null,null,null,null,0,null,0,null,"","",null,null,null,null,null,null,null,null,null,null,null,null,null,null,null,false]
[null,null,null,null,null,0,null,0,null,"","",null,null,null,null,null,null,null,null,null,null,null,null,null,null,null,false]
[null,null,null,null,null,0,null,0,null,"","",null,null,null,null,null,null,null,null,null,null,null,null,null,null,null,false]
[null,null,null,null,null,0,null,0,null,"","",null,null,null,null,null,null,null,null,null,null,null,null,null,null,null,false]
[null,null,null,null,null,0,null,0,null,"","",null,null,null,null,null,null,null,null,null,null,null,null,null,null,null,false]
[null,null,null,null,null,0,null,0,null,"","",null,null,null,null,null,null,null,null,null,null,null,null,null,null,null,false]
[null,null,null,null,null,0,null,0,null,"","",null,null,null,null,null,null,null,null,null,null,null,null,null,null,null,false]
[null,null,null,null,null,0,null,0,null,"","",null,null,null,null,null,null,null,null,null,null,null,null,null,null,null,false]
[null,null,null,null,null,0,null,0,null,"","",null,null,null,null,null,null,null,null,null,null,null,null,null,null,null,false]
[null,null,null,null,null,0,null,0,null,"","",null,null,null,null,null,null,null,null,null,null,null,null,null,null,null,false]
[null,null,null,null,null,0,null,0,null,"","",null,null,null,null,null,null,null,null,null,null,null,null,null,null,null,false]
[null,null,null,null,null,0,null,0,null,"","",null,null,null,null,null,null,null,null,null,null,null,null,null,null,null,false]
[null,null,null,null,null,0,null,0,null,"","",null,null,null,null,null,null,null,null,null,null,null,null,null,null,null,false]
[null,null,null,null,null,0,null,0,null,"","",null,null,null,null,null,null,null,null,null,null,null,null,null,null,null,false]
[null,null,null,null,null,0,null,0,null,"","",null,null,null,null,null,null,null,null,null,null,null,null,null,null,null,false]
[null,null,null,null,null,0,null,0,null,"","",null,null,null,null,null,null,null,null,null,null,null,null,null,null,null,false]
[null,null,null,null,null,0,null,0,null,"","",null,null,null,null,null,null,null,null,null,null,null,null,null,null,null,false]
[null,null,null,null,null,0,null,0,null,"","",null,null,null,null,null,null,null,null,null,null,null,null,null,null,null,false]
[null,null,null,null,null,0,null,0,null,"","",null,null,null,null,null,null,null,null,null,null,null,null,null,null,null,false]
[null,null,null,null,null,0,null,0,null,"","",null,null,null,null,null,null,null,null,null,null,null,null,null,null,null,false]
[null,null,null,null,null,{"$f":"IF(E581=0,D581,E581)","v":0},null,{"$f":"F581-G581","v":0},null,{"$f":"IF($I581 <> \"\",IFERROR(ASC(INDIRECT(\"個票\"&$I581&\"！$L$4\")),\"個票が存在しません。\"),\"\")","v":""},{"$f":"IFERROR(ASC(INDIRECT(\"個票\"&$I581&\"！$L$5\")),\"\")","v":""},null,null,null,null,null,null,null,null,null,null,null,null,null,null,null,{"$f":"OR(A581<>\"\",B581<>\"\",C581<>\"\",D581<>\"\",E581<>\"\",G581<>\"\",I581<>\"\")","v":false}]
[null,null,null,null,null,0,null,0,null,"","",null,null,null,null,null,null,null,null,null,null,null,null,null,null,null,false]
[null,null,null,null,null,0,null,0,null,"","",null,null,null,null,null,null,null,null,null,null,null,null,null,null,null,false]
[null,null,null,null,null,0,null,0,null,"","",null,null,null,null,null,null,null,null,null,null,null,null,null,null,null,false]
[null,null,null,null,null,0,null,0,null,"","",null,null,null,null,null,null,null,null,null,null,null,null,null,null,null,false]
[null,null,null,null,null,0,null,0,null,"","",null,null,null,null,null,null,null,null,null,null,null,null,null,null,null,false]
[null,null,null,null,null,0,null,0,null,"","",null,null,null,null,null,null,null,null,null,null,null,null,null,null,null,false]
[null,null,null,null,null,0,null,0,null,"","",null,null,null,null,null,null,null,null,null,null,null,null,null,null,null,false]
[null,null,null,null,null,0,null,0,null,"","",null,null,null,null,null,null,null,null,null,null,null,null,null,null,null,false]
[null,null,null,null,null,0,null,0,null,"","",null,null,null,null,null,null,null,null,null,null,null,null,null,null,null,false]
[null,null,null,null,null,0,null,0,null,"","",null,null,null,null,null,null,null,null,null,null,null,null,null,null,null,false]
[null,null,null,null,null,0,null,0,null,"","",null,null,null,null,null,null,null,null,null,null,null,null,null,null,null,false]
[null,null,null,null,null,0,null,0,null,"","",null,null,null,null,null,null,null,null,null,null,null,null,null,null,null,false]
[null,null,null,null,null,0,null,0,null,"","",null,null,null,null,null,null,null,null,null,null,null,null,null,null,null,false]
[null,null,null,null,null,0,null,0,null,"","",null,null,null,null,null,null,null,null,null,null,null,null,null,null,null,false]
[null,null,null,null,null,0,null,0,null,"","",null,null,null,null,null,null,null,null,null,null,null,null,null,null,null,false]
[null,null,null,null,null,0,null,0,null,"","",null,null,null,null,null,null,null,null,null,null,null,null,null,null,null,false]
[null,null,null,null,null,0,null,0,null,"","",null,null,null,null,null,null,null,null,null,null,null,null,null,null,null,false]
[null,null,null,null,null,0,null,0,null,"","",null,null,null,null,null,null,null,null,null,null,null,null,null,null,null,false]
[null,null,null,null,null,0,null,0,null,"","",null,null,null,null,null,null,null,null,null,null,null,null,null,null,null,false]
[null,null,null,null,null,0,null,0,null,"","",null,null,null,null,null,null,null,null,null,null,null,null,null,null,null,false]
[null,null,null,null,null,0,null,0,null,"","",null,null,null,null,null,null,null,null,null,null,null,null,null,null,null,false]
[null,null,null,null,null,0,null,0,null,"","",null,null,null,null,null,null,null,null,null,null,null,null,null,null,null,false]
[null,null,null,null,null,0,null,0,null,"","",null,null,null,null,null,null,null,null,null,null,null,null,null,null,null,false]
[null,null,null,null,null,0,null,0,null,"","",null,null,null,null,null,null,null,null,null,null,null,null,null,null,null,false]
[null,null,null,null,null,0,null,0,null,"","",null,null,null,null,null,null,null,null,null,null,null,null,null,null,null,false]
[null,null,null,null,null,0,null,0,null,"","",null,null,null,null,null,null,null,null,null,null,null,null,null,null,null,false]
[null,null,null,null,null,0,null,0,null,"","",null,null,null,null,null,null,null,null,null,null,null,null,null,null,null,false]
[null,null,null,null,null,0,null,0,null,"","",null,null,null,null,null,null,null,null,null,null,null,null,null,null,null,false]
[null,null,null,null,null,0,null,0,null,"","",null,null,null,null,null,null,null,null,null,null,null,null,null,null,null,false]
[null,null,null,null,null,0,null,0,null,"","",null,null,null,null,null,null,null,null,null,null,null,null,null,null,null,false]
[null,null,null,null,null,0,null,0,null,"","",null,null,null,null,null,null,null,null,null,null,null,null,null,null,null,false]
[null,null,null,null,null,0,null,0,null,"","",null,null,null,null,null,null,null,null,null,null,null,null,null,null,null,false]
[null,null,null,null,null,0,null,0,null,"","",null,null,null,null,null,null,null,null,null,null,null,null,null,null,null,false]
[null,null,null,null,null,0,null,0,null,"","",null,null,null,null,null,null,null,null,null,null,null,null,null,null,null,false]
[null,null,null,null,null,0,null,0,null,"","",null,null,null,null,null,null,null,null,null,null,null,null,null,null,null,false]
[null,null,null,null,null,0,null,0,null,"","",null,null,null,null,null,null,null,null,null,null,null,null,null,null,null,false]
[null,null,null,null,null,0,null,0,null,"","",null,null,null,null,null,null,null,null,null,null,null,null,null,null,null,false]
[null,null,null,null,null,0,null,0,null,"","",null,null,null,null,null,null,null,null,null,null,null,null,null,null,null,false]
[null,null,null,null,null,0,null,0,null,"","",null,null,null,null,null,null,null,null,null,null,null,null,null,null,null,false]
[null,null,null,null,null,0,null,0,null,"","",null,null,null,null,null,null,null,null,null,null,null,null,null,null,null,false]
[null,null,null,null,null,0,null,0,null,"","",null,null,null,null,null,null,null,null,null,null,null,null,null,null,null,false]
[null,null,null,null,null,0,null,0,null,"","",null,null,null,null,null,null,null,null,null,null,null,null,null,null,null,false]
[null,null,null,null,null,0,null,0,null,"","",null,null,null,null,null,null,null,null,null,null,null,null,null,null,null,false]
[null,null,null,null,null,0,null,0,null,"","",null,null,null,null,null,null,null,null,null,null,null,null,null,null,null,false]
[null,null,null,null,null,0,null,0,null,"","",null,null,null,null,null,null,null,null,null,null,null,null,null,null,null,false]
[null,null,null,null,null,0,null,0,null,"","",null,null,null,null,null,null,null,null,null,null,null,null,null,null,null,false]
[null,null,null,null,null,0,null,0,null,"","",null,null,null,null,null,null,null,null,null,null,null,null,null,null,null,false]
[null,null,null,null,null,0,null,0,null,"","",null,null,null,null,null,null,null,null,null,null,null,null,null,null,null,false]
[null,null,null,null,null,0,null,0,null,"","",null,null,null,null,null,null,null,null,null,null,null,null,null,null,null,false]
[null,null,null,null,null,0,null,0,null,"","",null,null,null,null,null,null,null,null,null,null,null,null,null,null,null,false]
[null,null,null,null,null,0,null,0,null,"","",null,null,null,null,null,null,null,null,null,null,null,null,null,null,null,false]
[null,null,null,null,null,0,null,0,null,"","",null,null,null,null,null,null,null,null,null,null,null,null,null,null,null,false]
[null,null,null,null,null,0,null,0,null,"","",null,null,null,null,null,null,null,null,null,null,null,null,null,null,null,false]
[null,null,null,null,null,0,null,0,null,"","",null,null,null,null,null,null,null,null,null,null,null,null,null,null,null,false]
[null,null,null,null,null,0,null,0,null,"","",null,null,null,null,null,null,null,null,null,null,null,null,null,null,null,false]
[null,null,null,null,null,0,null,0,null,"","",null,null,null,null,null,null,null,null,null,null,null,null,null,null,null,false]
[null,null,null,null,null,0,null,0,null,"","",null,null,null,null,null,null,null,null,null,null,null,null,null,null,null,false]
[null,null,null,null,null,0,null,0,null,"","",null,null,null,null,null,null,null,null,null,null,null,null,null,null,null,false]
[null,null,null,null,null,0,null,0,null,"","",null,null,null,null,null,null,null,null,null,null,null,null,null,null,null,false]
[null,null,null,null,null,0,null,0,null,"","",null,null,null,null,null,null,null,null,null,null,null,null,null,null,null,false]
[null,null,null,null,null,0,null,0,null,"","",null,null,null,null,null,null,null,null,null,null,null,null,null,null,null,false]
[null,null,null,null,null,0,null,0,null,"","",null,null,null,null,null,null,null,null,null,null,null,null,null,null,null,false]
[null,null,null,null,null,0,null,0,null,"","",null,null,null,null,null,null,null,null,null,null,null,null,null,null,null,false]
[null,null,null,null,null,{"$f":"IF(E645=0,D645,E645)","v":0},null,{"$f":"F645-G645","v":0},null,{"$f":"IF($I645 <> \"\",IFERROR(ASC(INDIRECT(\"個票\"&$I645&\"！$L$4\")),\"個票が存在しません。\"),\"\")","v":""},{"$f":"IFERROR(ASC(INDIRECT(\"個票\"&$I645&\"！$L$5\")),\"\")","v":""},null,null,null,null,null,null,null,null,null,null,null,null,null,null,null,{"$f":"OR(A645<>\"\",B645<>\"\",C645<>\"\",D645<>\"\",E645<>\"\",G645<>\"\",I645<>\"\")","v":false}]
[null,null,null,null,null,0,null,0,null,"","",null,null,null,null,null,null,null,null,null,null,null,null,null,null,null,false]
[null,null,null,null,null,0,null,0,null,"","",null,null,null,null,null,null,null,null,null,null,null,null,null,null,null,false]
[null,null,null,null,null,0,null,0,null,"","",null,null,null,null,null,null,null,null,null,null,null,null,null,null,null,false]
[null,null,null,null,null,0,null,0,null,"","",null,null,null,null,null,null,null,null,null,null,null,null,null,null,null,false]
[null,null,null,null,null,0,null,0,null,"","",null,null,null,null,null,null,null,null,null,null,null,null,null,null,null,false]
[null,null,null,null,null,0,null,0,null,"","",null,null,null,null,null,null,null,null,null,null,null,null,null,null,null,false]
[null,null,null,null,null,0,null,0,null,"","",null,null,null,null,null,null,null,null,null,null,null,null,null,null,null,false]
[null,null,null,null,null,0,null,0,null,"","",null,null,null,null,null,null,null,null,null,null,null,null,null,null,null,false]
[null,null,null,null,null,0,null,0,null,"","",null,null,null,null,null,null,null,null,null,null,null,null,null,null,null,false]
[null,null,null,null,null,0,null,0,null,"","",null,null,null,null,null,null,null,null,null,null,null,null,null,null,null,false]
[null,null,null,null,null,0,null,0,null,"","",null,null,null,null,null,null,null,null,null,null,null,null,null,null,null,false]
[null,null,null,null,null,0,null,0,null,"","",null,null,null,null,null,null,null,null,null,null,null,null,null,null,null,false]
[null,null,null,null,null,0,null,0,null,"","",null,null,null,null,null,null,null,null,null,null,null,null,null,null,null,false]
[null,null,null,null,null,0,null,0,null,"","",null,null,null,null,null,null,null,null,null,null,null,null,null,null,null,false]
[null,null,null,null,null,0,null,0,null,"","",null,null,null,null,null,null,null,null,null,null,null,null,null,null,null,false]
[null,null,null,null,null,0,null,0,null,"","",null,null,null,null,null,null,null,null,null,null,null,null,null,null,null,false]
[null,null,null,null,null,0,null,0,null,"","",null,null,null,null,null,null,null,null,null,null,null,null,null,null,null,false]
[null,null,null,null,null,0,null,0,null,"","",null,null,null,null,null,null,null,null,null,null,null,null,null,null,null,false]
[null,null,null,null,null,0,null,0,null,"","",null,null,null,null,null,null,null,null,null,null,null,null,null,null,null,false]
[null,null,null,null,null,0,null,0,null,"","",null,null,null,null,null,null,null,null,null,null,null,null,null,null,null,false]
[null,null,null,null,null,0,null,0,null,"","",null,null,null,null,null,null,null,null,null,null,null,null,null,null,null,false]
[null,null,null,null,null,0,null,0,null,"","",null,null,null,null,null,null,null,null,null,null,null,null,null,null,null,false]
[null,null,null,null,null,0,null,0,null,"","",null,null,null,null,null,null,null,null,null,null,null,null,null,null,null,false]
[null,null,null,null,null,0,null,0,null,"","",null,null,null,null,null,null,null,null,null,null,null,null,null,null,null,false]
[null,null,null,null,null,0,null,0,null,"","",null,null,null,null,null,null,null,null,null,null,null,null,null,null,null,false]
[null,null,null,null,null,0,null,0,null,"","",null,null,null,null,null,null,null,null,null,null,null,null,null,null,null,false]
[null,null,null,null,null,0,null,0,null,"","",null,null,null,null,null,null,null,null,null,null,null,null,null,null,null,false]
[null,null,null,null,null,0,null,0,null,"","",null,null,null,null,null,null,null,null,null,null,null,null,null,null,null,false]
[null,null,null,null,null,0,null,0,null,"","",null,null,null,null,null,null,null,null,null,null,null,null,null,null,null,false]
[null,null,null,null,null,0,null,0,null,"","",null,null,null,null,null,null,null,null,null,null,null,null,null,null,null,false]
[null,null,null,null,null,0,null,0,null,"","",null,null,null,null,null,null,null,null,null,null,null,null,null,null,null,false]
[null,null,null,null,null,0,null,0,null,"","",null,null,null,null,null,null,null,null,null,null,null,null,null,null,null,false]
[null,null,null,null,null,0,null,0,null,"","",null,null,null,null,null,null,null,null,null,null,null,null,null,null,null,false]
[null,null,null,null,null,0,null,0,null,"","",null,null,null,null,null,null,null,null,null,null,null,null,null,null,null,false]
[null,null,null,null,null,0,null,0,null,"","",null,null,null,null,null,null,null,null,null,null,null,null,null,null,null,false]
[null,null,null,null,null,0,null,0,null,"","",null,null,null,null,null,null,null,null,null,null,null,null,null,null,null,false]
[null,null,null,null,null,0,null,0,null,"","",null,null,null,null,null,null,null,null,null,null,null,null,null,null,null,false]
[null,null,null,null,null,0,null,0,null,"","",null,null,null,null,null,null,null,null,null,null,null,null,null,null,null,false]
[null,null,null,null,null,0,null,0,null,"","",null,null,null,null,null,null,null,null,null,null,null,null,null,null,null,false]
[null,null,null,null,null,0,null,0,null,"","",null,null,null,null,null,null,null,null,null,null,null,null,null,null,null,false]
[null,null,null,null,null,0,null,0,null,"","",null,null,null,null,null,null,null,null,null,null,null,null,null,null,null,false]
[null,null,null,null,null,0,null,0,null,"","",null,null,null,null,null,null,null,null,null,null,null,null,null,null,null,false]
[null,null,null,null,null,0,null,0,null,"","",null,null,null,null,null,null,null,null,null,null,null,null,null,null,null,false]
[null,null,null,null,null,0,null,0,null,"","",null,null,null,null,null,null,null,null,null,null,null,null,null,null,null,false]
[null,null,null,null,null,0,null,0,null,"","",null,null,null,null,null,null,null,null,null,null,null,null,null,null,null,false]
[null,null,null,null,null,0,null,0,null,"","",null,null,null,null,null,null,null,null,null,null,null,null,null,null,null,false]
[null,null,null,null,null,0,null,0,null,"","",null,null,null,null,null,null,null,null,null,null,null,null,null,null,null,false]
[null,null,null,null,null,0,null,0,null,"","",null,null,null,null,null,null,null,null,null,null,null,null,null,null,null,false]
[null,null,null,null,null,0,null,0,null,"","",null,null,null,null,null,null,null,null,null,null,null,null,null,null,null,false]
[null,null,null,null,null,0,null,0,null,"","",null,null,null,null,null,null,null,null,null,null,null,null,null,null,null,false]
[null,null,null,null,null,0,null,0,null,"","",null,null,null,null,null,null,null,null,null,null,null,null,null,null,null,false]
[null,null,null,null,null,0,null,0,null,"","",null,null,null,null,null,null,null,null,null,null,null,null,null,null,null,false]
[null,null,null,null,null,0,null,0,null,"","",null,null,null,null,null,null,null,null,null,null,null,null,null,null,null,false]
[null,null,null,null,null,0,null,0,null,"","",null,null,null,null,null,null,null,null,null,null,null,null,null,null,null,false]
[null,null,null,null,null,0,null,0,null,"","",null,null,null,null,null,null,null,null,null,null,null,null,null,null,null,false]
[null,null,null,null,null,0,null,0,null,"","",null,null,null,null,null,null,null,null,null,null,null,null,null,null,null,false]
[null,null,null,null,null,0,null,0,null,"","",null,null,null,null,null,null,null,null,null,null,null,null,null,null,null,false]
[null,null,null,null,null,0,null,0,null,"","",null,null,null,null,null,null,null,null,null,null,null,null,null,null,null,false]
[null,null,null,null,null,0,null,0,null,"","",null,null,null,null,null,null,null,null,null,null,null,null,null,null,null,false]
[null,null,null,null,null,0,null,0,null,"","",null,null,null,null,null,null,null,null,null,null,null,null,null,null,null,false]
[null,null,null,null,null,0,null,0,null,"","",null,null,null,null,null,null,null,null,null,null,null,null,null,null,null,false]
[null,null,null,null,null,0,null,0,null,"","",null,null,null,null,null,null,null,null,null,null,null,null,null,null,null,false]
[null,null,null,null,null,0,null,0,null,"","",null,null,null,null,null,null,null,null,null,null,null,null,null,null,null,false]
[null,null,null,null,null,{"$f":"IF(E709=0,D709,E709)","v":0},null,{"$f":"F709-G709","v":0},null,{"$f":"IF($I709 <> \"\",IFERROR(ASC(INDIRECT(\"個票\"&$I709&\"！$L$4\")),\"個票が存在しません。\"),\"\")","v":""},{"$f":"IFERROR(ASC(INDIRECT(\"個票\"&$I709&\"！$L$5\")),\"\")","v":""},null,null,null,null,null,null,null,null,null,null,null,null,null,null,null,{"$f":"OR(A709<>\"\",B709<>\"\",C709<>\"\",D709<>\"\",E709<>\"\",G709<>\"\",I709<>\"\")","v":false}]
[null,null,null,null,null,0,null,0,null,"","",null,null,null,null,null,null,null,null,null,null,null,null,null,null,null,false]
[null,null,null,null,null,0,null,0,null,"","",null,null,null,null,null,null,null,null,null,null,null,null,null,null,null,false]
[null,null,null,null,null,0,null,0,null,"","",null,null,null,null,null,null,null,null,null,null,null,null,null,null,null,false]
[null,null,null,null,null,0,null,0,null,"","",null,null,null,null,null,null,null,null,null,null,null,null,null,null,null,false]
[null,null,null,null,null,0,null,0,null,"","",null,null,null,null,null,null,null,null,null,null,null,null,null,null,null,false]
[null,null,null,null,null,0,null,0,null,"","",null,null,null,null,null,null,null,null,null,null,null,null,null,null,null,false]
[null,null,null,null,null,0,null,0,null,"","",null,null,null,null,null,null,null,null,null,null,null,null,null,null,null,false]
[null,null,null,null,null,0,null,0,null,"","",null,null,null,null,null,null,null,null,null,null,null,null,null,null,null,false]
[null,null,null,null,null,0,null,0,null,"","",null,null,null,null,null,null,null,null,null,null,null,null,null,null,null,false]
[null,null,null,null,null,0,null,0,null,"","",null,null,null,null,null,null,null,null,null,null,null,null,null,null,null,false]
[null,null,null,null,null,0,null,0,null,"","",null,null,null,null,null,null,null,null,null,null,null,null,null,null,null,false]
[null,null,null,null,null,0,null,0,null,"","",null,null,null,null,null,null,null,null,null,null,null,null,null,null,null,false]
[null,null,null,null,null,0,null,0,null,"","",null,null,null,null,null,null,null,null,null,null,null,null,null,null,null,false]
[null,null,null,null,null,0,null,0,null,"","",null,null,null,null,null,null,null,null,null,null,null,null,null,null,null,false]
[null,null,null,null,null,0,null,0,null,"","",null,null,null,null,null,null,null,null,null,null,null,null,null,null,null,false]
[null,null,null,null,null,0,null,0,null,"","",null,null,null,null,null,null,null,null,null,null,null,null,null,null,null,false]
[null,null,null,null,null,0,null,0,null,"","",null,null,null,null,null,null,null,null,null,null,null,null,null,null,null,false]
[null,null,null,null,null,0,null,0,null,"","",null,null,null,null,null,null,null,null,null,null,null,null,null,null,null,false]
[null,null,null,null,null,0,null,0,null,"","",null,null,null,null,null,null,null,null,null,null,null,null,null,null,null,false]
[null,null,null,null,null,0,null,0,null,"","",null,null,null,null,null,null,null,null,null,null,null,null,null,null,null,false]
[null,null,null,null,null,0,null,0,null,"","",null,null,null,null,null,null,null,null,null,null,null,null,null,null,null,false]
[null,null,null,null,null,0,null,0,null,"","",null,null,null,null,null,null,null,null,null,null,null,null,null,null,null,false]
[null,null,null,null,null,0,null,0,null,"","",null,null,null,null,null,null,null,null,null,null,null,null,null,null,null,false]
[null,null,null,null,null,0,null,0,null,"","",null,null,null,null,null,null,null,null,null,null,null,null,null,null,null,false]
[null,null,null,null,null,0,null,0,null,"","",null,null,null,null,null,null,null,null,null,null,null,null,null,null,null,false]
[null,null,null,null,null,0,null,0,null,"","",null,null,null,null,null,null,null,null,null,null,null,null,null,null,null,false]
[null,null,null,null,null,0,null,0,null,"","",null,null,null,null,null,null,null,null,null,null,null,null,null,null,null,false]
[null,null,null,null,null,0,null,0,null,"","",null,null,null,null,null,null,null,null,null,null,null,null,null,null,null,false]
[null,null,null,null,null,0,null,0,null,"","",null,null,null,null,null,null,null,null,null,null,null,null,null,null,null,false]
[null,null,null,null,null,0,null,0,null,"","",null,null,null,null,null,null,null,null,null,null,null,null,null,null,null,false]
[null,null,null,null,null,0,null,0,null,"","",null,null,null,null,null,null,null,null,null,null,null,null,null,null,null,false]
[null,null,null,null,null,0,null,0,null,"","",null,null,null,null,null,null,null,null,null,null,null,null,null,null,null,false]
[null,null,null,null,null,0,null,0,null,"","",null,null,null,null,null,null,null,null,null,null,null,null,null,null,null,false]
[null,null,null,null,null,0,null,0,null,"","",null,null,null,null,null,null,null,null,null,null,null,null,null,null,null,false]
[null,null,null,null,null,0,null,0,null,"","",null,null,null,null,null,null,null,null,null,null,null,null,null,null,null,false]
[null,null,null,null,null,0,null,0,null,"","",null,null,null,null,null,null,null,null,null,null,null,null,null,null,null,false]
[null,null,null,null,null,0,null,0,null,"","",null,null,null,null,null,null,null,null,null,null,null,null,null,null,null,false]
[null,null,null,null,null,0,null,0,null,"","",null,null,null,null,null,null,null,null,null,null,null,null,null,null,null,false]
[null,null,null,null,null,0,null,0,null,"","",null,null,null,null,null,null,null,null,null,null,null,null,null,null,null,false]
[null,null,null,null,null,0,null,0,null,"","",null,null,null,null,null,null,null,null,null,null,null,null,null,null,null,false]
[null,null,null,null,null,0,null,0,null,"","",null,null,null,null,null,null,null,null,null,null,null,null,null,null,null,false]
[null,null,null,null,null,0,null,0,null,"","",null,null,null,null,null,null,null,null,null,null,null,null,null,null,null,false]
[null,null,null,null,null,0,null,0,null,"","",null,null,null,null,null,null,null,null,null,null,null,null,null,null,null,false]
[null,null,null,null,null,0,null,0,null,"","",null,null,null,null,null,null,null,null,null,null,null,null,null,null,null,false]
[null,null,null,null,null,0,null,0,null,"","",null,null,null,null,null,null,null,null,null,null,null,null,null,null,null,false]
[null,null,null,null,null,0,null,0,null,"","",null,null,null,null,null,null,null,null,null,null,null,null,null,null,null,false]
[null,null,null,null,null,0,null,0,null,"","",null,null,null,null,null,null,null,null,null,null,null,null,null,null,null,false]
[null,null,null,null,null,0,null,0,null,"","",null,null,null,null,null,null,null,null,null,null,null,null,null,null,null,false]
[null,null,null,null,null,0,null,0,null,"","",null,null,null,null,null,null,null,null,null,null,null,null,null,null,null,false]
[null,null,null,null,null,0,null,0,null,"","",null,null,null,null,null,null,null,null,null,null,null,null,null,null,null,false]
[null,null,null,null,null,0,null,0,null,"","",null,null,null,null,null,null,null,null,null,null,null,null,null,null,null,false]
[null,null,null,null,null,0,null,0,null,"","",null,null,null,null,null,null,null,null,null,null,null,null,null,null,null,false]
[null,null,null,null,null,0,null,0,null,"","",null,null,null,null,null,null,null,null,null,null,null,null,null,null,null,false]
[null,null,null,null,null,0,null,0,null,"","",null,null,null,null,null,null,null,null,null,null,null,null,null,null,null,false]
[null,null,null,null,null,0,null,0,null,"","",null,null,null,null,null,null,null,null,null,null,null,null,null,null,null,false]
[null,null,null,null,null,0,null,0,null,"","",null,null,null,null,null,null,null,null,null,null,null,null,null,null,null,false]
[null,null,null,null,null,0,null,0,null,"","",null,null,null,null,null,null,null,null,null,null,null,null,null,null,null,false]
[null,null,null,null,null,0,null,0,null,"","",null,null,null,null,null,null,null,null,null,null,null,null,null,null,null,false]
[null,null,null,null,null,0,null,0,null,"","",null,null,null,null,null,null,null,null,null,null,null,null,null,null,null,false]
[null,null,null,null,null,0,null,0,null,"","",null,null,null,null,null,null,null,null,null,null,null,null,null,null,null,false]
[null,null,null,null,null,0,null,0,null,"","",null,null,null,null,null,null,null,null,null,null,null,null,null,null,null,false]
[null,null,null,null,null,0,null,0,null,"","",null,null,null,null,null,null,null,null,null,null,null,null,null,null,null,false]
[null,null,null,null,null,0,null,0,null,"","",null,null,null,null,null,null,null,null,null,null,null,null,null,null,null,false]
[null,null,null,null,null,{"$f":"IF(E773=0,D773,E773)","v":0},null,{"$f":"F773-G773","v":0},null,{"$f":"IF($I773 <> \"\",IFERROR(ASC(INDIRECT(\"個票\"&$I773&\"！$L$4\")),\"個票が存在しません。\"),\"\")","v":""},{"$f":"IFERROR(ASC(INDIRECT(\"個票\"&$I773&\"！$L$5\")),\"\")","v":""},null,null,null,null,null,null,null,null,null,null,null,null,null,null,null,{"$f":"OR(A773<>\"\",B773<>\"\",C773<>\"\",D773<>\"\",E773<>\"\",G773<>\"\",I773<>\"\")","v":false}]
[null,null,null,null,null,0,null,0,null,"","",null,null,null,null,null,null,null,null,null,null,null,null,null,null,null,false]
[null,null,null,null,null,0,null,0,null,"","",null,null,null,null,null,null,null,null,null,null,null,null,null,null,null,false]
[null,null,null,null,null,0,null,0,null,"","",null,null,null,null,null,null,null,null,null,null,null,null,null,null,null,false]
[null,null,null,null,null,0,null,0,null,"","",null,null,null,null,null,null,null,null,null,null,null,null,null,null,null,false]
[null,null,null,null,null,0,null,0,null,"","",null,null,null,null,null,null,null,null,null,null,null,null,null,null,null,false]
[null,null,null,null,null,0,null,0,null,"","",null,null,null,null,null,null,null,null,null,null,null,null,null,null,null,false]
[null,null,null,null,null,0,null,0,null,"","",null,null,null,null,null,null,null,null,null,null,null,null,null,null,null,false]
[null,null,null,null,null,0,null,0,null,"","",null,null,null,null,null,null,null,null,null,null,null,null,null,null,null,false]
[null,null,null,null,null,0,null,0,null,"","",null,null,null,null,null,null,null,null,null,null,null,null,null,null,null,false]
[null,null,null,null,null,0,null,0,null,"","",null,null,null,null,null,null,null,null,null,null,null,null,null,null,null,false]
[null,null,null,null,null,0,null,0,null,"","",null,null,null,null,null,null,null,null,null,null,null,null,null,null,null,false]
[null,null,null,null,null,0,null,0,null,"","",null,null,null,null,null,null,null,null,null,null,null,null,null,null,null,false]
[null,null,null,null,null,0,null,0,null,"","",null,null,null,null,null,null,null,null,null,null,null,null,null,null,null,false]
[null,null,null,null,null,0,null,0,null,"","",null,null,null,null,null,null,null,null,null,null,null,null,null,null,null,false]
[null,null,null,null,null,0,null,0,null,"","",null,null,null,null,null,null,null,null,null,null,null,null,null,null,null,false]
[null,null,null,null,null,0,null,0,null,"","",null,null,null,null,null,null,null,null,null,null,null,null,null,null,null,false]
[null,null,null,null,null,0,null,0,null,"","",null,null,null,null,null,null,null,null,null,null,null,null,null,null,null,false]
[null,null,null,null,null,0,null,0,null,"","",null,null,null,null,null,null,null,null,null,null,null,null,null,null,null,false]
[null,null,null,null,null,0,null,0,null,"","",null,null,null,null,null,null,null,null,null,null,null,null,null,null,null,false]
[null,null,null,null,null,0,null,0,null,"","",null,null,null,null,null,null,null,null,null,null,null,null,null,null,null,false]
[null,null,null,null,null,0,null,0,null,"","",null,null,null,null,null,null,null,null,null,null,null,null,null,null,null,false]
[null,null,null,null,null,0,null,0,null,"","",null,null,null,null,null,null,null,null,null,null,null,null,null,null,null,false]
[null,null,null,null,null,0,null,0,null,"","",null,null,null,null,null,null,null,null,null,null,null,null,null,null,null,false]
[null,null,null,null,null,0,null,0,null,"","",null,null,null,null,null,null,null,null,null,null,null,null,null,null,null,false]
[null,null,null,null,null,0,null,0,null,"","",null,null,null,null,null,null,null,null,null,null,null,null,null,null,null,false]
[null,null,null,null,null,0,null,0,null,"","",null,null,null,null,null,null,null,null,null,null,null,null,null,null,null,false]
[null,null,null,null,null,0,null,0,null,"","",null,null,null,null,null,null,null,null,null,null,null,null,null,null,null,false]
[null,null,null,null,null,0,null,0,null,"","",null,null,null,null,null,null,null,null,null,null,null,null,null,null,null,false]
[null,null,null,null,null,0,null,0,null,"","",null,null,null,null,null,null,null,null,null,null,null,null,null,null,null,false]
[null,null,null,null,null,0,null,0,null,"","",null,null,null,null,null,null,null,null,null,null,null,null,null,null,null,false]
[null,null,null,null,null,0,null,0,null,"","",null,null,null,null,null,null,null,null,null,null,null,null,null,null,null,false]
[null,null,null,null,null,0,null,0,null,"","",null,null,null,null,null,null,null,null,null,null,null,null,null,null,null,false]
[null,null,null,null,null,0,null,0,null,"","",null,null,null,null,null,null,null,null,null,null,null,null,null,null,null,false]
[null,null,null,null,null,0,null,0,null,"","",null,null,null,null,null,null,null,null,null,null,null,null,null,null,null,false]
[null,null,null,null,null,0,null,0,null,"","",null,null,null,null,null,null,null,null,null,null,null,null,null,null,null,false]
[null,null,null,null,null,0,null,0,null,"","",null,null,null,null,null,null,null,null,null,null,null,null,null,null,null,false]
[null,null,null,null,null,0,null,0,null,"","",null,null,null,null,null,null,null,null,null,null,null,null,null,null,null,false]
[null,null,null,null,null,0,null,0,null,"","",null,null,null,null,null,null,null,null,null,null,null,null,null,null,null,false]
[null,null,null,null,null,0,null,0,null,"","",null,null,null,null,null,null,null,null,null,null,null,null,null,null,null,false]
[null,null,null,null,null,0,null,0,null,"","",null,null,null,null,null,null,null,null,null,null,null,null,null,null,null,false]
[null,null,null,null,null,0,null,0,null,"","",null,null,null,null,null,null,null,null,null,null,null,null,null,null,null,false]
[null,null,null,null,null,0,null,0,null,"","",null,null,null,null,null,null,null,null,null,null,null,null,null,null,null,false]
[null,null,null,null,null,0,null,0,null,"","",null,null,null,null,null,null,null,null,null,null,null,null,null,null,null,false]
[null,null,null,null,null,0,null,0,null,"","",null,null,null,null,null,null,null,null,null,null,null,null,null,null,null,false]
[null,null,null,null,null,0,null,0,null,"","",null,null,null,null,null,null,null,null,null,null,null,null,null,null,null,false]
[null,null,null,null,null,0,null,0,null,"","",null,null,null,null,null,null,null,null,null,null,null,null,null,null,null,false]
[null,null,null,null,null,0,null,0,null,"","",null,null,null,null,null,null,null,null,null,null,null,null,null,null,null,false]
[null,null,null,null,null,0,null,0,null,"","",null,null,null,null,null,null,null,null,null,null,null,null,null,null,null,false]
[null,null,null,null,null,0,null,0,null,"","",null,null,null,null,null,null,null,null,null,null,null,null,null,null,null,false]
[null,null,null,null,null,0,null,0,null,"","",null,null,null,null,null,null,null,null,null,null,null,null,null,null,null,false]
[null,null,null,null,null,0,null,0,null,"","",null,null,null,null,null,null,null,null,null,null,null,null,null,null,null,false]
[null,null,null,null,null,0,null,0,null,"","",null,null,null,null,null,null,null,null,null,null,null,null,null,null,null,false]
[null,null,null,null,null,0,null,0,null,"","",null,null,null,null,null,null,null,null,null,null,null,null,null,null,null,false]
[null,null,null,null,null,0,null,0,null,"","",null,null,null,null,null,null,null,null,null,null,null,null,null,null,null,false]
[null,null,null,null,null,0,null,0,null,"","",null,null,null,null,null,null,null,null,null,null,null,null,null,null,null,false]
[null,null,null,null,null,0,null,0,null,"","",null,null,null,null,null,null,null,null,null,null,null,null,null,null,null,false]
[null,null,null,null,null,0,null,0,null,"","",null,null,null,null,null,null,null,null,null,null,null,null,null,null,null,false]
[null,null,null,null,null,0,null,0,null,"","",null,null,null,null,null,null,null,null,null,null,null,null,null,null,null,false]
[null,null,null,null,null,0,null,0,null,"","",null,null,null,null,null,null,null,null,null,null,null,null,null,null,null,false]
[null,null,null,null,null,0,null,0,null,"","",null,null,null,null,null,null,null,null,null,null,null,null,null,null,null,false]
[null,null,null,null,null,0,null,0,null,"","",null,null,null,null,null,null,null,null,null,null,null,null,null,null,null,false]
[null,null,null,null,null,0,null,0,null,"","",null,null,null,null,null,null,null,null,null,null,null,null,null,null,null,false]
[null,null,null,null,null,0,null,0,null,"","",null,null,null,null,null,null,null,null,null,null,null,null,null,null,null,false]
[null,null,null,null,null,{"$f":"IF(E837=0,D837,E837)","v":0},null,{"$f":"F837-G837","v":0},null,{"$f":"IF($I837 <> \"\",IFERROR(ASC(INDIRECT(\"個票\"&$I837&\"！$L$4\")),\"個票が存在しません。\"),\"\")","v":""},{"$f":"IFERROR(ASC(INDIRECT(\"個票\"&$I837&\"！$L$5\")),\"\")","v":""},null,null,null,null,null,null,null,null,null,null,null,null,null,null,null,{"$f":"OR(A837<>\"\",B837<>\"\",C837<>\"\",D837<>\"\",E837<>\"\",G837<>\"\",I837<>\"\")","v":false}]
[null,null,null,null,null,0,null,0,null,"","",null,null,null,null,null,null,null,null,null,null,null,null,null,null,null,false]
[null,null,null,null,null,0,null,0,null,"","",null,null,null,null,null,null,null,null,null,null,null,null,null,null,null,false]
[null,null,null,null,null,0,null,0,null,"","",null,null,null,null,null,null,null,null,null,null,null,null,null,null,null,false]
[null,null,null,null,null,0,null,0,null,"","",null,null,null,null,null,null,null,null,null,null,null,null,null,null,null,false]
[null,null,null,null,null,0,null,0,null,"","",null,null,null,null,null,null,null,null,null,null,null,null,null,null,null,false]
[null,null,null,null,null,0,null,0,null,"","",null,null,null,null,null,null,null,null,null,null,null,null,null,null,null,false]
[null,null,null,null,null,0,null,0,null,"","",null,null,null,null,null,null,null,null,null,null,null,null,null,null,null,false]
[null,null,null,null,null,0,null,0,null,"","",null,null,null,null,null,null,null,null,null,null,null,null,null,null,null,false]
[null,null,null,null,null,0,null,0,null,"","",null,null,null,null,null,null,null,null,null,null,null,null,null,null,null,false]
[null,null,null,null,null,0,null,0,null,"","",null,null,null,null,null,null,null,null,null,null,null,null,null,null,null,false]
[null,null,null,null,null,0,null,0,null,"","",null,null,null,null,null,null,null,null,null,null,null,null,null,null,null,false]
[null,null,null,null,null,0,null,0,null,"","",null,null,null,null,null,null,null,null,null,null,null,null,null,null,null,false]
[null,null,null,null,null,0,null,0,null,"","",null,null,null,null,null,null,null,null,null,null,null,null,null,null,null,false]
[null,null,null,null,null,0,null,0,null,"","",null,null,null,null,null,null,null,null,null,null,null,null,null,null,null,false]
[null,null,null,null,null,0,null,0,null,"","",null,null,null,null,null,null,null,null,null,null,null,null,null,null,null,false]
[null,null,null,null,null,0,null,0,null,"","",null,null,null,null,null,null,null,null,null,null,null,null,null,null,null,false]
[null,null,null,null,null,0,null,0,null,"","",null,null,null,null,null,null,null,null,null,null,null,null,null,null,null,false]
[null,null,null,null,null,0,null,0,null,"","",null,null,null,null,null,null,null,null,null,null,null,null,null,null,null,false]
[null,null,null,null,null,0,null,0,null,"","",null,null,null,null,null,null,null,null,null,null,null,null,null,null,null,false]
[null,null,null,null,null,0,null,0,null,"","",null,null,null,null,null,null,null,null,null,null,null,null,null,null,null,false]
[null,null,null,null,null,0,null,0,null,"","",null,null,null,null,null,null,null,null,null,null,null,null,null,null,null,false]
[null,null,null,null,null,0,null,0,null,"","",null,null,null,null,null,null,null,null,null,null,null,null,null,null,null,false]
[null,null,null,null,null,0,null,0,null,"","",null,null,null,null,null,null,null,null,null,null,null,null,null,null,null,false]
[null,null,null,null,null,0,null,0,null,"","",null,null,null,null,null,null,null,null,null,null,null,null,null,null,null,false]
[null,null,null,null,null,0,null,0,null,"","",null,null,null,null,null,null,null,null,null,null,null,null,null,null,null,false]
[null,null,null,null,null,0,null,0,null,"","",null,null,null,null,null,null,null,null,null,null,null,null,null,null,null,false]
[null,null,null,null,null,0,null,0,null,"","",null,null,null,null,null,null,null,null,null,null,null,null,null,null,null,false]
[null,null,null,null,null,0,null,0,null,"","",null,null,null,null,null,null,null,null,null,null,null,null,null,null,null,false]
[null,null,null,null,null,0,null,0,null,"","",null,null,null,null,null,null,null,null,null,null,null,null,null,null,null,false]
[null,null,null,null,null,0,null,0,null,"","",null,null,null,null,null,null,null,null,null,null,null,null,null,null,null,false]
[null,null,null,null,null,0,null,0,null,"","",null,null,null,null,null,null,null,null,null,null,null,null,null,null,null,false]
[null,null,null,null,null,0,null,0,null,"","",null,null,null,null,null,null,null,null,null,null,null,null,null,null,null,false]
[null,null,null,null,null,0,null,0,null,"","",null,null,null,null,null,null,null,null,null,null,null,null,null,null,null,false]
[null,null,null,null,null,0,null,0,null,"","",null,null,null,null,null,null,null,null,null,null,null,null,null,null,null,false]
[null,null,null,null,null,0,null,0,null,"","",null,null,null,null,null,null,null,null,null,null,null,null,null,null,null,false]
[null,null,null,null,null,0,null,0,null,"","",null,null,null,null,null,null,null,null,null,null,null,null,null,null,null,false]
[null,null,null,null,null,0,null,0,null,"","",null,null,null,null,null,null,null,null,null,null,null,null,null,null,null,false]
[null,null,null,null,null,0,null,0,null,"","",null,null,null,null,null,null,null,null,null,null,null,null,null,null,null,false]
[null,null,null,null,null,0,null,0,null,"","",null,null,null,null,null,null,null,null,null,null,null,null,null,null,null,false]
[null,null,null,null,null,0,null,0,null,"","",null,null,null,null,null,null,null,null,null,null,null,null,null,null,null,false]
[null,null,null,null,null,0,null,0,null,"","",null,null,null,null,null,null,null,null,null,null,null,null,null,null,null,false]
[null,null,null,null,null,0,null,0,null,"","",null,null,null,null,null,null,null,null,null,null,null,null,null,null,null,false]
[null,null,null,null,null,0,null,0,null,"","",null,null,null,null,null,null,null,null,null,null,null,null,null,null,null,false]
[null,null,null,null,null,0,null,0,null,"","",null,null,null,null,null,null,null,null,null,null,null,null,null,null,null,false]
[null,null,null,null,null,0,null,0,null,"","",null,null,null,null,null,null,null,null,null,null,null,null,null,null,null,false]
[null,null,null,null,null,0,null,0,null,"","",null,null,null,null,null,null,null,null,null,null,null,null,null,null,null,false]
[null,null,null,null,null,0,null,0,null,"","",null,null,null,null,null,null,null,null,null,null,null,null,null,null,null,false]
[null,null,null,null,null,0,null,0,null,"","",null,null,null,null,null,null,null,null,null,null,null,null,null,null,null,false]
[null,null,null,null,null,0,null,0,null,"","",null,null,null,null,null,null,null,null,null,null,null,null,null,null,null,false]
[null,null,null,null,null,0,null,0,null,"","",null,null,null,null,null,null,null,null,null,null,null,null,null,null,null,false]
[null,null,null,null,null,0,null,0,null,"","",null,null,null,null,null,null,null,null,null,null,null,null,null,null,null,false]
[null,null,null,null,null,0,null,0,null,"","",null,null,null,null,null,null,null,null,null,null,null,null,null,null,null,false]
[null,null,null,null,null,0,null,0,null,"","",null,null,null,null,null,null,null,null,null,null,null,null,null,null,null,false]
[null,null,null,null,null,0,null,0,null,"","",null,null,null,null,null,null,null,null,null,null,null,null,null,null,null,false]
[null,null,null,null,null,0,null,0,null,"","",null,null,null,null,null,null,null,null,null,null,null,null,null,null,null,false]
[null,null,null,null,null,0,null,0,null,"","",null,null,null,null,null,null,null,null,null,null,null,null,null,null,null,false]
[null,null,null,null,null,0,null,0,null,"","",null,null,null,null,null,null,null,null,null,null,null,null,null,null,null,false]
[null,null,null,null,null,0,null,0,null,"","",null,null,null,null,null,null,null,null,null,null,null,null,null,null,null,false]
[null,null,null,null,null,0,null,0,null,"","",null,null,null,null,null,null,null,null,null,null,null,null,null,null,null,false]
[null,null,null,null,null,0,null,0,null,"","",null,null,null,null,null,null,null,null,null,null,null,null,null,null,null,false]
[null,null,null,null,null,0,null,0,null,"","",null,null,null,null,null,null,null,null,null,null,null,null,null,null,null,false]
[null,null,null,null,null,0,null,0,null,"","",null,null,null,null,null,null,null,null,null,null,null,null,null,null,null,false]
[null,null,null,null,null,0,null,0,null,"","",null,null,null,null,null,null,null,null,null,null,null,null,null,null,null,false]
[null,null,null,null,null,{"$f":"IF(E901=0,D901,E901)","v":0},null,{"$f":"F901-G901","v":0},null,{"$f":"IF($I901 <> \"\",IFERROR(ASC(INDIRECT(\"個票\"&$I901&\"！$L$4\")),\"個票が存在しません。\"),\"\")","v":""},{"$f":"IFERROR(ASC(INDIRECT(\"個票\"&$I901&\"！$L$5\")),\"\")","v":""},null,null,null,null,null,null,null,null,null,null,null,null,null,null,null,{"$f":"OR(A901<>\"\",B901<>\"\",C901<>\"\",D901<>\"\",E901<>\"\",G901<>\"\",I901<>\"\")","v":false}]
[null,null,null,null,null,0,null,0,null,"","",null,null,null,null,null,null,null,null,null,null,null,null,null,null,null,false]
[null,null,null,null,null,0,null,0,null,"","",null,null,null,null,null,null,null,null,null,null,null,null,null,null,null,false]
[null,null,null,null,null,0,null,0,null,"","",null,null,null,null,null,null,null,null,null,null,null,null,null,null,null,false]
[null,null,null,null,null,0,null,0,null,"","",null,null,null,null,null,null,null,null,null,null,null,null,null,null,null,false]
[null,null,null,null,null,0,null,0,null,"","",null,null,null,null,null,null,null,null,null,null,null,null,null,null,null,false]
[null,null,null,null,null,0,null,0,null,"","",null,null,null,null,null,null,null,null,null,null,null,null,null,null,null,false]
[null,null,null,null,null,0,null,0,null,"","",null,null,null,null,null,null,null,null,null,null,null,null,null,null,null,false]
[null,null,null,null,null,0,null,0,null,"","",null,null,null,null,null,null,null,null,null,null,null,null,null,null,null,false]
[null,null,null,null,null,0,null,0,null,"","",null,null,null,null,null,null,null,null,null,null,null,null,null,null,null,false]
[null,null,null,null,null,0,null,0,null,"","",null,null,null,null,null,null,null,null,null,null,null,null,null,null,null,false]
[null,null,null,null,null,0,null,0,null,"","",null,null,null,null,null,null,null,null,null,null,null,null,null,null,null,false]
[null,null,null,null,null,0,null,0,null,"","",null,null,null,null,null,null,null,null,null,null,null,null,null,null,null,false]
[null,null,null,null,null,0,null,0,null,"","",null,null,null,null,null,null,null,null,null,null,null,null,null,null,null,false]
[null,null,null,null,null,0,null,0,null,"","",null,null,null,null,null,null,null,null,null,null,null,null,null,null,null,false]
[null,null,null,null,null,0,null,0,null,"","",null,null,null,null,null,null,null,null,null,null,null,null,null,null,null,false]
[null,null,null,null,null,0,null,0,null,"","",null,null,null,null,null,null,null,null,null,null,null,null,null,null,null,false]
[null,null,null,null,null,0,null,0,null,"","",null,null,null,null,null,null,null,null,null,null,null,null,null,null,null,false]
[null,null,null,null,null,0,null,0,null,"","",null,null,null,null,null,null,null,null,null,null,null,null,null,null,null,false]
[null,null,null,null,null,0,null,0,null,"","",null,null,null,null,null,null,null,null,null,null,null,null,null,null,null,false]
[null,null,null,null,null,0,null,0,null,"","",null,null,null,null,null,null,null,null,null,null,null,null,null,null,null,false]
[null,null,null,null,null,0,null,0,null,"","",null,null,null,null,null,null,null,null,null,null,null,null,null,null,null,false]
[null,null,null,null,null,0,null,0,null,"","",null,null,null,null,null,null,null,null,null,null,null,null,null,null,null,false]
[null,null,null,null,null,0,null,0,null,"","",null,null,null,null,null,null,null,null,null,null,null,null,null,null,null,false]
[null,null,null,null,null,0,null,0,null,"","",null,null,null,null,null,null,null,null,null,null,null,null,null,null,null,false]
[null,null,null,null,null,0,null,0,null,"","",null,null,null,null,null,null,null,null,null,null,null,null,null,null,null,false]
[null,null,null,null,null,0,null,0,null,"","",null,null,null,null,null,null,null,null,null,null,null,null,null,null,null,false]
[null,null,null,null,null,0,null,0,null,"","",null,null,null,null,null,null,null,null,null,null,null,null,null,null,null,false]
[null,null,null,null,null,0,null,0,null,"","",null,null,null,null,null,null,null,null,null,null,null,null,null,null,null,false]
[null,null,null,null,null,0,null,0,null,"","",null,null,null,null,null,null,null,null,null,null,null,null,null,null,null,false]
[null,null,null,null,null,0,null,0,null,"","",null,null,null,null,null,null,null,null,null,null,null,null,null,null,null,false]
[null,null,null,null,null,0,null,0,null,"","",null,null,null,null,null,null,null,null,null,null,null,null,null,null,null,false]
[null,null,null,null,null,0,null,0,null,"","",null,null,null,null,null,null,null,null,null,null,null,null,null,null,null,false]
[null,null,null,null,null,0,null,0,null,"","",null,null,null,null,null,null,null,null,null,null,null,null,null,null,null,false]
[null,null,null,null,null,0,null,0,null,"","",null,null,null,null,null,null,null,null,null,null,null,null,null,null,null,false]
[null,null,null,null,null,0,null,0,null,"","",null,null,null,null,null,null,null,null,null,null,null,null,null,null,null,false]
[null,null,null,null,null,0,null,0,null,"","",null,null,null,null,null,null,null,null,null,null,null,null,null,null,null,false]
[null,null,null,null,null,0,null,0,null,"","",null,null,null,null,null,null,null,null,null,null,null,null,null,null,null,false]
[null,null,null,null,null,0,null,0,null,"","",null,null,null,null,null,null,null,null,null,null,null,null,null,null,null,false]
[null,null,null,null,null,0,null,0,null,"","",null,null,null,null,null,null,null,null,null,null,null,null,null,null,null,false]
[null,null,null,null,null,0,null,0,null,"","",null,null,null,null,null,null,null,null,null,null,null,null,null,null,null,false]
[null,null,null,null,null,0,null,0,null,"","",null,null,null,null,null,null,null,null,null,null,null,null,null,null,null,false]
[null,null,null,null,null,0,null,0,null,"","",null,null,null,null,null,null,null,null,null,null,null,null,null,null,null,false]
[null,null,null,null,null,0,null,0,null,"","",null,null,null,null,null,null,null,null,null,null,null,null,null,null,null,false]
[null,null,null,null,null,0,null,0,null,"","",null,null,null,null,null,null,null,null,null,null,null,null,null,null,null,false]
[null,null,null,null,null,0,null,0,null,"","",null,null,null,null,null,null,null,null,null,null,null,null,null,null,null,false]
[null,null,null,null,null,0,null,0,null,"","",null,null,null,null,null,null,null,null,null,null,null,null,null,null,null,false]
[null,null,null,null,null,0,null,0,null,"","",null,null,null,null,null,null,null,null,null,null,null,null,null,null,null,false]
[null,null,null,null,null,0,null,0,null,"","",null,null,null,null,null,null,null,null,null,null,null,null,null,null,null,false]
[null,null,null,null,null,0,null,0,null,"","",null,null,null,null,null,null,null,null,null,null,null,null,null,null,null,false]
[null,null,null,null,null,0,null,0,null,"","",null,null,null,null,null,null,null,null,null,null,null,null,null,null,null,false]
[null,null,null,null,null,0,null,0,null,"","",null,null,null,null,null,null,null,null,null,null,null,null,null,null,null,false]
[null,null,null,null,null,0,null,0,null,"","",null,null,null,null,null,null,null,null,null,null,null,null,null,null,null,false]
[null,null,null,null,null,0,null,0,null,"","",null,null,null,null,null,null,null,null,null,null,null,null,null,null,null,false]
[null,null,null,null,null,0,null,0,null,"","",null,null,null,null,null,null,null,null,null,null,null,null,null,null,null,false]
[null,null,null,null,null,0,null,0,null,"","",null,null,null,null,null,null,null,null,null,null,null,null,null,null,null,false]
[null,null,null,null,null,0,null,0,null,"","",null,null,null,null,null,null,null,null,null,null,null,null,null,null,null,false]
[null,null,null,null,null,0,null,0,null,"","",null,null,null,null,null,null,null,null,null,null,null,null,null,null,null,false]
[null,null,null,null,null,0,null,0,null,"","",null,null,null,null,null,null,null,null,null,null,null,null,null,null,null,false]
[null,null,null,null,null,0,null,0,null,"","",null,null,null,null,null,null,null,null,null,null,null,null,null,null,null,false]
[null,null,null,null,null,0,null,0,null,"","",null,null,null,null,null,null,null,null,null,null,null,null,null,null,null,false]
[null,null,null,null,null,0,null,0,null,"","",null,null,null,null,null,null,null,null,null,null,null,null,null,null,null,false]
[null,null,null,null,null,0,null,0,null,"","",null,null,null,null,null,null,null,null,null,null,null,null,null,null,null,false]
[null,null,null,null,null,0,null,0,null,"","",null,null,null,null,null,null,null,null,null,null,null,null,null,null,null,false]
[null,null,null,null,null,{"$f":"IF(E965=0,D965,E965)","v":0},null,{"$f":"F965-G965","v":0},null,{"$f":"IF($I965 <> \"\",IFERROR(ASC(INDIRECT(\"個票\"&$I965&\"！$L$4\")),\"個票が存在しません。\"),\"\")","v":""},{"$f":"IFERROR(ASC(INDIRECT(\"個票\"&$I965&\"！$L$5\")),\"\")","v":""},null,null,null,null,null,null,null,null,null,null,null,null,null,null,null,{"$f":"OR(A965<>\"\",B965<>\"\",C965<>\"\",D965<>\"\",E965<>\"\",G965<>\"\",I965<>\"\")","v":false}]
[null,null,null,null,null,0,null,0,null,"","",null,null,null,null,null,null,null,null,null,null,null,null,null,null,null,false]
[null,null,null,null,null,0,null,0,null,"","",null,null,null,null,null,null,null,null,null,null,null,null,null,null,null,false]
[null,null,null,null,null,0,null,0,null,"","",null,null,null,null,null,null,null,null,null,null,null,null,null,null,null,false]
[null,null,null,null,null,0,null,0,null,"","",null,null,null,null,null,null,null,null,null,null,null,null,null,null,null,false]
[null,null,null,null,null,0,null,0,null,"","",null,null,null,null,null,null,null,null,null,null,null,null,null,null,null,false]
[null,null,null,null,null,0,null,0,null,"","",null,null,null,null,null,null,null,null,null,null,null,null,null,null,null,false]
[null,null,null,null,null,0,null,0,null,"","",null,null,null,null,null,null,null,null,null,null,null,null,null,null,null,false]
[null,null,null,null,null,0,null,0,null,"","",null,null,null,null,null,null,null,null,null,null,null,null,null,null,null,false]
[null,null,null,null,null,0,null,0,null,"","",null,null,null,null,null,null,null,null,null,null,null,null,null,null,null,false]
[null,null,null,null,null,0,null,0,null,"","",null,null,null,null,null,null,null,null,null,null,null,null,null,null,null,false]
[null,null,null,null,null,0,null,0,null,"","",null,null,null,null,null,null,null,null,null,null,null,null,null,null,null,false]
[null,null,null,null,null,0,null,0,null,"","",null,null,null,null,null,null,null,null,null,null,null,null,null,null,null,false]
[null,null,null,null,null,0,null,0,null,"","",null,null,null,null,null,null,null,null,null,null,null,null,null,null,null,false]
[null,null,null,null,null,0,null,0,null,"","",null,null,null,null,null,null,null,null,null,null,null,null,null,null,null,false]
[null,null,null,null,null,0,null,0,null,"","",null,null,null,null,null,null,null,null,null,null,null,null,null,null,null,false]
[null,null,null,null,null,0,null,0,null,"","",null,null,null,null,null,null,null,null,null,null,null,null,null,null,null,false]
[null,null,null,null,null,0,null,0,null,"","",null,null,null,null,null,null,null,null,null,null,null,null,null,null,null,false]
[null,null,null,null,null,0,null,0,null,"","",null,null,null,null,null,null,null,null,null,null,null,null,null,null,null,false]
[null,null,null,null,null,0,null,0,null,"","",null,null,null,null,null,null,null,null,null,null,null,null,null,null,null,false]
[null,null,null,null,null,0,null,0,null,"","",null,null,null,null,null,null,null,null,null,null,null,null,null,null,null,false]
[null,null,null,null,null,0,null,0,null,"","",null,null,null,null,null,null,null,null,null,null,null,null,null,null,null,false]
[null,null,null,null,null,0,null,0,null,"","",null,null,null,null,null,null,null,null,null,null,null,null,null,null,null,false]
[null,null,null,null,null,0,null,0,null,"","",null,null,null,null,null,null,null,null,null,null,null,null,null,null,null,false]
[null,null,null,null,null,0,null,0,null,"","",null,null,null,null,null,null,null,null,null,null,null,null,null,null,null,false]
[null,null,null,null,null,0,null,0,null,"","",null,null,null,null,null,null,null,null,null,null,null,null,null,null,null,false]
[null,null,null,null,null,0,null,0,null,"","",null,null,null,null,null,null,null,null,null,null,null,null,null,null,null,false]
[null,null,null,null,null,0,null,0,null,"","",null,null,null,null,null,null,null,null,null,null,null,null,null,null,null,false]
[null,null,null,null,null,0,null,0,null,"","",null,null,null,null,null,null,null,null,null,null,null,null,null,null,null,false]
[null,null,null,null,null,0,null,0,null,"","",null,null,null,null,null,null,null,null,null,null,null,null,null,null,null,false]
[null,null,null,null,null,0,null,0,null,"","",null,null,null,null,null,null,null,null,null,null,null,null,null,null,null,false]
[null,null,null,null,null,0,null,0,null,"","",null,null,null,null,null,null,null,null,null,null,null,null,null,null,null,false]
[null,null,null,null,null,0,null,0,null,"","",null,null,null,null,null,null,null,null,null,null,null,null,null,null,null,false]
[null,null,null,null,null,0,null,0,null,"","",null,null,null,null,null,null,null,null,null,null,null,null,null,null,null,false]
[null,null,null,null,null,0,null,0,null,"","",null,null,null,null,null,null,null,null,null,null,null,null,null,null,null,false]
[null,null,null,null,null,0,null,0,null,"","",null,null,null,null,null,null,null,null,null,null,null,null,null,null,null,false]
[null,null,null,null,null,0,null,0,null,"","",null,null,null,null,null,null,null,null,null,null,null,null,null,null,null,false]
[null,null,null,null,null,0,null,0,null,"","",null,null,null,null,null,null,null,null,null,null,null,null,null,null,null,false]
[null,null,null,null,null,0,null,0,null,"","",null,null,null,null,null,null,null,null,null,null,null,null,null,null,null,false]

{"sheet":"台紙","index":4,"n_rows":53,"n_cols":27,"rows_kept":53,"cut":false,"hidden":false,"merged":[[3,0,3,3],[3,4,3,29],[49,0,49,1],[49,2,49,8],[49,9,49,17],[49,18,49,21],[49,22,49,25],[49,26,49,29],[48,0,48,1],[48,2,48,8],[48,9,48,17],[48,18,48,21],[48,22,48,25],[48,26,48,29],[47,0,47,1],[47,2,47,8],[47,9,47,17],[47,18,47,21],[47,22,47,25],[47,26,47,29],[46,0,46,1],[46,2,46,8],[46,9,46,17],[46,18,46,21],[46,22,46,25],[46,26,46,29],[45,0,45,1],[45,2,45,8],[45,9,45,17],[45,18,45,21],[45,22,45,25],[45,26,45,29],[44,0,44,1],[44,2,44,8],[44,9,44,17],[44,18,44,21],[44,22,44,25],[44,26,44,29],[43,0,43,1],[43,2,43,8],[43,9,43,17],[43,18,43,21],[43,22,43,25],[43,26,43,29],[42,0,42,1],[42,2,42,8],[42,9,42,17],[42,18,42,21],[42,22,42,25],[42,26,42,29],[41,0,41,1],[41,2,41,8],[41,9,41,17],[41,18,41,21],[41,22,41,25],[41,26,41,29],[40,0,40,1],[40,2,40,8],[40,9,40,17],[40,18,40,21],[40,22,40,25],[40,26,40,29],[39,0,39,1],[39,2,39,8],[39,9,39,17],[39,18,39,21],[39,22,39,25],[39,26,39,29],[38,0,38,1],[38,2,38,8],[38,9,38,17],[38,18,38,21],[38,22,38,25],[38,26,38,29],[37,0,37,1],[37,2,37,8],[37,9,37,17],[37,18,37,21],[37,22,37,25],[37,26,37,29],[36,0,36,1],[36,2,36,8],[36,9,36,17],[36,18,36,21],[36,22,36,25],[36,26,36,29],[35,0,35,1],[35,2,35,8],[35,9,35,17],[35,18,35,21],[35,22,35,25],[35,26,35,29],[34,0,34,1],[34,2,34,8],[34,9,34,17],[34,18,34,21],[34,22,34,25],[34,26,34,29],[33,0,33,1],[33,2,33,8],[33,9,33,17],[33,18,33,21],[33,22,33,25],[33,26,33,29],[32,0,32,1],[32,2,32,8],[32,9,32,17],[32,18,32,21],[32,22,32,25],[32,26,32,29],[31,0,31,1],[31,2,31,8],[31,9,31,17],[31,18,31,21],[31,22,31,25],[31,26,31,29],[30,0,30,1],[30,2,30,8],[30,9,30,17],[30,18,30,21],[30,22,30,25],[30,26,30,29],[29,0,29,1],[29,2,29,8],[29,9,29,17],[29,18,29,21],[29,22,29,25],[29,26,29,29],[28,0,28,1],[28,2,28,8],[28,9,28,17],[28,18,28,21],[28,22,28,25],[28,26,28,29],[27,0,27,1],[27,2,27,8],[27,9,27,17],[27,18,27,21],[27,22,27,25],[27,26,27,29],[26,0,26,1],[26,2,26,8],[26,9,26,17],[26,18,26,21],[26,22,26,25],[26,26,26,29],[25,0,25,1],[25,2,25,8],[25,9,25,17],[25,18,25,21],[25,22,25,25],[25,26,25,29],[24,0,24,1],[24,2,24,8],[24,9,24,17],[24,18,24,21],[24,22,24,25],[24,26,24,29],[23,0,23,1],[23,2,23,8],[23,9,23,17],[23,18,23,21],[23,22,23,25],[23,26,23,29],[22,0,22,1],[22,2,22,8],[22,9,22,17],[22,18,22,21],[22,22,22,25],[22,26,22,29],[21,0,21,1],[21,2,21,8],[21,9,21,17],[21,18,21,21],[21,22,21,25],[21,26,21,29],[20,0,20,1],[20,2,20,8],[20,9,20,17],[20,18,20,21],[20,22,20,25],[20,26,20,29],[19,0,19,1],[19,2,19,8],[19,9,19,17],[19,18,19,21],[19,22,19,25],[19,26,19,29],[18,0,18,1],[18,2,18,8],[18,9,18,17],[18,18,18,21],[18,22,18,25],[18,26,18,29],[17,0,17,1],[17,2,17,8],[17,9,17,17],[17,18,17,21],[17,22,17,25],[17,26,17,29],[16,0,16,1],[16,2,16,8],[16,9,16,17],[16,18,16,21],[16,22,16,25],[16,26,16,29],[15,0,15,1],[15,2,15,8],[15,9,15,17],[15,18,15,21],[15,22,15,25],[15,26,15,29],[14,0,14,1],[14,2,14,8],[14,9,14,17],[14,18,14,21],[14,22,14,25],[14,26,14,29],[13,0,13,1],[13,2,13,8],[13,9,13,17],[13,18,13,21],[13,22,13,25],[13,26,13,29],[12,0,12,1],[12,2,12,8],[12,9,12,17],[12,18,12,21],[12,22,12,25],[12,26,12,29],[11,0,11,1],[11,2,11,8],[11,9,11,17],[11,18,11,21],[11,22,11,25],[11,26,11,29],[10,0,10,1],[10,2,10,8],[10,9,10,17],[10,18,10,21],[10,22,10,25],[10,26,10,29],[9,0,9,1],[9,2,9,8],[9,9,9,17],[9,18,9,21],[9,22,9,25],[9,26,9,29],[8,0,8,1],[8,2,8,8],[8,9,8,17],[8,18,8,21],[8,22,8,25],[8,26,8,29],[6,0,6,29],[7,0,7,1],[7,2,7,8],[7,9,7,17],[7,18,7,21],[7,22,7,25],[7,26,7,29],[4,0,4,3],[4,4,4,14],[4,15,4,21],[4,22,4,29],[5,0,5,6],[5,7,5,14],[5,15,5,21],[5,22,5,29],[0,0,0,29],[1,0,1,3],[1,4,1,14],[1,15,1,18],[1,19,1,29],[2,0,2,3],[2,4,2,14],[2,15,2,18],[2,19,2,29]]}
["（様式５）領収証貼付台紙"]
["ファイル名",null,null,null,null,null,null,null,null,null,null,null,null,null,null,"法人名"]
["領収証番号",null,null,null,null,null,null,null,null,null,null,null,null,null,null,"品目"]
["購入目的・用途"]
["領収証金額",null,null,null,null,null,null,null,null,null,null,null,null,null,null,"計上額計（按分額計）"]
["基本対象経費金額（国）計",null,null,null,null,null,null,null,null,null,null,null,null,null,null,"特別対象経費金額（県）計"]
["領収証計上明細"]
["個票\n番号",null,"事業所名",null,null,null,null,null,null,"提供サービス",null,null,null,null,null,null,null,null,"計上額\n（按分額）",null,null,null,"基本対象経費\n金額（国）",null,null,null,"特別対象経費\n金額（県）"]
[]
[]
[]
[]
[]
[]
[]
[]
[]
[]
[]
[]
[]
[]
[]
[]
[]
[]
[]
[]
[]
[]
[]
[]
[]
[]
[]
[]
[]
[]
[]
[]
[]
[]
[]
[]
[]
[]
[]
[]
[]
[]
["注１　領収証貼付欄に領収証のコピーを貼り付けてください。"]
["注２　コピーの大きさが貼付欄に収まらないときは、コピーを折り曲げるか、この台紙とコピーをホチキス"]
["　　止めしてください。"]